﻿Body_Name,Service_Label,Service_Code,Division_Code,Division_Description,Organisational_Unit,Expenditure_Category,Expenditure_Category_Code,Activity_Description,Activity_Code,Date_Received,Date_Paid,Reference,Net_Amount_in_Sterling,Capital_Revenue,Customer_Supplier_Description,Month,Year,FID
Tunbridge Wells Borough Council,Central Services,102,FI,FINANCE,SALARY SACRIFICES,LOANS - UNSECURED,8530,COMPUTER SALARY SACRIFICE,CSS000,2017/03/27 23:00:00+00,2017/04/17 23:00:00+00,159102,456.399993896484,Revenue,CDW & Associates Ltd,April,2017,1
Tunbridge Wells Borough Council,Planning Services,110,ED,ECONOMIC DEVELOPMENT,ECONOMIC DEVELOPMENT,COURIER SERVICE,3540,-,-,2017/03/10 00:00:00+00,2017/04/18 23:00:00+00,158491,6974,Revenue,Take One Media Ltd,April,2017,2
Tunbridge Wells Borough Council,Central Services,102,TR,TRANSFORMATION AND DELIVERY,I T SERVICE,IT SOFTWARE,3590,SOFTWARE MAINTENANCE,EV0328,2017/03/15 00:00:00+00,2017/04/18 23:00:00+00,158554,809,Revenue,Improvement and Development Agency,April,2017,3
Tunbridge Wells Borough Council,Central Services,102,IT,INFORMATION & COMMUNICATIONS TECHNOLOGY,I T SERVICE,IT SOFTWARE,3590,SOFTWARE MAINTENANCE,EV0328,2017/03/28 23:00:00+00,2017/04/18 23:00:00+00,158737,809,Revenue,Improvement and Development Agency,April,2017,4
Tunbridge Wells Borough Council,Cultural and Related Services,104,PS,PROPERTY SERVICES,PARKS & GROUNDS,PLANNED MAINTENANCE BUILDINGS,2000,PROPERTY CONTRACTS,PH0600,2017/04/04 23:00:00+00,2017/04/04 23:00:00+00,159562,44193.171875,Revenue,DCB (Kent) Ltd,April,2017,5
Tunbridge Wells Borough Council,Central Services,102,TR,TRANSFORMATION AND DELIVERY,TELEPHONY MKIP PROJECT,COMPUTER SOFTWARE,8341,-,-,2017/04/03 23:00:00+00,2017/04/04 23:00:00+00,159292,25976,Capital,3C TECHNOLOGY LTD,April,2017,6
Tunbridge Wells Borough Council,Central Services,102,RB,REVS & BENS,REVS & BENS ADMINISTRATION,CONSULTANTS FEES,3292,-,-,2017/04/04 23:00:00+00,2017/04/04 23:00:00+00,159502,14660,Revenue,Inform CPI Limited,April,2017,7
Tunbridge Wells Borough Council,Planning Services,110,PS,PROPERTY SERVICES,JOHN STREET CAR PARK,CAPITAL FEES EXTERNAL,8315,-,-,2017/04/04 23:00:00+00,2017/04/04 23:00:00+00,159489,9061.1796875,Capital,Atkins Limited,April,2017,8
Tunbridge Wells Borough Council,Cultural and Related Services,104,PK,PARKS,WOODLANDS,GROUND MAINT NON CONTRACT,2060,-,-,2017/04/04 23:00:00+00,2017/04/04 23:00:00+00,159271,8082.5,Revenue,Tilhill Forestry Limited,April,2017,9
Tunbridge Wells Borough Council,Housing Services,108,FI,FINANCE,RENT DEPOSIT SCHEME,DEBTORS,8510,-,-,2017/04/04 23:00:00+00,2017/04/04 23:00:00+00,159550,6497,Revenue,This data has been redacted under the Data Protection Act,April,2017,10
Tunbridge Wells Borough Council,Housing Services,108,FI,FINANCE,RENT DEPOSIT SCHEME,DEBTORS,8510,-,-,2017/04/04 23:00:00+00,2017/04/04 23:00:00+00,159481,5070,Revenue,Martin and Co,April,2017,11
Tunbridge Wells Borough Council,Planning Services,110,ED,ECONOMIC DEVELOPMENT,ECONOMIC DEVELOPMENT,PROPERTY CONSULTANTS,3290,A26 Cycle Route Detailed Desig,PT0535,2017/04/04 23:00:00+00,2017/04/04 23:00:00+00,159282,5027,Revenue,DHA PLANNING LTD,April,2017,12
Tunbridge Wells Borough Council,Central Services,102,FI,FINANCE,SALARY SACRIFICES,LOANS - UNSECURED,8530,GYM SALARY SACRIFICE,GYM000,2017/04/04 23:00:00+00,2017/04/04 23:00:00+00,158901,3645.89990234375,Revenue,Fusion Lifestyle,April,2017,13
Tunbridge Wells Borough Council,Central Services,102,RB,REVS & BENS,REVS & BENS ADMINISTRATION,CONSULTANTS FEES,3292,-,-,2017/04/04 23:00:00+00,2017/04/04 23:00:00+00,159505,2560,Revenue,Inform CPI Limited,April,2017,14
Tunbridge Wells Borough Council,Central Services,102,FI,FINANCE,ACCOUNTANCY,SUBS TO ORGANISATIONS,3730,-,-,2017/04/04 23:00:00+00,2017/04/04 23:00:00+00,159241,2065,Revenue,LAVAT Consulting Limited,April,2017,15
Tunbridge Wells Borough Council,Central Services,102,PS,PROPERTY SERVICES,BUILDING SERVICES,AGENCY STAFF,100,-,-,2017/04/04 23:00:00+00,2017/04/04 23:00:00+00,159531,1856.5400390625,Revenue,Hays Montrose,April,2017,16
Tunbridge Wells Borough Council,Housing Services,108,HO,HOUSING,HOUSING NEEDS SERVICE,HOMELESSNESS EXPENSES,3912,SYRIAN REFUGEES,EV0587,2017/04/04 23:00:00+00,2017/04/04 23:00:00+00,159535,1733.86999511719,Revenue,Aklet Ltd   t/a Martin & Co,April,2017,17
Tunbridge Wells Borough Council,Central Services,102,PS,PROPERTY SERVICES,BUILDING SERVICES,AGENCY STAFF,100,-,-,2017/04/04 23:00:00+00,2017/04/04 23:00:00+00,159532,1682.75,Revenue,Hays Montrose,April,2017,18
Tunbridge Wells Borough Council,Cultural and Related Services,104,PS,PROPERTY SERVICES,PARKS & GROUNDS,PLANNED MAINTENANCE BUILDINGS,2000,PROPERTY CONTRACTS,PH0600,2017/04/04 23:00:00+00,2017/04/04 23:00:00+00,159501,1485.60998535156,Revenue,Birkby Construction Ltd,April,2017,19
Tunbridge Wells Borough Council,Central Services,102,RB,REVS & BENS,REVS & BENS ADMINISTRATION,CONSULTANTS FEES,3292,-,-,2017/04/04 23:00:00+00,2017/04/04 23:00:00+00,159504,1284,Revenue,Inform CPI Limited,April,2017,20
Tunbridge Wells Borough Council,Environmental and regulatory services ,105,PK,PARKS,TUNBRIDGE WELLS-CEMETERIES,Grounds Maint. Sodexo Contract,2054,-,-,2017/04/04 23:00:00+00,2017/04/04 23:00:00+00,159539,1235.76000976563,Revenue,Sodexo Ltd,April,2017,21
Tunbridge Wells Borough Council,Highways and Transport Services,107,PA,PARKING,CRESCENT ROAD CAR PARK,CONTRACT CLEANING,2510,-,-,2017/04/04 23:00:00+00,2017/04/04 23:00:00+00,159524,1000,Revenue,D R M Rowswell,April,2017,22
Tunbridge Wells Borough Council,Highways and Transport Services,107,PA,PARKING,PARKING ADMIN & ENFORCEMENT,UNIFORMS & PROTECTIVE CLOTHING,3100,-,-,2017/04/03 23:00:00+00,2017/04/04 23:00:00+00,159495,713.900024414063,Revenue,Keltic Clothing Ltd,April,2017,23
Tunbridge Wells Borough Council,Central Services,102,RB,REVS & BENS,REVS & BENS ADMINISTRATION,CONSULTANTS FEES,3292,-,-,2017/04/04 23:00:00+00,2017/04/04 23:00:00+00,159507,712,Revenue,Inform CPI Limited,April,2017,24
Tunbridge Wells Borough Council,Environmental and regulatory services ,105,PK,PARKS,CREMATORIUM,Grounds Maint. Sodexo Contract,2054,-,-,2017/04/03 23:00:00+00,2017/04/04 23:00:00+00,159288,581.099975585938,Revenue,Sodexo Ltd,April,2017,25
Tunbridge Wells Borough Council,Housing Services,108,FI,FINANCE,RENT DEPOSIT SCHEME,DEBTORS,8510,-,-,2017/04/04 23:00:00+00,2017/04/04 23:00:00+00,159551,541.659973144531,Revenue,Star Property Investment and Management,April,2017,26
Tunbridge Wells Borough Council,Housing Services,108,HO,HOUSING,BED & BREAKFAST COSTS,RENTS/HIRE OF PREMISES,2200,-,-,2017/04/04 23:00:00+00,2017/04/04 23:00:00+00,159519,490,Revenue,This data has been redacted under the Data Protection Act,April,2017,27
Tunbridge Wells Borough Council,Central Services,102,RB,REVS & BENS,REVS & BENS ADMINISTRATION,CONSULTANTS FEES,3292,-,-,2017/04/04 23:00:00+00,2017/04/04 23:00:00+00,159500,456,Revenue,Inform CPI Limited,April,2017,28
Tunbridge Wells Borough Council,Housing Services,108,HO,HOUSING,BED & BREAKFAST COSTS,RENTS/HIRE OF PREMISES,2200,-,-,2017/04/04 23:00:00+00,2017/04/04 23:00:00+00,159520,420,Revenue,This data has been redacted under the Data Protection Act,April,2017,29
Tunbridge Wells Borough Council,Central Services,102,PS,PROPERTY SERVICES,BUILDING SERVICES,BOOKS & PUBLICATIONS,3190,-,-,2017/04/04 23:00:00+00,2017/04/04 23:00:00+00,159533,376,Revenue,Sweet & Maxwell Ltd,April,2017,30
Tunbridge Wells Borough Council,Housing Services,108,HO,HOUSING,BED & BREAKFAST COSTS,RENTS/HIRE OF PREMISES,2200,-,-,2017/04/04 23:00:00+00,2017/04/04 23:00:00+00,159516,350,Revenue,This data has been redacted under the Data Protection Act,April,2017,31
Tunbridge Wells Borough Council,Housing Services,108,HO,HOUSING,TEMPORARY ACCOMMODATION,CONTRACT CLEANING,2510,-,-,2017/04/04 23:00:00+00,2017/04/04 23:00:00+00,159527,325,Revenue,D R M Rowswell,April,2017,32
Tunbridge Wells Borough Council,Housing Services,108,HO,HOUSING,BED & BREAKFAST COSTS,RENTS/HIRE OF PREMISES,2200,-,-,2017/04/04 23:00:00+00,2017/04/04 23:00:00+00,159517,312.5,Revenue,This data has been redacted under the Data Protection Act,April,2017,33
Tunbridge Wells Borough Council,Housing Services,108,HO,HOUSING,BED & BREAKFAST COSTS,RENTS/HIRE OF PREMISES,2200,-,-,2017/04/04 23:00:00+00,2017/04/04 23:00:00+00,159518,300,Revenue,This data has been redacted under the Data Protection Act,April,2017,34
Tunbridge Wells Borough Council,Housing Services,108,HO,HOUSING,BED & BREAKFAST COSTS,RENTS/HIRE OF PREMISES,2200,-,-,2017/04/04 23:00:00+00,2017/04/04 23:00:00+00,159513,262.5,Revenue,This data has been redacted under the Data Protection Act,April,2017,35
Tunbridge Wells Borough Council,Environmental and regulatory services ,105,PK,PARKS,CREMATORIUM,Grounds Maint. Sodexo Contract,2054,-,-,2017/04/10 23:00:00+00,2017/04/10 23:00:00+00,159553,70737.640625,Revenue,Sodexo Ltd,April,2017,36
Tunbridge Wells Borough Council,Environmental and regulatory services ,105,PS,PROPERTY SERVICES,PUBLIC CONVENIENCES,OTHER FEES,3330,SOUTHBOROUGH WC,PH0513,2017/04/10 23:00:00+00,2017/04/10 23:00:00+00,159209,20000,Revenue,Kent County Council,April,2017,37
Tunbridge Wells Borough Council,Cultural and Related Services,104,AH,ASSEMBLY HALL,A-HALL COUNCIL SHOWS,SHOW FEES,3380,170108 RUMOURS OF FLEETWOOD MA,A17A05,2017/04/09 23:00:00+00,2017/04/10 23:00:00+00,159536,10057.3701171875,Revenue,Cole Music Productions (UK) Ltd,April,2017,38
Tunbridge Wells Borough Council,Central Services,102,CU,COMMUNITY SAFTY UNIT,HEAD OF COMMUNITIES & ENGAGE,PROJECTS & INITIATIVES,3910,FAMILIES FIRST,EV0070,2017/04/10 23:00:00+00,2017/04/10 23:00:00+00,159623,8915,Revenue,Kent County Council,April,2017,39
Tunbridge Wells Borough Council,Central Services,102,FI,FINANCE,FMS UPGRADE,COMPUTER SOFTWARE,8341,-,-,2017/04/09 23:00:00+00,2017/04/10 23:00:00+00,159236,8453,Capital,Advanced Business Solutions,April,2017,40
Tunbridge Wells Borough Council,Housing Services,108,HP,HOUSING (PRIVATE SECTOR),DISABLED FACILITIES GRANTS,CAPITAL GRANTS PAYABLE,8355,-,-,2017/04/10 23:00:00+00,2017/04/10 23:00:00+00,159799,6381,Capital,This data has been redacted under the Data Protection Act,April,2017,41
Tunbridge Wells Borough Council,Central Services,102,FI,FINANCE,CORPORATE COSTS,TREASURY MANAGEMENT FEES,3333,-,-,2017/04/10 23:00:00+00,2017/04/10 23:00:00+00,159761,6267,Revenue,CAPITA TREASURY SOLUTIONS LTD,April,2017,42
Tunbridge Wells Borough Council,Central Services,102,HR,HUMAN RESOURCES,HUMAN RESOURCES,SUBSCRIPTIONS S E EMPLOYERS,3732,-,-,2017/04/10 23:00:00+00,2017/04/10 23:00:00+00,159185,5068.7900390625,Revenue,South East Employers,April,2017,43
Tunbridge Wells Borough Council,Central Services,102,GW,GATEWAY CUSTOMER SERVICES,GATEWAY,TELEPHONE COSTS,3510,CALL CENTRE,EV0341,2017/04/10 23:00:00+00,2017/04/10 23:00:00+00,159785,4920.990234375,Revenue,Daisy Telecoms Ltd,April,2017,44
Tunbridge Wells Borough Council,Housing Services,108,HO,HOUSING,RENT DEPOSIT SCHEME,DEBTORS,8510,-,-,2017/04/10 23:00:00+00,2017/04/10 23:00:00+00,159736,4050,Revenue,Andrews Letting Management,April,2017,45
Tunbridge Wells Borough Council,Planning Services,110,ED,ECONOMIC DEVELOPMENT,ECONOMIC DEVELOPMENT,COURIER SERVICE,3540,-,-,2017/04/09 23:00:00+00,2017/04/10 23:00:00+00,159512,2822.19995117188,Revenue,Pear Media Ltd,April,2017,46
Tunbridge Wells Borough Council,Cultural and Related Services,104,PK,PARKS,PARKS & GROUNDS,GROUND MAINT NON CONTRACT,2060,PLAY AREAS,PL0399,2017/04/10 23:00:00+00,2017/04/10 23:00:00+00,159721,2585,Revenue,Foster Landscapes Ltd,April,2017,47
Tunbridge Wells Borough Council,Central Services,102,FI,FINANCE,I T SERVICE,IT SOFTWARE,3590,SOFTWARE MAINTENANCE,EV0328,2017/04/10 23:00:00+00,2017/04/10 23:00:00+00,159555,2548.28002929688,Revenue,Maidstone Borough Council,April,2017,48
Tunbridge Wells Borough Council,Housing Services,108,HO,HOUSING,RENT DEPOSIT SCHEME,DEBTORS,8510,-,-,2017/04/10 23:00:00+00,2017/04/10 23:00:00+00,159737,2385,Revenue,Ibbett Moseley Surveyors LLP Matta Property.,April,2017,49
Tunbridge Wells Borough Council,Central Services,102,CO,COMMUNICATIONS,COMMUNICATIONS AND ENGAGEMENT,LICENCES (INC PRS/PPL),3390,-,-,2017/04/09 23:00:00+00,2017/04/10 23:00:00+00,159487,2350,Revenue,Access Intelligence Media and Communications,April,2017,50
Tunbridge Wells Borough Council,Environmental and regulatory services ,105,FI,FINANCE,FOOD & COMMERCIAL,SALARIES,20,-,-,2017/04/10 23:00:00+00,2017/04/10 23:00:00+00,159788,2101.73999023438,Revenue,Fideliti Ltd,April,2017,51
Tunbridge Wells Borough Council,Housing Services,108,HO,HOUSING,BED & BREAKFAST COSTS,RENTS/HIRE OF PREMISES,2200,-,-,2017/04/10 23:00:00+00,2017/04/10 23:00:00+00,159653,1841,Revenue,LESSHOMELESS LIMITED,April,2017,52
Tunbridge Wells Borough Council,Central Services,102,FI,FINANCE,I T SERVICE,IT SOFTWARE,3590,SOFTWARE MAINTENANCE,EV0328,2017/04/10 23:00:00+00,2017/04/10 23:00:00+00,159556,1769.64001464844,Revenue,Maidstone Borough Council,April,2017,53
Tunbridge Wells Borough Council,Central Services,102,FI,FINANCE,MOBILE PHONE CREDITOR,CREDITORS,9009,-,-,2017/04/10 23:00:00+00,2017/04/10 23:00:00+00,159755,1589.64001464844,Revenue,O2 UK Limited,April,2017,54
Tunbridge Wells Borough Council,Planning Services,110,PL,PLANNING,PLANNING MANAGEMENT,SUBS TO ORGANISATIONS,3730,-,-,2017/04/10 23:00:00+00,2017/04/10 23:00:00+00,159654,1450,Revenue,POS ENTERPRISES LTD,April,2017,55
Tunbridge Wells Borough Council,Central Services,102,FM,FACILITIES MANAGEMENT,POSTAL CHARGES ACCOUNT,CASH TRANSFERS,9100,-,-,2017/04/10 23:00:00+00,2017/04/10 23:00:00+00,159639,1449.42004394531,Revenue,Royal Mail  Group plc,April,2017,56
Tunbridge Wells Borough Council,Cultural and Related Services,104,AH,ASSEMBLY HALL,A-HALL MARKETING,PROMOTION,3450,-,-,2017/04/09 23:00:00+00,2017/04/10 23:00:00+00,159542,1326.01000976563,Revenue,Target Live Limited,April,2017,57
Tunbridge Wells Borough Council,Planning Services,110,PL,PLANNING,DEVELOPMENT MANAGEMENT,PLANNING CONSULTANT FEES,3270,-,-,2017/04/09 23:00:00+00,2017/04/10 23:00:00+00,159506,1324.40002441406,Revenue,RANDSTAD CPE LIMITED,April,2017,58
Tunbridge Wells Borough Council,Planning Services,110,PL,PLANNING,DEVELOPMENT MANAGEMENT,PLANNING CONSULTANT FEES,3270,-,-,2017/04/09 23:00:00+00,2017/04/10 23:00:00+00,159508,1272.80004882813,Revenue,RANDSTAD CPE LIMITED,April,2017,59
Tunbridge Wells Borough Council,Cultural and Related Services,104,AM,ASSEMBLY HALL MARKETING,A-HALL MARKETING,PROMOTION - WHATS ON MAG,3456,-,-,2017/04/09 23:00:00+00,2017/04/10 23:00:00+00,159566,1226.5,Revenue,Corporate Document Services Limited,April,2017,60
Tunbridge Wells Borough Council,Planning Services,110,PL,PLANNING,DEVELOPMENT MANAGEMENT,PLANNING CONSULTANT FEES,3270,-,-,2017/04/10 23:00:00+00,2017/04/10 23:00:00+00,159624,1225,Revenue,Rural Planning Limited,April,2017,61
Tunbridge Wells Borough Council,Cultural and Related Services,104,AH,ASSEMBLY HALL,A-HALL MARKETING,PROMOTION,3450,-,-,2017/04/09 23:00:00+00,2017/04/10 23:00:00+00,159554,1160,Revenue,Target Live Limited,April,2017,62
Tunbridge Wells Borough Council,Housing Services,108,HO,HOUSING,RENT DEPOSIT SCHEME,DEBTORS,8510,-,-,2017/04/10 23:00:00+00,2017/04/10 23:00:00+00,159704,1094.93005371094,Revenue,Rooms,April,2017,63
Tunbridge Wells Borough Council,Environmental and regulatory services ,105,CR,CREMATORIUM,CREMATORIUM,UNIFORMS & PROTECTIVE CLOTHING,3100,-,-,2017/04/09 23:00:00+00,2017/04/10 23:00:00+00,159530,1012,Revenue,Lyn Oakes Limited,April,2017,64
Tunbridge Wells Borough Council,Environmental and regulatory services ,105,HE,HEALTHY COMMUNITIES,CHOOSING HEALTH,EXTERNAL TRAINING,204,CHSG HEALTH HEALTHY WEIGHT,EV0951,2017/04/10 23:00:00+00,2017/04/10 23:00:00+00,159564,1000,Revenue,Counterweight Limited,April,2017,65
Tunbridge Wells Borough Council,Housing Services,108,HO,HOUSING,HOUSING NEEDS SERVICE,SUBS TO ORGANISATIONS,3730,-,-,2017/04/10 23:00:00+00,2017/04/10 23:00:00+00,159644,1000,Revenue,Canterbury City Council,April,2017,66
Tunbridge Wells Borough Council,Environmental and regulatory services ,105,PK,PARKS,CREMATORIUM,Grounds Maint. Sodexo Contract,2054,-,-,2017/04/09 23:00:00+00,2017/04/10 23:00:00+00,159537,962.700012207031,Revenue,Coblands Nurseries Ltd (Glendale Horticulture,April,2017,67
Tunbridge Wells Borough Council,Cultural and Related Services,104,PK,PARKS,PARKS & GROUNDS,GROUND MAINT NON CONTRACT,2060,PLAY AREAS,PL0399,2017/04/10 23:00:00+00,2017/04/10 23:00:00+00,159722,926,Revenue,Foster Landscapes Ltd,April,2017,68
Tunbridge Wells Borough Council,Environmental and regulatory services ,105,LI,LICENSING,LICENSING,COGS-NON FOOD,3080,VEHICLE LICENSING - PH,EV0421,2017/04/10 23:00:00+00,2017/04/10 23:00:00+00,159571,900,Revenue,Matfield MOT Centre,April,2017,69
Tunbridge Wells Borough Council,Highways and Transport Services,107,PA,PARKING,PARKING ADMIN & ENFORCEMENT,SIGNING & LINING WORKS,3920,-,-,2017/04/10 23:00:00+00,2017/04/10 23:00:00+00,159773,885,Revenue,ARCHWAY HIGHWAY SERVICES LTD,April,2017,70
Tunbridge Wells Borough Council,Central Services,102,RB,REVS & BENS,REVS & BENS ADMINISTRATION,IT SOFTWARE,3590,-,-,2017/04/10 23:00:00+00,2017/04/10 23:00:00+00,159620,877.5,Revenue,Capita Business Services Ltd,April,2017,71
Tunbridge Wells Borough Council,Cultural and Related Services,104,PK,PARKS,PARKS & GROUNDS,GROUND MAINT NON CONTRACT,2060,BRITAIN IN BLOOM,PL0395,2017/04/10 23:00:00+00,2017/04/10 23:00:00+00,159695,789.299987792969,Revenue,Tate Fencing Ltd,April,2017,72
Tunbridge Wells Borough Council,Central Services,102,HR,HUMAN RESOURCES,STAFF WELFARE,Medical Fees,3340,-,-,2017/04/10 23:00:00+00,2017/04/10 23:00:00+00,159543,651.840026855469,Revenue,The Preventative Healthcare Company Ltd,April,2017,73
Tunbridge Wells Borough Council,Environmental and regulatory services ,105,CR,CREMATORIUM,CREMATORIUM,Grounds Maint. Sodexo Contract,2054,-,-,2017/04/10 23:00:00+00,2017/04/10 23:00:00+00,159744,644.450012207031,Revenue,Veolia ES (UK) Ltd,April,2017,74
Tunbridge Wells Borough Council,Environmental and regulatory services ,105,PK,PARKS,TUNBRIDGE WELLS-CEMETERIES,GROUNDS MAINT CONTRACTS,2050,-,-,2017/04/10 23:00:00+00,2017/04/10 23:00:00+00,159789,640,Revenue,Treework,April,2017,75
Tunbridge Wells Borough Council,Highways and Transport Services,107,PA,PARKING,TORRINGTON CAR PARK,CONTRACT CLEANING,2510,-,-,2017/04/10 23:00:00+00,2017/04/10 23:00:00+00,159671,520,Revenue,W B Stanley,April,2017,76
Tunbridge Wells Borough Council,Environmental and regulatory services ,105,EH,ENVIRONMENTAL HEALTH,FOOD & COMMERCIAL,AGENCY STAFF,100,-,-,2017/04/09 23:00:00+00,2017/04/10 23:00:00+00,159568,402,Revenue,Recruitment Solutions,April,2017,77
Tunbridge Wells Borough Council,Housing Services,108,HO,HOUSING,BED & BREAKFAST COSTS,RENTS/HIRE OF PREMISES,2200,-,-,2017/04/10 23:00:00+00,2017/04/10 23:00:00+00,159680,350,Revenue,This data has been redacted under the Data Protection Act,April,2017,78
Tunbridge Wells Borough Council,Cultural and Related Services,104,PK,PARKS,PARKS & GROUNDS,BIO-MASS FUEL,2130,-,-,2017/04/10 23:00:00+00,2017/04/10 23:00:00+00,159557,348.5,Revenue,BALCAS TIMBER LIMITED,April,2017,79
Tunbridge Wells Borough Council,Housing Services,108,HO,HOUSING,BED & BREAKFAST COSTS,RENTS/HIRE OF PREMISES,2200,-,-,2017/04/10 23:00:00+00,2017/04/10 23:00:00+00,159679,312.5,Revenue,This data has been redacted under the Data Protection Act,April,2017,80
Tunbridge Wells Borough Council,Housing Services,108,HO,HOUSING,BED & BREAKFAST COSTS,RENTS/HIRE OF PREMISES,2200,-,-,2017/04/10 23:00:00+00,2017/04/10 23:00:00+00,159682,300,Revenue,This data has been redacted under the Data Protection Act,April,2017,81
Tunbridge Wells Borough Council,Housing Services,108,HO,HOUSING,BED & BREAKFAST COSTS,RENTS/HIRE OF PREMISES,2200,-,-,2017/04/10 23:00:00+00,2017/04/10 23:00:00+00,159678,250,Revenue,This data has been redacted under the Data Protection Act,April,2017,82
Tunbridge Wells Borough Council,Housing Services,108,HO,HOUSING,BED & BREAKFAST COSTS,RENTS/HIRE OF PREMISES,2200,-,-,2017/04/10 23:00:00+00,2017/04/10 23:00:00+00,159681,250,Revenue,This data has been redacted under the Data Protection Act,April,2017,83
Tunbridge Wells Borough Council,Environmental and regulatory services ,105,FI,FINANCE,CCTV,TELEPHONES - CCTV TRANS LINKS,3512,-,-,2017/04/18 23:00:00+00,2017/04/18 23:00:00+00,159823,29081.48046875,Revenue,British Telecommunications plc,April,2017,84
Tunbridge Wells Borough Council,Highways and Transport Services,107,PA,PARKING,SURFACE CAR PARKS,SIGNING & LINING WORKS,3920,UNION HOUSE,PT0108,2017/04/18 23:00:00+00,2017/04/18 23:00:00+00,159210,22560,Revenue,Contract Sign Systems Limited,April,2017,85
Tunbridge Wells Borough Council,Central Services,102,FI,FINANCE,GATEWAY,EQUIPMENT PURCHASE/MTCE,3000,CALL CENTRE,EV0341,2017/04/18 23:00:00+00,2017/04/18 23:00:00+00,159544,22202.689453125,Revenue,Maidstone Borough Council,April,2017,86
Tunbridge Wells Borough Council,Environmental and regulatory services ,105,EN,ENVIRONMENT & STREET SCENE,PUBLIC REALM IMPROVEMENTS,"CONSTRUCTION, RENOVATION, ETC",8311,PHASE 1: PUBLIC REALM IMPROV,PE0759,2017/04/18 23:00:00+00,2017/04/18 23:00:00+00,159050,20949.119140625,Capital,Enterprise (AOL) Limited,April,2017,87
Tunbridge Wells Borough Council,Highways and Transport Services,107,PS,PROPERTY SERVICES,TORRINGTON CAR PARK,PLANNED MAINTENANCE BUILDINGS,2000,-,-,2017/04/17 23:00:00+00,2017/04/18 23:00:00+00,159567,17255,Revenue,DCB (Kent) Ltd,April,2017,88
Tunbridge Wells Borough Council,Environmental and regulatory services ,105,CU,COMMUNITY SAFTY UNIT,CCTV,EXTERNAL CONTRACT PAYMENTS,3220,-,-,2017/04/18 23:00:00+00,2017/04/18 23:00:00+00,159696,17192.1796875,Revenue,OCS Group UK Limited t/a Cannon,April,2017,89
Tunbridge Wells Borough Council,Cultural and Related Services,104,AH,ASSEMBLY HALL,A-HALL COUNCIL SHOWS,SHOW FEES,3380,170226 SORRY NO CLUE,A17B08,2017/04/18 23:00:00+00,2017/04/18 23:00:00+00,159702,16434.66015625,Revenue,Random Entertainment Ltd,April,2017,90
Tunbridge Wells Borough Council,Central Services,102,FM,FACILITIES MANAGEMENT,TOWN HALL,CONTRACT CLEANING,2510,PROPERTY CLEANING CONTRACT,PH0590,2017/04/17 23:00:00+00,2017/04/18 23:00:00+00,159746,15075.7998046875,Revenue,CORDANT CLEANING LTD,April,2017,91
Tunbridge Wells Borough Council,Central Services,102,FI,FINANCE,DEMOCRATIC MANAGEMENT,SUBSCRIPTIONS - LGA,3731,-,-,2017/04/17 23:00:00+00,2017/04/18 23:00:00+00,159794,10450,Revenue,Local Government Association,April,2017,92
Tunbridge Wells Borough Council,Environmental and regulatory services ,105,CU,COMMUNITY SAFTY UNIT,CCTV,TELEPHONES - CCTV TRANS LINKS,3512,-,-,2017/04/18 23:00:00+00,2017/04/18 23:00:00+00,159503,7162.5,Revenue,Tonbridge & Malling Borough Co,April,2017,93
Tunbridge Wells Borough Council,Housing Services,108,HO,HOUSING,RENT DEPOSIT SCHEME,DEBTORS,8510,-,-,2017/04/18 23:00:00+00,2017/04/18 23:00:00+00,160007,4465,Revenue,Bravestar Ltd,April,2017,94
Tunbridge Wells Borough Council,Environmental and regulatory services ,105,PK,PARKS,CREMATORIUM,Grounds Maint. Sodexo Contract,2054,-,-,2017/04/11 23:00:00+00,2017/04/18 23:00:00+00,159625,4257,Revenue,Isle Landscapers Ltd,April,2017,95
Tunbridge Wells Borough Council,Central Services,102,CT,COMMITTEE,MEMBERS TABLETS,COMPUTER SOFTWARE,8341,SOFTWARE MAINTENANCE,EV0328,2017/04/11 23:00:00+00,2017/04/18 23:00:00+00,159766,3900,Capital,Modern Mindset Ltd,April,2017,96
Tunbridge Wells Borough Council,Housing Services,108,HO,HOUSING,HOUSING NEEDS SERVICE,SUBS TO ORGANISATIONS,3730,-,-,2017/04/18 23:00:00+00,2017/04/18 23:00:00+00,159787,3500,Revenue,Action with Communities in Rural Kent,April,2017,97
Tunbridge Wells Borough Council,Cultural and Related Services,104,PK,PARKS,PARKS & GROUNDS,Horticulture,2061,BRITAIN IN BLOOM,PL0395,2017/04/11 23:00:00+00,2017/04/18 23:00:00+00,159586,3461.8798828125,Revenue,JAMI Q'S (WREXHAM) LTD,April,2017,98
Tunbridge Wells Borough Council,Cultural and Related Services,104,AH,ASSEMBLY HALL,A-HALL COUNCIL SHOWS,SHOW FEES,3380,170304 LEE HURST,A17C02,2017/04/11 23:00:00+00,2017/04/18 23:00:00+00,159820,3250.55004882813,Revenue,Sandy Dog Ltd,April,2017,99
Tunbridge Wells Borough Council,Cultural and Related Services,104,PK,PARKS,PARKS & GROUNDS,GROUND MAINT NON CONTRACT,2060,PLAY AREAS,PL0399,2017/04/11 23:00:00+00,2017/04/18 23:00:00+00,159741,3100,Revenue,THE PLAY INSPECTION COMPANY,April,2017,100
Tunbridge Wells Borough Council,Cultural and Related Services,104,AB,ASSEMBLY HALL BAR,TW ICE RINK,AGENCY STAFF,100,-,-,2017/04/23 23:00:00+00,2017/04/25 23:00:00+00,160162,1067.5,Revenue,Triforce Security,April,2017,101
Tunbridge Wells Borough Council,Housing Services,108,HP,HOUSING (PRIVATE SECTOR),PRIVATE SECTOR HOUSING,PROFESSIONAL SUBSCRIPTIONS,120,-,-,2017/04/20 23:00:00+00,2017/04/25 23:00:00+00,159642,1033.90002441406,Revenue,Advanced Legal Solutions Ltd,April,2017,102
Tunbridge Wells Borough Council,Environmental and regulatory services ,105,CS,CLIENT SERVICES (DEPOT),REFUSE COLLECTION SERVICES,EXTNLL CONTRACT/CLINICAL WASTE,3224,-,-,2017/04/20 23:00:00+00,2017/04/25 23:00:00+00,159733,1024.83996582031,Revenue,OCS Group UK Limited t/a Cannon,April,2017,103
Tunbridge Wells Borough Council,Cultural and Related Services,104,AH,ASSEMBLY HALL,A-HALL MARKETING,PROMOTION,3450,-,-,2017/04/25 23:00:00+00,2017/04/25 23:00:00+00,159727,1015,Revenue,Local World Limited,April,2017,104
Tunbridge Wells Borough Council,Highways and Transport Services,107,PA,PARKING,PARKING ADMIN & ENFORCEMENT,SALARIES,20,-,-,2017/04/24 23:00:00+00,2017/04/25 23:00:00+00,159949,979.200012207031,Revenue,Robson Newman Ltd,April,2017,105
Tunbridge Wells Borough Council,Environmental and regulatory services ,105,CS,CLIENT SERVICES (DEPOT),CLEANER BOROUGH,EXTERNAL CONTRACT PAYMENTS,3220,-,-,2017/04/20 23:00:00+00,2017/04/25 23:00:00+00,159778,850.5,Revenue,Viking Oak Kennels,April,2017,106
Tunbridge Wells Borough Council,Central Services,102,PS,PROPERTY SERVICES,BUILDING SERVICES,AGENCY STAFF,100,-,-,2017/04/24 23:00:00+00,2017/04/25 23:00:00+00,160149,799.049987792969,Revenue,Hays Montrose,April,2017,107
Tunbridge Wells Borough Council,Highways and Transport Services,107,PA,PARKING,PARKING ADMIN & ENFORCEMENT,SALARIES,20,-,-,2017/04/24 23:00:00+00,2017/04/25 23:00:00+00,159762,788.799987792969,Revenue,Robson Newman Ltd,April,2017,108
Tunbridge Wells Borough Council,Housing Services,108,HP,HOUSING (PRIVATE SECTOR),DISABLED FACILITIES GRANTS,CAPITAL GRANTS PAYABLE,8355,-,-,2017/04/20 23:00:00+00,2017/04/25 23:00:00+00,159703,771,Capital,Family Mosaic Housing,April,2017,109
Tunbridge Wells Borough Council,Environmental and regulatory services ,105,CR,CREMATORIUM,CREMATORIUM,Medical Fees,3340,-,-,2017/04/25 23:00:00+00,2017/04/25 23:00:00+00,160167,766.099975585938,Revenue,This data has been redacted under the Data Protection Act,April,2017,110
Tunbridge Wells Borough Council,Central Services,102,PL,PLANNING,BUILDING SERVICES,AGENCY STAFF,100,-,-,2017/04/24 23:00:00+00,2017/04/25 23:00:00+00,159918,720.799987792969,Revenue,Hays Montrose,April,2017,111
Tunbridge Wells Borough Council,Cultural and Related Services,104,PS,PROPERTY SERVICES,A-HALL TECHNICAL,RESPONSIVE REPAIRS BUILDINGS,2020,PROPERTY CONTRACTS,PH0600,2017/04/20 23:00:00+00,2017/04/25 23:00:00+00,159797,713.400024414063,Revenue,OCO Limited,April,2017,112
Tunbridge Wells Borough Council,Planning Services,110,PL,PLANNING,PLANNING MANAGEMENT,BOOKS & PUBLICATIONS,3190,-,-,2017/04/24 23:00:00+00,2017/04/25 23:00:00+00,159765,680,Revenue,Haymarket Media Group Ltd,April,2017,113
Tunbridge Wells Borough Council,Central Services,102,PS,PROPERTY SERVICES,BUILDING SERVICES,AGENCY STAFF,100,-,-,2017/04/24 23:00:00+00,2017/04/25 23:00:00+00,160148,576.640014648438,Revenue,Hays Montrose,April,2017,114
Tunbridge Wells Borough Council,Highways and Transport Services,107,PA,PARKING,PARKING ADMIN & ENFORCEMENT,SALARIES,20,-,-,2017/04/25 23:00:00+00,2017/04/25 23:00:00+00,160194,571.200012207031,Revenue,Robson Newman Ltd,April,2017,115
Tunbridge Wells Borough Council,Highways and Transport Services,107,PA,PARKING,TORRINGTON CAR PARK,CONTRACT CLEANING,2510,-,-,2017/04/25 23:00:00+00,2017/04/25 23:00:00+00,160185,570,Revenue,W B Stanley,April,2017,116
Tunbridge Wells Borough Council,Planning Services,110,ED,ECONOMIC DEVELOPMENT,ECONOMIC DEVELOPMENT,PROJECTS & INITIATIVES,3910,-,-,2017/04/24 23:00:00+00,2017/04/25 23:00:00+00,159563,520,Revenue,Flo-Print Colour Ltd,April,2017,117
Tunbridge Wells Borough Council,Cultural and Related Services,104,AH,ASSEMBLY HALL,A-HALL FRONT OF HOUSE,TRADE REFUSE CHARGES,2520,-,-,2017/04/20 23:00:00+00,2017/04/25 23:00:00+00,159750,507.899993896484,Revenue,Veolia ES (UK) Ltd,April,2017,118
Tunbridge Wells Borough Council,Housing Services,108,HO,HOUSING,BED & BREAKFAST COSTS,RENTS/HIRE OF PREMISES,2200,-,-,2017/04/25 23:00:00+00,2017/04/25 23:00:00+00,160140,490,Revenue,This data has been redacted under the Data Protection Act,April,2017,119
Tunbridge Wells Borough Council,Cultural and Related Services,104,AH,ASSEMBLY HALL,A-HALL MARKETING,PROMOTION,3450,WEBSITE,EV0342,2017/04/25 23:00:00+00,2017/04/25 23:00:00+00,159658,483,Revenue,TINCAN LIMITED,April,2017,120
Tunbridge Wells Borough Council,Cultural and Related Services,104,PK,PARKS,PARKS & GROUNDS,PROJECTS & INITIATIVES,3910,GROSVENOR/HILBERT HLF,PE0120,2017/04/25 23:00:00+00,2017/04/25 23:00:00+00,160127,474.100006103516,Revenue,Coolings,April,2017,121
Tunbridge Wells Borough Council,Highways and Transport Services,107,PA,PARKING,GREAT HALL CAR PARK,ELECTRICITY,2140,-,-,2017/04/24 23:00:00+00,2017/04/25 23:00:00+00,160163,442.880004882813,Revenue,Kent County Council (KCS),April,2017,122
Tunbridge Wells Borough Council,Housing Services,108,HO,HOUSING,BED & BREAKFAST COSTS,RENTS/HIRE OF PREMISES,2200,-,-,2017/04/25 23:00:00+00,2017/04/25 23:00:00+00,160139,437.5,Revenue,This data has been redacted under the Data Protection Act,April,2017,123
Tunbridge Wells Borough Council,Central Services,102,FI,FINANCE,SALARY SACRIFICES,LOANS - UNSECURED,8530,GYM SALARY SACRIFICE,GYM000,2017/04/25 23:00:00+00,2017/04/25 23:00:00+00,160010,416.5,Revenue,Fusion Lifestyle,April,2017,124
Tunbridge Wells Borough Council,Planning Services,110,HE,HEALTHY COMMUNITIES,COMMUNITY & GRANTS,GRANTS,3750,-,-,2017/04/24 23:00:00+00,2017/04/25 23:00:00+00,160106,400,Revenue,Fegans Child & Family Care,April,2017,125
Tunbridge Wells Borough Council,Environmental and regulatory services ,105,CS,CLIENT SERVICES (DEPOT),NORTH FARM DEPOT,FIRE & SECURITY COSTS,2080,-,-,2017/04/20 23:00:00+00,2017/04/25 23:00:00+00,159627,383.339996337891,Revenue,Emprise Services plc,April,2017,126
Tunbridge Wells Borough Council,Central Services,102,TR,TRANSFORMATION AND DELIVERY,JOINT KENT CHANNEL MIGRATION,CONFERENCES/SEMINARS,205,-,-,2017/04/24 23:00:00+00,2017/04/25 23:00:00+00,160181,375,Revenue,Dods Parliamentary Communications Ltd,April,2017,127
Tunbridge Wells Borough Council,Central Services,102,FM,FACILITIES MANAGEMENT,TOWN HALL,MAINT/SERVICING PLANT,2030,-,-,2017/04/20 23:00:00+00,2017/04/25 23:00:00+00,159657,373.799987792969,Revenue,EHV Services (Maintenance) Ltd,April,2017,128
Tunbridge Wells Borough Council,Housing Services,108,HO,HOUSING,BED & BREAKFAST COSTS,RENTS/HIRE OF PREMISES,2200,-,-,2017/04/24 23:00:00+00,2017/04/25 23:00:00+00,159961,350,Revenue,This data has been redacted under the Data Protection Act,April,2017,129
Tunbridge Wells Borough Council,Housing Services,108,HO,HOUSING,BED & BREAKFAST COSTS,RENTS/HIRE OF PREMISES,2200,-,-,2017/04/25 23:00:00+00,2017/04/25 23:00:00+00,160142,350,Revenue,This data has been redacted under the Data Protection Act,April,2017,130
Tunbridge Wells Borough Council,Housing Services,108,PS,PROPERTY SERVICES,TEMPORARY ACCOMMODATION,ELECTRICITY,2140,-,-,2017/04/24 23:00:00+00,2017/04/25 23:00:00+00,160154,325.880004882813,Revenue,Kent County Council (KCS),April,2017,131
Tunbridge Wells Borough Council,Environmental and regulatory services ,105,PK,PARKS,CREMATORIUM,Horticulture,2061,-,-,2017/04/24 23:00:00+00,2017/04/25 23:00:00+00,160160,320,Revenue,Treework,April,2017,132
Tunbridge Wells Borough Council,Environmental and regulatory services ,105,CS,CLIENT SERVICES (DEPOT),NORTH FARM DEPOT,FIRE & SECURITY COSTS,2080,-,-,2017/04/20 23:00:00+00,2017/04/25 23:00:00+00,159632,309,Revenue,Emprise Services plc,April,2017,133
Tunbridge Wells Borough Council,Planning Services,110,ED,ECONOMIC DEVELOPMENT,ECONOMIC DEVELOPMENT,PROMOTION,3450,-,-,2017/04/24 23:00:00+00,2017/04/25 23:00:00+00,160177,300,Revenue,New Mind Internet Consultancy Limited,April,2017,134
Tunbridge Wells Borough Council,Cultural and Related Services,104,CC,CAMDEN CENTRE,WESLEY CENTRE PADDOCK WOOD,GAS,2120,-,-,2017/04/24 23:00:00+00,2017/04/25 23:00:00+00,160164,288.760009765625,Revenue,Kent County Council (KCS),April,2017,135
Tunbridge Wells Borough Council,Central Services,102,RB,REVS & BENS,REVS & BENS ADMINISTRATION,CONSULTANTS FEES,3292,-,-,2017/04/24 23:00:00+00,2017/04/25 23:00:00+00,160107,266,Revenue,Inform CPI Limited,April,2017,136
Tunbridge Wells Borough Council,Housing Services,108,HO,HOUSING,BED & BREAKFAST COSTS,RENTS/HIRE OF PREMISES,2200,-,-,2017/04/25 23:00:00+00,2017/04/25 23:00:00+00,160137,262.5,Revenue,This data has been redacted under the Data Protection Act,April,2017,137
Tunbridge Wells Borough Council,Housing Services,108,HO,HOUSING,BED & BREAKFAST COSTS,RENTS/HIRE OF PREMISES,2200,-,-,2017/04/24 23:00:00+00,2017/04/25 23:00:00+00,159584,256.5,Revenue,Spa Caffe Ltd,April,2017,138
Tunbridge Wells Borough Council,Highways and Transport Services,107,PS,PROPERTY SERVICES,SURFACE CAR PARKS,RENTS/HIRE OF PREMISES,2200,-,-,2017/04/24 23:00:00+00,2017/04/25 23:00:00+00,159981,250,Revenue,Co-operative Group Property Division,April,2017,139
Tunbridge Wells Borough Council,Housing Services,108,HO,HOUSING,BED & BREAKFAST COSTS,RENTS/HIRE OF PREMISES,2200,-,-,2017/04/23 23:00:00+00,2017/04/25 23:00:00+00,160133,250,Revenue,This data has been redacted under the Data Protection Act,April,2017,140
Tunbridge Wells Borough Council,Housing Services,108,FI,FINANCE,AFFORDABLE HOUSING GRANTS,CAPITAL GRANTS PAYABLE,8355,-,-,2017/05/02 23:00:00+00,2017/05/02 23:00:00+00,160428,150000,Capital,Habitat for Humanity GB Homes,May,2017,141
Tunbridge Wells Borough Council,Central Services,102,FI,FINANCE,I T SERVICE,PARTNERSHIP AGREEMENT,202,-,-,2017/05/02 23:00:00+00,2017/05/02 23:00:00+00,159670,86575.5,Revenue,Maidstone Borough Council,May,2017,142
Tunbridge Wells Borough Council,Central Services,102,FI,FINANCE,INTERNAL AUDIT & RISK MGT,PARTNERSHIP AGREEMENT,202,-,-,2017/05/02 23:00:00+00,2017/05/02 23:00:00+00,159669,36055.25,Revenue,Maidstone Borough Council,May,2017,143
Tunbridge Wells Borough Council,Cultural and Related Services,104,AH,ASSEMBLY HALL,A-HALL COUNCIL SHOWS,PAYMENT IN ADVANCE,8540,170503 JOOLS HOLLAND,A17E06,2017/05/02 23:00:00+00,2017/05/02 23:00:00+00,159698,18000,Revenue,Helicon Mountain Ltd,May,2017,144
Tunbridge Wells Borough Council,Housing Services,108,HO,HOUSING,HOUSING NEEDS SERVICE,PROJECTS & INITIATIVES,3910,-,-,2017/05/02 23:00:00+00,2017/05/02 23:00:00+00,160398,15500,Revenue,CTTW Winter Shelter,May,2017,145
Tunbridge Wells Borough Council,Planning Services,110,HE,HEALTHY COMMUNITIES,COMMUNITY & GRANTS,GRANTS,3750,-,-,2017/05/01 23:00:00+00,2017/05/02 23:00:00+00,160396,10625,Revenue,Trinity Theatre & Arts Ctr Ltd,May,2017,146
Tunbridge Wells Borough Council,Highways and Transport Services,107,PA,PARKING,PARKING ADMIN & ENFORCEMENT,PCN DEBT REGISTRATION,3335,-,-,2017/05/02 23:00:00+00,2017/05/02 23:00:00+00,159707,10000,Revenue,THE TRAFFIC ENFORCEMENT CENTRE,May,2017,147
Tunbridge Wells Borough Council,Housing Services,108,HO,HOUSING,RENT DEPOSIT SCHEME,DEBTORS,8510,-,-,2017/05/02 23:00:00+00,2017/05/02 23:00:00+00,160447,9504,Revenue,This data has been redacted under the Data Protection Act,May,2017,148
Tunbridge Wells Borough Council,Housing Services,108,HO,HOUSING,RENT DEPOSIT SCHEME,DEBTORS,8510,-,-,2017/05/02 23:00:00+00,2017/05/02 23:00:00+00,160416,9000,Revenue,Jordan Estates T/A Lloyd Martin,May,2017,149
Tunbridge Wells Borough Council,Housing Services,108,HO,HOUSING,RENT DEPOSIT SCHEME,DEBTORS,8510,-,-,2017/05/02 23:00:00+00,2017/05/02 23:00:00+00,160414,4875,Revenue,TILEWOOD PROPERTIES LTD,May,2017,150
Tunbridge Wells Borough Council,Highways and Transport Services,107,PA,PARKING,SURFACE CAR PARKS,MAINT/SERVICING PLANT,2030,-,-,2017/04/18 23:00:00+00,2017/04/18 23:00:00+00,159992,2785.67993164063,Revenue,Metric Group Limited,April,2017,151
Tunbridge Wells Borough Council,Environmental and regulatory services ,105,EN,ENVIRONMENT & STREET SCENE,CHOOSING HEALTH,AGENCY STAFF,100,-,-,2017/04/18 23:00:00+00,2017/04/18 23:00:00+00,159560,2400,Revenue,Helen Wolstenholme Consulting Limited,April,2017,152
Tunbridge Wells Borough Council,Planning Services,110,PL,PLANNING,PLANNING POLICY,PLANNING CONSULTANT FEES,3270,LOCAL DEVELOPMENT FRAMEWORK,EV0575,2017/04/11 23:00:00+00,2017/04/18 23:00:00+00,159813,2200,Revenue,Jeremy Benn Associates Ltd,April,2017,153
Tunbridge Wells Borough Council,Planning Services,110,EH,ENVIRONMENTAL HEALTH,COMMUNITY & GRANTS,PROJECTS & INITIATIVES,3910,SPORTS DEVELOPMENT,EV0296,2017/04/17 23:00:00+00,2017/04/18 23:00:00+00,159967,2200,Revenue,GORDON JAABACK,April,2017,154
Tunbridge Wells Borough Council,Central Services,102,IT,INFORMATION & COMMUNICATIONS TECHNOLOGY,I T SERVICE,IT SOFTWARE,3590,SOFTWARE MAINTENANCE,EV0328,2017/05/09 23:00:00+00,2017/05/09 23:00:00+00,160104,6711.9501953125,Revenue,Covalent Software Limited,May,2017,155
Tunbridge Wells Borough Council,Cultural and Related Services,104,FI,FINANCE,MUSEUM & ART GALLERY,SERVICE CHARGES,2240,-,-,2017/04/18 23:00:00+00,2017/04/18 23:00:00+00,159660,2146.57006835938,Revenue,Kent County Council,April,2017,156
Tunbridge Wells Borough Council,Central Services,102,FI,FINANCE,EXCHEQUER SERVICES,PROJECTS & INITIATIVES,3910,-,-,2017/04/11 23:00:00+00,2017/04/18 23:00:00+00,159817,2090,Revenue,Advanced Business Solutions,April,2017,157
Tunbridge Wells Borough Council,Central Services,102,IT,INFORMATION & COMMUNICATIONS TECHNOLOGY,I T SERVICE,COMPUTER HARDWARE,3580,HARDWARE NETWORKING,EV0326,2017/04/11 23:00:00+00,2017/04/18 23:00:00+00,159742,2015.71997070313,Revenue,Pervasive Networks Ltd,April,2017,158
Tunbridge Wells Borough Council,Environmental and regulatory services ,105,CR,CREMATORIUM,CREMATORIUM,Medical Fees,3340,-,-,2017/04/11 23:00:00+00,2017/04/18 23:00:00+00,159674,1980.90002441406,Revenue,This data has been redacted under the Data Protection Act,April,2017,159
Tunbridge Wells Borough Council,Cultural and Related Services,104,FI,FINANCE,MUSEUM & ART GALLERY,SERVICE CHARGES,2240,-,-,2017/04/18 23:00:00+00,2017/04/18 23:00:00+00,159661,1867.25,Revenue,Kent County Council,April,2017,160
Tunbridge Wells Borough Council,Planning Services,110,HE,HEALTHY COMMUNITIES,COMMUNITY CAPITAL GRANTS,CAPITAL GRANTS PAYABLE,8355,WEST KENT YMCA 16/17,PG0745,2017/04/17 23:00:00+00,2017/04/18 23:00:00+00,159798,1788,Capital,West Kent Y M C A,April,2017,161
Tunbridge Wells Borough Council,Cultural and Related Services,104,AH,ASSEMBLY HALL,A-HALL TECHNICAL,QUALIFICATIONS TRAINING,207,-,-,2017/04/17 23:00:00+00,2017/04/18 23:00:00+00,159943,1780,Revenue,R. B. Health & Safety Solutions Ltd,April,2017,162
Tunbridge Wells Borough Council,Central Services,102,PS,PROPERTY SERVICES,BUILDING SERVICES,AGENCY STAFF,100,-,-,2017/04/18 23:00:00+00,2017/04/18 23:00:00+00,159805,1689.40002441406,Revenue,Hays Montrose,April,2017,163
Tunbridge Wells Borough Council,Housing Services,108,HO,HOUSING,BED & BREAKFAST COSTS,RENTS/HIRE OF PREMISES,2200,-,-,2017/04/17 23:00:00+00,2017/04/18 23:00:00+00,159767,1674,Revenue,Simon Niblett Lettings,April,2017,164
Tunbridge Wells Borough Council,Planning Services,110,LG,LEGAL SERVICES,DEVELOPMENT MANAGEMENT,COUNSEL FEES,3261,-,-,2017/04/18 23:00:00+00,2017/04/18 23:00:00+00,159781,1500,Revenue,This data has been redacted under the Data Protection Act,April,2017,165
Tunbridge Wells Borough Council,Housing Services,108,HO,HOUSING,BED & BREAKFAST COSTS,RENTS/HIRE OF PREMISES,2200,-,-,2017/04/17 23:00:00+00,2017/04/18 23:00:00+00,159771,1461.43005371094,Revenue,T & J Motel,April,2017,166
Tunbridge Wells Borough Council,Central Services,102,FM,FACILITIES MANAGEMENT,POSTAL CHARGES ACCOUNT,CASH TRANSFERS,9100,-,-,2017/04/17 23:00:00+00,2017/04/18 23:00:00+00,159810,1350.98999023438,Revenue,Royal Mail  Group plc,April,2017,167
Tunbridge Wells Borough Council,Planning Services,110,PL,PLANNING,DEVELOPMENT MANAGEMENT,PLANNING CONSULTANT FEES,3270,-,-,2017/04/11 23:00:00+00,2017/04/18 23:00:00+00,159729,1335.75,Revenue,RANDSTAD CPE LIMITED,April,2017,168
Tunbridge Wells Borough Council,Environmental and regulatory services ,105,CR,CREMATORIUM,CREMATORIUM,Medical Fees,3340,-,-,2017/04/11 23:00:00+00,2017/04/18 23:00:00+00,159673,1258.73999023438,Revenue,This data has been redacted under the Data Protection Act,April,2017,169
Tunbridge Wells Borough Council,Cultural and Related Services,104,MU,MUSEUM,CULTURAL HUB,PROJECTS & INITIATIVES,3910,ACE DEVELOPMENT FUND,EV0042,2017/04/11 23:00:00+00,2017/04/18 23:00:00+00,159784,1250,Revenue,This data has been redacted under the Data Protection Act,April,2017,170
Tunbridge Wells Borough Council,Housing Services,108,HO,HOUSING,BED & BREAKFAST COSTS,RENTS/HIRE OF PREMISES,2200,-,-,2017/04/17 23:00:00+00,2017/04/18 23:00:00+00,159933,1051.42004394531,Revenue,T & J Motel,April,2017,171
Tunbridge Wells Borough Council,Housing Services,108,HO,HOUSING,RENT DEPOSIT SCHEME,DEBTORS,8510,-,-,2017/04/18 23:00:00+00,2017/04/18 23:00:00+00,159912,1000,Revenue,Your Move,April,2017,172
Tunbridge Wells Borough Council,Planning Services,110,PL,PLANNING,DEVELOPMENT MANAGEMENT,PLANNING CONSULTANT FEES,3270,-,-,2017/04/18 23:00:00+00,2017/04/18 23:00:00+00,159917,997.599975585938,Revenue,RANDSTAD CPE LIMITED,April,2017,173
Tunbridge Wells Borough Council,Housing Services,108,HO,HOUSING,HOUSING NEEDS SERVICE,HOMELESSNESS EXPENSES,3912,SYRIAN REFUGEES,EV0587,2017/04/18 23:00:00+00,2017/04/18 23:00:00+00,159913,967,Revenue,This data has been redacted under the Data Protection Act,April,2017,174
Tunbridge Wells Borough Council,Highways and Transport Services,107,PA,PARKING,PARKING ADMIN & ENFORCEMENT,SALARIES,20,-,-,2017/04/18 23:00:00+00,2017/04/18 23:00:00+00,159486,945.200012207031,Revenue,Robson Newman Ltd,April,2017,175
Tunbridge Wells Borough Council,Environmental and regulatory services ,105,LI,LICENSING,LICENSING,COGS-NON FOOD,3080,VEHICLE LICENSING - PH,EV0421,2017/04/17 23:00:00+00,2017/04/18 23:00:00+00,159667,900,Revenue,Tunbridge Wells MOT Centre Ltd,April,2017,176
Tunbridge Wells Borough Council,Environmental and regulatory services ,105,PK,PARKS,TUNBRIDGE WELLS-CEMETERIES,GROUND MAINT.infrastructure,2063,-,-,2017/04/17 23:00:00+00,2017/04/18 23:00:00+00,159925,865,Revenue,D S Restoration,April,2017,177
Tunbridge Wells Borough Council,Central Services,102,IT,INFORMATION & COMMUNICATIONS TECHNOLOGY,I T SERVICE,IT SOFTWARE,3590,-,-,2017/04/11 23:00:00+00,2017/04/18 23:00:00+00,159723,809,Revenue,Improvement and Development Agency,April,2017,178
Tunbridge Wells Borough Council,Cultural and Related Services,104,PK,PARKS,PARKS & GROUNDS,GROUND MAINT NON CONTRACT,2060,PLAY AREAS,PL0399,2017/04/17 23:00:00+00,2017/04/18 23:00:00+00,159791,800,Revenue,Treework,April,2017,179
Tunbridge Wells Borough Council,Highways and Transport Services,107,PA,PARKING,CRESCENT ROAD CAR PARK,RESPONSIVE REPAIRS BUILDINGS,2020,-,-,2017/04/18 23:00:00+00,2017/04/18 23:00:00+00,159994,770,Revenue,D R M Rowswell,April,2017,180
Tunbridge Wells Borough Council,Central Services,102,PS,PROPERTY SERVICES,BUILDING SERVICES,AGENCY STAFF,100,-,-,2017/04/18 23:00:00+00,2017/04/18 23:00:00+00,159775,720.799987792969,Revenue,Hays Montrose,April,2017,181
Tunbridge Wells Borough Council,Housing Services,108,TN,TN2 CENTRE,TN2 COMMUNITY CENTRE,CONTRACT CLEANING,2510,-,-,2017/04/18 23:00:00+00,2017/04/18 23:00:00+00,159748,713.119995117188,Revenue,CORDANT CLEANING LTD,April,2017,182
Tunbridge Wells Borough Council,Cultural and Related Services,104,PK,PARKS,GROSVENOR AND HILBERT PARK,"CONSTRUCTION, RENOVATION, ETC",8311,-,-,2017/04/17 23:00:00+00,2017/04/18 23:00:00+00,159975,672,Capital,CPS Ltd,April,2017,183
Tunbridge Wells Borough Council,Cultural and Related Services,104,PK,PARKS,PARKS & GROUNDS,Horticulture,2061,-,-,2017/04/17 23:00:00+00,2017/04/18 23:00:00+00,159786,640,Revenue,Treework,April,2017,184
Tunbridge Wells Borough Council,Housing Services,108,TN,TN2 CENTRE,TN2 COMMUNITY CENTRE,TRADE REFUSE CHARGES,2520,-,-,2017/04/18 23:00:00+00,2017/04/18 23:00:00+00,159749,613.460021972656,Revenue,Veolia ES (UK) Ltd,April,2017,185
Tunbridge Wells Borough Council,Central Services,102,CE,CHIEF EXECUTIVE,CHIEF EXECUTIVE,CONFERENCES/SEMINARS,205,-,-,2017/04/17 23:00:00+00,2017/04/18 23:00:00+00,159800,595,Revenue,Bournemouth Convention Bureau Ltd,April,2017,186
Tunbridge Wells Borough Council,Cultural and Related Services,104,PK,PARKS,PARKS & GROUNDS,EQUIPMENT PURCHASE/MTCE,3000,-,-,2017/04/18 23:00:00+00,2017/04/18 23:00:00+00,159782,583,Revenue,TFH Management Ltd,April,2017,187
Tunbridge Wells Borough Council,Housing Services,108,HO,HOUSING,PROPERTIES ON LOAN,RENTS/HIRE OF PREMISES,2200,-,-,2017/04/17 23:00:00+00,2017/04/18 23:00:00+00,159783,553.5,Revenue,Moat Homes Ltd,April,2017,188
Tunbridge Wells Borough Council,Cultural and Related Services,104,MU,MUSEUM,MUSEUM & ART GALLERY,SERVICE CHARGES,2240,-,-,2017/04/18 23:00:00+00,2017/04/18 23:00:00+00,159824,520,Revenue,Kent County Council,April,2017,189
Tunbridge Wells Borough Council,Housing Services,108,HO,HOUSING,BED & BREAKFAST COSTS,RENTS/HIRE OF PREMISES,2200,-,-,2017/04/17 23:00:00+00,2017/04/18 23:00:00+00,159769,518.570007324219,Revenue,T & J Motel,April,2017,190
Tunbridge Wells Borough Council,Cultural and Related Services,104,PK,PARKS,PARKS & GROUNDS,CONTRACT CLEANING,2510,PROPERTY CLEANING CONTRACT,PH0590,2017/04/18 23:00:00+00,2017/04/18 23:00:00+00,159978,503.5,Revenue,CORDANT CLEANING LTD,April,2017,191
Tunbridge Wells Borough Council,Housing Services,108,HO,HOUSING,BED & BREAKFAST COSTS,RENTS/HIRE OF PREMISES,2200,-,-,2017/04/17 23:00:00+00,2017/04/18 23:00:00+00,159960,490,Revenue,This data has been redacted under the Data Protection Act,April,2017,192
Tunbridge Wells Borough Council,Central Services,102,FI,FINANCE,SALARY SACRIFICES,LOANS - UNSECURED,8530,COMPUTER SALARY SACRIFICE,CSS000,2017/04/17 23:00:00+00,2017/04/18 23:00:00+00,159903,456.399993896484,Revenue,CDW Limited,April,2017,193
Tunbridge Wells Borough Council,Housing Services,108,HO,HOUSING,BED & BREAKFAST COSTS,RENTS/HIRE OF PREMISES,2200,-,-,2017/04/17 23:00:00+00,2017/04/18 23:00:00+00,159959,437.5,Revenue,This data has been redacted under the Data Protection Act,April,2017,194
Tunbridge Wells Borough Council,Environmental and regulatory services ,105,FI,FINANCE,CLEANER BOROUGH,FUEL & OIL,1010,-,-,2017/04/17 23:00:00+00,2017/04/18 23:00:00+00,159760,414.989990234375,Revenue,Fuel Card Services Ltd,April,2017,195
Tunbridge Wells Borough Council,Cultural and Related Services,104,FI,FINANCE,TW COMMONS-RECHARGE ACCT,AUDIT & ACCOUNTING FEES,3280,-,-,2017/04/17 23:00:00+00,2017/04/18 23:00:00+00,159523,410,Revenue,Maidstone Borough Council,April,2017,196
Tunbridge Wells Borough Council,Environmental and regulatory services ,105,EH,ENVIRONMENTAL HEALTH,FOOD & COMMERCIAL,AGENCY STAFF,100,-,-,2017/04/17 23:00:00+00,2017/04/18 23:00:00+00,159929,402,Revenue,Recruitment Solutions,April,2017,197
Tunbridge Wells Borough Council,Cultural and Related Services,104,MU,MUSEUM,MUSEUM & ART GALLERY,SERVICE CHARGES,2240,-,-,2017/04/18 23:00:00+00,2017/04/18 23:00:00+00,159946,371.549987792969,Revenue,PRS for Music,April,2017,198
Tunbridge Wells Borough Council,Cultural and Related Services,104,MU,MUSEUM,MUSEUM & ART GALLERY,PROJECTS & INITIATIVES,3910,ONE HUNDRED OBJECTS,EV0062,2017/04/11 23:00:00+00,2017/04/18 23:00:00+00,159664,350.929992675781,Revenue,Kent County Council (KCS),April,2017,199
Tunbridge Wells Borough Council,Central Services,102,EL,ELECTIONS,BOROUGH ELECTIONS,RENTS/HIRE OF PREMISES,2200,SOUTHBOROUGH ELECTION FEB 2017,CS0399,2017/04/17 23:00:00+00,2017/04/18 23:00:00+00,159763,350,Revenue,Southborough Methodist Church,April,2017,200
Tunbridge Wells Borough Council,Central Services,102,FI,FINANCE,DEMOCRATIC MANAGEMENT,OTHER FEES,3330,-,-,2017/04/17 23:00:00+00,2017/04/18 23:00:00+00,159621,316.140014648438,Revenue,Tonbridge & Malling Borough Co,April,2017,201
Tunbridge Wells Borough Council,Cultural and Related Services,104,AH,ASSEMBLY HALL,A-HALL COUNCIL SHOWS,SHOW FEES,3380,170330 SENSATIONAL 60's 2017,A17C03,2017/05/08 23:00:00+00,2017/05/09 23:00:00+00,160739,6705.06005859375,Revenue,Stage Right Promotions Ltd,May,2017,202
Tunbridge Wells Borough Council,Cultural and Related Services,104,AH,ASSEMBLY HALL,A-HALL COUNCIL SHOWS,SHOW FEES,3380,170422 LA BOHEME,A17D02,2017/05/09 23:00:00+00,2017/05/09 23:00:00+00,160855,6563.22021484375,Revenue,Opera & Ballet International Limited,May,2017,203
Tunbridge Wells Borough Council,Housing Services,108,HP,HOUSING (PRIVATE SECTOR),DISABLED FACILITIES GRANTS,CAPITAL GRANTS PAYABLE,8355,-,-,2017/05/09 23:00:00+00,2017/05/09 23:00:00+00,160710,6523.93994140625,Capital,Town and Country Housing Group,May,2017,204
Tunbridge Wells Borough Council,Central Services,102,IT,INFORMATION & COMMUNICATIONS TECHNOLOGY,FMS UPGRADE,COMPUTER HARDWARE,8329,-,-,2017/05/03 23:00:00+00,2017/05/09 23:00:00+00,159244,6463,Capital,ACS Systems UK Ltd,May,2017,205
Tunbridge Wells Borough Council,Cultural and Related Services,104,AH,ASSEMBLY HALL,A-HALL HIRE SHOWS,TICKET REPAYMENT,5421,170331 STRICTLY COOL DANCING,A17Q08,2017/05/09 23:00:00+00,2017/05/09 23:00:00+00,160820,6417.14990234375,Revenue,Tonbridge & W Kent School Sports Partnership,May,2017,206
Tunbridge Wells Borough Council,Planning Services,110,HE,HEALTHY COMMUNITIES,COMMUNITY & GRANTS,GRANTS,3750,-,-,2017/05/09 23:00:00+00,2017/05/09 23:00:00+00,160662,6250,Revenue,This data has been redacted under the Data Protection Act,May,2017,207
Tunbridge Wells Borough Council,Cultural and Related Services,104,AH,ASSEMBLY HALL,A-HALL COUNCIL SHOWS,SHOW FEES,3380,170317 ABBAMANIA,A17C01,2017/05/07 23:00:00+00,2017/05/09 23:00:00+00,160608,5652.919921875,Revenue,Chimes International Entertainments Ltd,May,2017,208
Tunbridge Wells Borough Council,Planning Services,110,PL,PLANNING,PLANNING POLICY,PLANNING CONSULTANT FEES,3270,-,-,2017/05/07 23:00:00+00,2017/05/09 23:00:00+00,160581,5150,Revenue,Sevenoaks District Council,May,2017,209
Tunbridge Wells Borough Council,Cultural and Related Services,104,AH,ASSEMBLY HALL,A-HALL COUNCIL SHOWS,SHOW FEES,3380,170408 GOLDILOCKS AND THE 3 BE,A17D07,2017/05/07 23:00:00+00,2017/05/09 23:00:00+00,160607,5100,Revenue,Northern Ballet Ltd,May,2017,210
Tunbridge Wells Borough Council,Cultural and Related Services,104,AH,ASSEMBLY HALL,A-HALL HIRE SHOWS,TICKET REPAYMENT,5421,170315 BIG DANCE 2017,A17Q07,2017/05/09 23:00:00+00,2017/05/09 23:00:00+00,160821,4928,Revenue,Heathfield Community College,May,2017,211
Tunbridge Wells Borough Council,Central Services,102,HR,HUMAN RESOURCES,BUILDING SERVICES,RECRUITMENT COSTS,235,-,-,2017/05/09 23:00:00+00,2017/05/09 23:00:00+00,160417,4900,Revenue,Hays Montrose,May,2017,212
Tunbridge Wells Borough Council,Central Services,102,GW,GATEWAY CUSTOMER SERVICES,GATEWAY,TELEPHONE COSTS,3510,CALL CENTRE,EV0341,2017/05/09 23:00:00+00,2017/05/09 23:00:00+00,160787,4792.35986328125,Revenue,Daisy Telecoms Ltd,May,2017,213
Tunbridge Wells Borough Council,Highways and Transport Services,107,FI,FINANCE,PARKING ADMIN & ENFORCEMENT,EXTERNAL CONTRACT PAYMENTS,3220,-,-,2017/05/08 23:00:00+00,2017/05/09 23:00:00+00,160361,4759.35009765625,Revenue,Contract Security Services Ltd,May,2017,214
Tunbridge Wells Borough Council,Highways and Transport Services,107,FI,FINANCE,OFF STREET PARKING,LEGAL FEES,3260,-,-,2017/05/09 23:00:00+00,2017/05/09 23:00:00+00,160675,4500,Revenue,This data has been redacted under the Data Protection Act,May,2017,215
Tunbridge Wells Borough Council,Planning Services,110,HE,HEALTHY COMMUNITIES,COMMUNITY & GRANTS,GRANTS,3750,-,-,2017/05/09 23:00:00+00,2017/05/09 23:00:00+00,160627,4000,Revenue,TUNBRIDGE WELLS SHOPMOBILITY,May,2017,216
Tunbridge Wells Borough Council,Cultural and Related Services,104,AH,ASSEMBLY HALL,A-HALL TECHNICAL,ELECTRICITY,2140,-,-,2017/05/09 23:00:00+00,2017/05/09 23:00:00+00,160184,3894.09008789063,Revenue,Kent County Council (KCS),May,2017,217
Tunbridge Wells Borough Council,Cultural and Related Services,104,AH,ASSEMBLY HALL,A-HALL COUNCIL SHOWS,SHOW FEES,3380,170421 ELO AGAIN,A17D09,2017/05/07 23:00:00+00,2017/05/09 23:00:00+00,160603,3751.10009765625,Revenue,Blue Sky Productions Ltd,May,2017,218
Tunbridge Wells Borough Council,Planning Services,110,LG,LEGAL SERVICES,DEVELOPMENT MANAGEMENT,COUNSEL FEES,3261,-,-,2017/05/09 23:00:00+00,2017/05/09 23:00:00+00,160572,3200,Revenue,This data has been redacted under the Data Protection Act,May,2017,219
Tunbridge Wells Borough Council,Central Services,102,EL,ELECTIONS,NON TWBC ELECTIONS,RENTS/HIRE OF PREMISES,2200,KCC ELECTIONS MAY 2017,CS0401,2017/05/09 23:00:00+00,2017/05/09 23:00:00+00,160427,2500,Revenue,Hendley Removals & Storage Limited,May,2017,220
Tunbridge Wells Borough Council,Central Services,102,FI,FINANCE,MAYORAL,MAYORAL EXPENSES,3690,MISC MAYORAL EXPEN,EV0123,2017/05/09 23:00:00+00,2017/05/09 23:00:00+00,160655,2200,Revenue,Boardwell Ltd,May,2017,221
Tunbridge Wells Borough Council,Environmental and regulatory services ,105,FI,FINANCE,CHILDCARE VOUCHERS SCHEME,CREDITORS,9009,-,-,2017/05/09 23:00:00+00,2017/05/09 23:00:00+00,160853,2101.73999023438,Revenue,Fideliti Ltd,May,2017,222
Tunbridge Wells Borough Council,Environmental and regulatory services ,105,CR,CREMATORIUM,CREMATORIUM,Medical Fees,3340,-,-,2017/05/07 23:00:00+00,2017/05/09 23:00:00+00,160691,2065.80004882813,Revenue,This data has been redacted under the Data Protection Act,May,2017,223
Tunbridge Wells Borough Council,Environmental and regulatory services ,105,CS,CLIENT SERVICES (DEPOT),REFUSE COLLECTION SERVICES,RECYCLING EXPENSES-CARDBOARD,3241,-,-,2017/05/09 23:00:00+00,2017/05/09 23:00:00+00,160397,2007.43994140625,Revenue,Biffa Waste Services Ltd,May,2017,224
Tunbridge Wells Borough Council,Cultural and Related Services,104,AH,ASSEMBLY HALL,A-HALL MANAGEMENT,CONSULTANTS FEES,3292,-,-,2017/05/07 23:00:00+00,2017/05/09 23:00:00+00,160629,2000,Revenue,Target Live Limited,May,2017,225
Tunbridge Wells Borough Council,Housing Services,108,HO,HOUSING,HOUSING NEEDS SERVICE,HOMELESSNESS EXPENSES,3912,BEHAVIOURAL INSIGHTS PROGRAMME,EV0573,2017/05/09 23:00:00+00,2017/05/09 23:00:00+00,160850,2000,Revenue,Behavioural Insights Ltd,May,2017,226
Tunbridge Wells Borough Council,Environmental and regulatory services ,105,CS,CLIENT SERVICES (DEPOT),REFUSE COLLECTION SERVICES,EXTERNAL CONTRACT PAYMENTS,3220,-,-,2017/05/09 23:00:00+00,2017/05/09 23:00:00+00,160784,1859.89001464844,Revenue,BIFFA MUNICIPAL LTD,May,2017,227
Tunbridge Wells Borough Council,Environmental and regulatory services ,105,CR,CREMATORIUM,CREMATORIUM,Medical Fees,3340,-,-,2017/05/07 23:00:00+00,2017/05/09 23:00:00+00,160692,1753.14001464844,Revenue,This data has been redacted under the Data Protection Act,May,2017,228
Tunbridge Wells Borough Council,Planning Services,110,TN,TN2 CENTRE,9-10 CALVERLEY TERRACE,ELECTRICITY,2140,-,-,2017/05/09 23:00:00+00,2017/05/09 23:00:00+00,160347,1723.22998046875,Revenue,Kent County Council (KCS),May,2017,229
Tunbridge Wells Borough Council,Housing Services,108,HO,HOUSING,BED & BREAKFAST COSTS,RENTS/HIRE OF PREMISES,2200,-,-,2017/05/04 23:00:00+00,2017/05/09 23:00:00+00,160528,1620,Revenue,Simon Niblett Lettings,May,2017,230
Tunbridge Wells Borough Council,Environmental and regulatory services ,105,CS,CLIENT SERVICES (DEPOT),CLEANER BOROUGH,EXTERNAL CONTRACT PAYMENTS,3220,-,-,2017/05/09 23:00:00+00,2017/05/09 23:00:00+00,160651,1504.13000488281,Revenue,Viking Oak Kennels,May,2017,231
Tunbridge Wells Borough Council,Planning Services,110,LG,LEGAL SERVICES,DEVELOPMENT MANAGEMENT,COUNSEL FEES,3261,-,-,2017/05/09 23:00:00+00,2017/05/09 23:00:00+00,160574,1500,Revenue,This data has been redacted under the Data Protection Act,May,2017,232
Tunbridge Wells Borough Council,Central Services,102,TR,TRANSFORMATION AND DELIVERY,I T SERVICE,IT SOFTWARE,3590,-,-,2017/05/09 23:00:00+00,2017/05/09 23:00:00+00,160747,1495,Revenue,ROL Solutions Ltd,May,2017,233
Tunbridge Wells Borough Council,Planning Services,110,IT,INFORMATION & COMMUNICATIONS TECHNOLOGY,PLANNING POLICY,EQUIPMENT PURCHASE/MTCE,3000,-,-,2017/05/07 23:00:00+00,2017/05/09 23:00:00+00,160616,1458,Revenue,Complete IT Systems Limited,May,2017,234
Tunbridge Wells Borough Council,Central Services,102,FM,FACILITIES MANAGEMENT,POSTAL CHARGES ACCOUNT,CASH TRANSFERS,9100,-,-,2017/05/09 23:00:00+00,2017/05/09 23:00:00+00,160622,1439.98999023438,Revenue,Royal Mail  Group plc,May,2017,235
Tunbridge Wells Borough Council,Housing Services,108,HO,HOUSING,BED & BREAKFAST COSTS,RENTS/HIRE OF PREMISES,2200,-,-,2017/05/07 23:00:00+00,2017/05/09 23:00:00+00,160626,1414.28002929688,Revenue,T & J Motel,May,2017,236
Tunbridge Wells Borough Council,Housing Services,108,HO,HOUSING,BED & BREAKFAST COSTS,RENTS/HIRE OF PREMISES,2200,-,-,2017/05/07 23:00:00+00,2017/05/09 23:00:00+00,160628,1414.28002929688,Revenue,T & J Motel,May,2017,237
Tunbridge Wells Borough Council,Cultural and Related Services,104,AH,ASSEMBLY HALL,A-HALL COUNCIL SHOWS,SHOW FEES,3380,170202 SERIOUSLY DEAD,A17B05,2017/05/07 23:00:00+00,2017/05/09 23:00:00+00,160604,1347.94995117188,Revenue,Artistes International Management Limited,May,2017,238
Tunbridge Wells Borough Council,Environmental and regulatory services ,105,CR,CREMATORIUM,PUBLIC HEALTH ACT FUNERALS,GENERAL EXPENSES,3950,-,-,2017/05/09 23:00:00+00,2017/05/09 23:00:00+00,160576,1266,Revenue,T W BOORMAN FUNERAL SERVICES,May,2017,239
Tunbridge Wells Borough Council,Planning Services,110,PL,PLANNING,DEVELOPMENT MANAGEMENT,PLANNING CONSULTANT FEES,3270,-,-,2017/05/09 23:00:00+00,2017/05/09 23:00:00+00,160807,1264.19995117188,Revenue,RANDSTAD CPE LIMITED,May,2017,240
Tunbridge Wells Borough Council,Housing Services,108,HO,HOUSING,BED & BREAKFAST COSTS,RENTS/HIRE OF PREMISES,2200,-,-,2017/05/09 23:00:00+00,2017/05/09 23:00:00+00,160781,1242,Revenue,Spa Caffe Ltd,May,2017,241
Tunbridge Wells Borough Council,Environmental and regulatory services ,105,CS,CLIENT SERVICES (DEPOT),CLEANER BOROUGH,EXTERNAL CONTRACT PAYMENTS,3220,-,-,2017/05/07 23:00:00+00,2017/05/09 23:00:00+00,160355,1226.40002441406,Revenue,Viking Oak Kennels,May,2017,242
Tunbridge Wells Borough Council,Cultural and Related Services,104,AH,ASSEMBLY HALL,A-HALL MARKETING,PROMOTION,3450,-,-,2017/05/09 23:00:00+00,2017/05/09 23:00:00+00,160654,1202,Revenue,Local World Limited,May,2017,243
Tunbridge Wells Borough Council,Housing Services,108,HO,HOUSING,BED & BREAKFAST COSTS,RENTS/HIRE OF PREMISES,2200,-,-,2017/05/07 23:00:00+00,2017/05/09 23:00:00+00,160631,1157.14001464844,Revenue,T & J Motel,May,2017,244
Tunbridge Wells Borough Council,Central Services,102,GW,GATEWAY CUSTOMER SERVICES,GATEWAY,ELECTRICITY,2140,GATEWAY,EV0340,2017/05/09 23:00:00+00,2017/05/09 23:00:00+00,160109,1073.13000488281,Revenue,Kent County Council (KCS),May,2017,245
Tunbridge Wells Borough Council,Planning Services,110,PL,PLANNING,DEVELOPMENT MANAGEMENT,PLANNING CONSULTANT FEES,3270,-,-,2017/05/07 23:00:00+00,2017/05/09 23:00:00+00,160641,1057.80004882813,Revenue,RANDSTAD CPE LIMITED,May,2017,246
Tunbridge Wells Borough Council,Highways and Transport Services,107,PA,PARKING,CRESCENT ROAD CAR PARK,CONTRACT CLEANING,2510,-,-,2017/05/07 23:00:00+00,2017/05/09 23:00:00+00,160578,1000,Revenue,D R M Rowswell,May,2017,247
Tunbridge Wells Borough Council,Housing Services,108,HO,HOUSING,HOUSING NEEDS SERVICE,HOMELESSNESS EXPENSES,3912,SYRIAN REFUGEES,EV0587,2017/05/09 23:00:00+00,2017/05/09 23:00:00+00,160740,967,Revenue,This data has been redacted under the Data Protection Act,May,2017,248
Tunbridge Wells Borough Council,Housing Services,108,HO,HOUSING,HOUSING NEEDS SERVICE,HOMELESSNESS EXPENSES,3912,SYRIAN REFUGEES,EV0587,2017/05/09 23:00:00+00,2017/05/09 23:00:00+00,160741,967,Revenue,This data has been redacted under the Data Protection Act,May,2017,249
Tunbridge Wells Borough Council,Cultural and Related Services,104,PK,PARKS,PARKS & GROUNDS,Horticulture,2061,-,-,2017/05/07 23:00:00+00,2017/05/09 23:00:00+00,160523,947.659973144531,Revenue,Blakedown Landscapes (SE) Ltd,May,2017,250
Tunbridge Wells Borough Council,Cultural and Related Services,104,AB,ASSEMBLY HALL BAR,A-HALL FRONT OF HOUSE,COGS - DRINK,3091,-,-,2017/05/08 23:00:00+00,2017/05/09 23:00:00+00,160153,930.780029296875,Revenue,H T White & Co Ltd,May,2017,251
Tunbridge Wells Borough Council,Planning Services,110,DS,Sundry Customer,DEVELOPMENT MANAGEMENT,PLANNING APPLICATION FEES,5250,-,-,2017/05/07 23:00:00+00,2017/05/09 23:00:00+00,160635,914,Revenue,COUNTRYSIDE PROPERTIES LTD,May,2017,252
Tunbridge Wells Borough Council,Highways and Transport Services,107,DS,Sundry Customer,OFF STREET PARKING,LEGAL FEES,3260,-,-,2017/05/09 23:00:00+00,2017/05/09 23:00:00+00,160667,860,Revenue,FRALEY BOURNE LTD,May,2017,253
Tunbridge Wells Borough Council,Housing Services,108,HO,HOUSING,BED & BREAKFAST COSTS,RENTS/HIRE OF PREMISES,2200,-,-,2017/05/07 23:00:00+00,2017/05/09 23:00:00+00,160634,857.140014648438,Revenue,T & J Motel,May,2017,254
Tunbridge Wells Borough Council,Environmental and regulatory services ,105,CS,CLIENT SERVICES (DEPOT),NORTH FARM DEPOT,GAS,2120,-,-,2017/05/09 23:00:00+00,2017/05/09 23:00:00+00,160669,829.760009765625,Revenue,Kent County Council (KCS),May,2017,255
Tunbridge Wells Borough Council,Environmental and regulatory services ,105,CR,CREMATORIUM,CREMATORIUM,EQUIPMENT PURCHASE/MTCE,3000,-,-,2017/04/17 23:00:00+00,2017/04/18 23:00:00+00,159976,305,Revenue,The Columbaria Company,April,2017,256
Tunbridge Wells Borough Council,Cultural and Related Services,104,PK,PARKS,PARKS & GROUNDS,Horticulture,2061,-,-,2017/05/09 23:00:00+00,2017/05/09 23:00:00+00,160802,800,Revenue,Treework,May,2017,257
Tunbridge Wells Borough Council,Cultural and Related Services,104,AM,ASSEMBLY HALL MARKETING,A-HALL MARKETING,PROMOTION,3450,-,-,2017/05/09 23:00:00+00,2017/05/09 23:00:00+00,160847,800,Revenue,SocialSignin Limited,May,2017,258
Tunbridge Wells Borough Council,Central Services,102,HR,HUMAN RESOURCES,I T SERVICE,IT SOFTWARE,3590,-,-,2017/04/18 23:00:00+00,2017/04/18 23:00:00+00,159966,300,Revenue,South East Employers,April,2017,259
Tunbridge Wells Borough Council,Planning Services,110,PS,PROPERTY SERVICES,BUILDING CONTROL,WORKS IN DEFAULT - COSTS,3801,-,-,2017/05/07 23:00:00+00,2017/05/09 23:00:00+00,160521,795,Revenue,Resolution Data Management Ltd,May,2017,260
Tunbridge Wells Borough Council,Central Services,102,FH,FRONT OF HOUSE (RECEPTION),TOWN HALL,EQUIPMENT - FLAVIA SUPPLIES,3002,-,-,2017/04/11 23:00:00+00,2017/04/18 23:00:00+00,159656,278.950012207031,Revenue,Cherrybean Ltd,April,2017,261
Tunbridge Wells Borough Council,Planning Services,110,PL,PLANNING,DEVELOPMENT MANAGEMENT,PLANNING CONSULTANT FEES,3270,-,-,2017/05/07 23:00:00+00,2017/05/09 23:00:00+00,160555,790,Revenue,Rural Planning Limited,May,2017,262
Tunbridge Wells Borough Council,Housing Services,108,HO,HOUSING,BED & BREAKFAST COSTS,RENTS/HIRE OF PREMISES,2200,-,-,2017/04/17 23:00:00+00,2017/04/18 23:00:00+00,159956,262.5,Revenue,This data has been redacted under the Data Protection Act,April,2017,263
Tunbridge Wells Borough Council,Environmental and regulatory services ,105,CR,CREMATORIUM,CREMATORIUM,SUBS TO ORGANISATIONS,3730,-,-,2017/05/09 23:00:00+00,2017/05/09 23:00:00+00,160812,775,Revenue,ICCM,May,2017,264
Tunbridge Wells Borough Council,Housing Services,108,HO,HOUSING,BED & BREAKFAST COSTS,RENTS/HIRE OF PREMISES,2200,-,-,2017/04/17 23:00:00+00,2017/04/18 23:00:00+00,159957,262.5,Revenue,This data has been redacted under the Data Protection Act,April,2017,265
Tunbridge Wells Borough Council,Housing Services,108,HO,HOUSING,HOUSING NEEDS SERVICE,HOMELESSNESS EXPENSES,3912,SYRIAN REFUGEES,EV0587,2017/05/09 23:00:00+00,2017/05/09 23:00:00+00,160742,765,Revenue,This data has been redacted under the Data Protection Act,May,2017,266
Tunbridge Wells Borough Council,Cultural and Related Services,104,AM,ASSEMBLY HALL MARKETING,A-HALL MARKETING,PROMOTION,3450,-,-,2017/04/11 23:00:00+00,2017/04/18 23:00:00+00,159659,260,Revenue,TINCAN LIMITED,April,2017,267
Tunbridge Wells Borough Council,Housing Services,108,HO,HOUSING,RENT DEPOSIT SCHEME,DEBTORS,8510,-,-,2017/05/09 23:00:00+00,2017/05/09 23:00:00+00,160657,756.640014648438,Revenue,Salvation Army Housing Association,May,2017,268
Tunbridge Wells Borough Council,Housing Services,108,HO,HOUSING,HOUSING NEEDS SERVICE,HOMELESSNESS EXPENSES,3912,-,-,2017/04/17 23:00:00+00,2017/04/18 23:00:00+00,159803,252,Revenue,Easistore Self Storage Limited,April,2017,269
Tunbridge Wells Borough Council,Central Services,102,RB,REVS & BENS,REVS & BENS ADMINISTRATION,LEGAL FEES,3260,-,-,2017/05/09 23:00:00+00,2017/05/09 23:00:00+00,160810,713.330017089844,Revenue,J E Baring & Co,May,2017,270
Tunbridge Wells Borough Council,Central Services,102,FI,FINANCE,LLOYDS CREDIT CARD CREDITOR,CREDITORS,9009,-,-,2017/04/20 23:00:00+00,2017/04/20 23:00:00+00,159987,9873.75,Revenue,Lloyds TSB,April,2017,271
Tunbridge Wells Borough Council,Housing Services,108,TN,TN2 CENTRE,TN2 COMMUNITY CENTRE,CONTRACT CLEANING,2510,-,-,2017/05/09 23:00:00+00,2017/05/09 23:00:00+00,160803,713.119995117188,Revenue,CORDANT CLEANING LTD,May,2017,272
Tunbridge Wells Borough Council,Central Services,102,FH,FRONT OF HOUSE (RECEPTION),TOWN HALL,EQUIPMENT PURCHASE/MTCE,3000,-,-,2017/05/07 23:00:00+00,2017/05/09 23:00:00+00,160645,710,Revenue,BIOTECTS LTD,May,2017,273
Tunbridge Wells Borough Council,Housing Services,108,HO,HOUSING,RENT DEPOSIT SCHEME,DEBTORS,8510,-,-,2017/05/09 23:00:00+00,2017/05/09 23:00:00+00,160811,685,Revenue,This data has been redacted under the Data Protection Act,May,2017,274
Tunbridge Wells Borough Council,Environmental and regulatory services ,105,CS,CLIENT SERVICES (DEPOT),NORTH FARM DEPOT,GAS,2120,-,-,2017/05/09 23:00:00+00,2017/05/09 23:00:00+00,160668,630.25,Revenue,Kent County Council (KCS),May,2017,275
Tunbridge Wells Borough Council,Planning Services,110,PL,PLANNING,PLANNING POLICY,PLANNING CONSULTANT FEES,3270,NEW LOCAL PLAN,EV0589,2017/05/07 23:00:00+00,2017/05/09 23:00:00+00,160652,620,Revenue,Local World Limited,May,2017,276
Tunbridge Wells Borough Council,Environmental and regulatory services ,105,CR,CREMATORIUM,TUNBRIDGE WELLS-CEMETERIES,COGS - PLAQUES,3082,-,-,2017/05/09 23:00:00+00,2017/05/09 23:00:00+00,160439,601.200012207031,Revenue,A Burslem & Son Ltd (Burslem Memorials),May,2017,277
Tunbridge Wells Borough Council,Environmental and regulatory services ,105,CR,CREMATORIUM,CREMATORIUM,SUBS TO ORGANISATIONS,3730,-,-,2017/05/09 23:00:00+00,2017/05/09 23:00:00+00,160813,595,Revenue,ICCM,May,2017,278
Tunbridge Wells Borough Council,Cultural and Related Services,104,AB,ASSEMBLY HALL BAR,A-HALL FRONT OF HOUSE,COGS - DRINK,3091,-,-,2017/05/08 23:00:00+00,2017/05/09 23:00:00+00,160378,585.359985351563,Revenue,H T White & Co Ltd,May,2017,279
Tunbridge Wells Borough Council,Highways and Transport Services,107,PA,PARKING,PARKING ADMIN & ENFORCEMENT,PRINTING - PCNs & RESDTS PRMTS,3152,-,-,2017/05/04 23:00:00+00,2017/05/09 23:00:00+00,160605,581.25,Revenue,Paperwork UK Ltd,May,2017,280
Tunbridge Wells Borough Council,Cultural and Related Services,104,AH,ASSEMBLY HALL,A-HALL FRONT OF HOUSE,COGS -FOOD,3090,-,-,2017/05/09 23:00:00+00,2017/05/09 23:00:00+00,160744,580,Revenue,Helicon Mountain Ltd,May,2017,281
Tunbridge Wells Borough Council,Cultural and Related Services,104,AB,ASSEMBLY HALL BAR,A-HALL FRONT OF HOUSE,COGS - ICE CREAMS,3093,-,-,2017/05/08 23:00:00+00,2017/05/09 23:00:00+00,160125,560,Revenue,Taywell Ice Creams Limited,May,2017,282
Tunbridge Wells Borough Council,Housing Services,108,HO,HOUSING,BED & BREAKFAST COSTS,RENTS/HIRE OF PREMISES,2200,-,-,2017/05/09 23:00:00+00,2017/05/09 23:00:00+00,160625,552,Revenue,Spa Caffe Ltd,May,2017,283
Tunbridge Wells Borough Council,Highways and Transport Services,107,PA,PARKING,GREAT HALL CAR PARK,CONTRACT CLEANING,2510,-,-,2017/05/09 23:00:00+00,2017/05/09 23:00:00+00,160814,550,Revenue,W B Stanley,May,2017,284
Tunbridge Wells Borough Council,Cultural and Related Services,104,AM,ASSEMBLY HALL MARKETING,A-HALL MARKETING,PROMOTION - WHATS ON MAG,3456,ASSEMBLY HALL,CS0120,2017/05/07 23:00:00+00,2017/05/09 23:00:00+00,160712,540,Revenue,London Calling Arts Ltd,May,2017,285
Tunbridge Wells Borough Council,Central Services,102,FM,FACILITIES MANAGEMENT,TOWN HALL,TRADE REFUSE CHARGES,2520,-,-,2017/05/09 23:00:00+00,2017/05/09 23:00:00+00,160693,534.739990234375,Revenue,Veolia ES (UK) Ltd,May,2017,286
Tunbridge Wells Borough Council,Environmental and regulatory services ,105,CS,CLIENT SERVICES (DEPOT),NORTH FARM DEPOT,GAS,2120,-,-,2017/05/09 23:00:00+00,2017/05/09 23:00:00+00,160671,531.469970703125,Revenue,Kent County Council (KCS),May,2017,287
Tunbridge Wells Borough Council,Cultural and Related Services,104,AH,ASSEMBLY HALL,A-HALL FRONT OF HOUSE,ELECTRICITY,2140,-,-,2017/05/09 23:00:00+00,2017/05/09 23:00:00+00,160155,528.340026855469,Revenue,Kent County Council (KCS),May,2017,288
Tunbridge Wells Borough Council,Environmental and regulatory services ,105,CS,CLIENT SERVICES (DEPOT),NORTH FARM DEPOT,GAS,2120,-,-,2017/05/09 23:00:00+00,2017/05/09 23:00:00+00,160670,515.710021972656,Revenue,Kent County Council (KCS),May,2017,289
Tunbridge Wells Borough Council,Cultural and Related Services,104,AH,ASSEMBLY HALL,A-HALL FRONT OF HOUSE,TRADE REFUSE CHARGES,2520,-,-,2017/05/09 23:00:00+00,2017/05/09 23:00:00+00,160698,507.899993896484,Revenue,Veolia ES (UK) Ltd,May,2017,290
Tunbridge Wells Borough Council,Environmental and regulatory services ,105,CS,CLIENT SERVICES (DEPOT),NORTH FARM DEPOT,GAS,2120,-,-,2017/05/09 23:00:00+00,2017/05/09 23:00:00+00,160665,506.589996337891,Revenue,Kent County Council (KCS),May,2017,291
Tunbridge Wells Borough Council,Environmental and regulatory services ,105,CR,CREMATORIUM,CREMATORIUM,GROUNDS MAINT CONTRACTS,2050,-,-,2017/05/09 23:00:00+00,2017/05/09 23:00:00+00,160696,504.179992675781,Revenue,Veolia ES (UK) Ltd,May,2017,292
Tunbridge Wells Borough Council,Cultural and Related Services,104,CO,COMMUNITY & CORPORATE PLANNING,MUSEUM & ART GALLERY,PROJECTS & INITIATIVES,3910,-,-,2017/05/08 23:00:00+00,2017/05/09 23:00:00+00,160751,500,Revenue,This data has been redacted under the Data Protection Act,May,2017,293
Tunbridge Wells Borough Council,Environmental and regulatory services ,105,CU,COMMUNITY SAFTY UNIT,COMMUNITY SAFETY,PROJECTS & INITIATIVES,3910,-,-,2017/05/07 23:00:00+00,2017/05/09 23:00:00+00,160537,490,Revenue,Kenward Trust,May,2017,294
Tunbridge Wells Borough Council,Housing Services,108,HO,HOUSING,BED & BREAKFAST COSTS,RENTS/HIRE OF PREMISES,2200,-,-,2017/05/07 23:00:00+00,2017/05/09 23:00:00+00,160640,490,Revenue,This data has been redacted under the Data Protection Act,May,2017,295
Tunbridge Wells Borough Council,Cultural and Related Services,104,PK,PARKS,PARKS & GROUNDS,Horticulture,2061,BRITAIN IN BLOOM,PL0395,2017/05/08 23:00:00+00,2017/05/09 23:00:00+00,160764,460,Revenue,Complete Weed Control (Kent),May,2017,296
Tunbridge Wells Borough Council,Housing Services,108,HO,HOUSING,BED & BREAKFAST COSTS,RENTS/HIRE OF PREMISES,2200,-,-,2017/05/07 23:00:00+00,2017/05/09 23:00:00+00,160639,437.5,Revenue,This data has been redacted under the Data Protection Act,May,2017,297
Tunbridge Wells Borough Council,Cultural and Related Services,104,PK,PARKS,PARKS & GROUNDS,Horticulture,2061,BRITAIN IN BLOOM,PL0395,2017/05/09 23:00:00+00,2017/05/09 23:00:00+00,160789,432.899993896484,Revenue,PlantScape,May,2017,298
Tunbridge Wells Borough Council,Cultural and Related Services,104,AB,ASSEMBLY HALL BAR,A-HALL FRONT OF HOUSE,COGS - ICE CREAMS,3093,-,-,2017/05/08 23:00:00+00,2017/05/09 23:00:00+00,160123,420,Revenue,Taywell Ice Creams Limited,May,2017,299
Tunbridge Wells Borough Council,Cultural and Related Services,104,PK,PARKS,PARKS & GROUNDS,Horticulture,2061,-,-,2017/05/09 23:00:00+00,2017/05/09 23:00:00+00,160801,420,Revenue,Treework,May,2017,300
Tunbridge Wells Borough Council,Central Services,102,CE,CHIEF EXECUTIVE,DEMOCRATIC MANAGEMENT,SUBS TO ORGANISATIONS,3730,-,-,2017/05/09 23:00:00+00,2017/05/09 23:00:00+00,160753,410,Revenue,District Councils Network,May,2017,301
Tunbridge Wells Borough Council,Central Services,102,FI,FINANCE,BUSINESS DELIVERY UNIT,CAR CLUB EXPENSES,1470,-,-,2017/05/09 23:00:00+00,2017/05/09 23:00:00+00,160121,407.420013427734,Revenue,Co-wheels Car Club,May,2017,302
Tunbridge Wells Borough Council,Environmental and regulatory services ,105,CR,CREMATORIUM,CREMATORIUM,GROUNDS MAINT CONTRACTS,2050,-,-,2017/05/09 23:00:00+00,2017/05/09 23:00:00+00,160672,404,Revenue,D C Jordan,May,2017,303
Tunbridge Wells Borough Council,Cultural and Related Services,104,MU,MUSEUM,MUSEUM & ART GALLERY,PROMOTION,3450,-,-,2017/05/04 23:00:00+00,2017/05/09 23:00:00+00,160522,400,Revenue,Primary Times,May,2017,304
Tunbridge Wells Borough Council,Housing Services,108,HO,HOUSING,BED & BREAKFAST COSTS,RENTS/HIRE OF PREMISES,2200,-,-,2017/05/09 23:00:00+00,2017/05/09 23:00:00+00,160782,399,Revenue,Spa Caffe Ltd,May,2017,305
Tunbridge Wells Borough Council,Planning Services,110,PL,PLANNING,DEVELOPMENT MANAGEMENT,PLANNING CONSULTANT FEES,3270,-,-,2017/05/08 23:00:00+00,2017/05/09 23:00:00+00,160756,392.130004882813,Revenue,G2 Recruitment Solutions Limited,May,2017,306
Tunbridge Wells Borough Council,Cultural and Related Services,104,AB,ASSEMBLY HALL BAR,A-HALL FRONT OF HOUSE,COGS - ICE CREAMS,3093,-,-,2017/05/08 23:00:00+00,2017/05/09 23:00:00+00,160554,385,Revenue,Taywell Ice Creams Limited,May,2017,307
Tunbridge Wells Borough Council,Highways and Transport Services,107,DS,Sundry Customer,OFF STREET PARKING,ROOM HIRE,3960,-,-,2017/05/09 23:00:00+00,2017/05/09 23:00:00+00,160610,375,Revenue,4 NEW SQUARE LIMITED,May,2017,308
Tunbridge Wells Borough Council,Central Services,102,PS,PROPERTY SERVICES,BUILDING SERVICES,PROPERTY CONSULTANTS,3290,-,-,2017/05/01 23:00:00+00,2017/05/02 23:00:00+00,159811,4333.39990234375,Revenue,MDA Maintenance Management,May,2017,309
Tunbridge Wells Borough Council,Planning Services,110,PS,PROPERTY SERVICES,DEVELOPMENT PROGRAMME,PROPERTY CONSULTANTS,3290,MASTERPLAN CIVIC COMPLEX,PH0709,2017/04/25 23:00:00+00,2017/04/25 23:00:00+00,159948,357391.34375,Revenue,GVA Grimley Ltd,April,2017,310
Tunbridge Wells Borough Council,Central Services,102,PS,PROPERTY SERVICES,TOWN HALL,RESPONSIVE REPAIRS BUILDINGS,2020,PROPERTY CONTRACTS,PH0600,2017/05/02 23:00:00+00,2017/05/02 23:00:00+00,159756,3894.60009765625,Revenue,Millwood Servicing Ltd,May,2017,311
Tunbridge Wells Borough Council,Cultural and Related Services,104,FI,FINANCE,TW COMMONS,PRECEPTS & LEVIES,3900,-,-,2017/04/24 23:00:00+00,2017/04/25 23:00:00+00,160206,75000,Revenue,Tun Wells Commons Conservators,April,2017,312
Tunbridge Wells Borough Council,Culteral and related services,104,HE,HEALTHY COMMUNITIES,RUSTHALL FOOTBALL CLUB,CAPITAL CONTRIBUTIONS PAYABLE,8356,-,-,2017/04/24 23:00:00+00,2017/04/25 23:00:00+00,160119,38634,Capital,RUSTHALL FOOTBALL CLUB,April,2017,313
Tunbridge Wells Borough Council,Central Services,102,EL,ELECTIONS,NON TWBC ELECTIONS,POSTAGE,3500,KCC ELECTIONS MAY 2017,CS0401,2017/04/20 23:00:00+00,2017/04/25 23:00:00+00,159690,20270.240234375,Revenue,Royal Mail  Group plc,April,2017,314
Tunbridge Wells Borough Council,Central Services,102,FI,FINANCE,FMS UPGRADE,COMPUTER SOFTWARE,8341,-,-,2017/04/25 23:00:00+00,2017/04/25 23:00:00+00,159816,14600,Capital,Advanced Business Solutions,April,2017,315
Tunbridge Wells Borough Council,Central Services,102,FI,FINANCE,ACCOUNTANCY,PHOTOCOPYING EXPENSES,3180,PHOTOCOPYING RENTAL,EV0311,2017/04/23 23:00:00+00,2017/04/25 23:00:00+00,160000,10619.51953125,Revenue,Sharp Business Systems UK Plc,April,2017,316
Tunbridge Wells Borough Council,Central Services,102,FI,FINANCE,STAFF CAR LOANS,LOANS - UNSECURED,8530,CAR LOAN - ALEX DEVLIN,LS0128,2017/04/25 23:00:00+00,2017/04/25 23:00:00+00,160228,10485.8701171875,Revenue,ST LEONARDS MOTORS LTD,April,2017,317
Tunbridge Wells Borough Council,Housing Services,108,HO,HOUSING,RENT DEPOSIT SCHEME,DEBTORS,8510,-,-,2017/04/25 23:00:00+00,2017/04/25 23:00:00+00,160210,10200,Revenue,This data has been redacted under the Data Protection Act,April,2017,318
Tunbridge Wells Borough Council,Environmental and regulatory services ,105,LI,LICENSING,LICENSING,PARTNERSHIP AGREEMENT,202,-,-,2017/04/24 23:00:00+00,2017/04/25 23:00:00+00,160196,9781,Revenue,Sevenoaks District Council,April,2017,319
Tunbridge Wells Borough Council,Planning Services,110,PL,PLANNING,PLANNING POLICY,PLANNING CONSULTANT FEES,3270,-,-,2017/04/20 23:00:00+00,2017/04/25 23:00:00+00,159947,9000,Revenue,This data has been redacted under the Data Protection Act,April,2017,320
Tunbridge Wells Borough Council,Housing Services,108,HP,HOUSING (PRIVATE SECTOR),PRIVATE SECTOR HOUSING,GRANTS,3750,-,-,2017/04/23 23:00:00+00,2017/04/25 23:00:00+00,160006,8659.4501953125,Revenue,Family Mosaic Housing,April,2017,321
Tunbridge Wells Borough Council,Cultural and Related Services,104,AH,ASSEMBLY HALL,A-HALL COUNCIL SHOWS,SHOW FEES,3380,170303 DAVID GOWER & CHIRS CRO,A17C06,2017/04/25 23:00:00+00,2017/04/25 23:00:00+00,160183,8153.39013671875,Revenue,EMMA BRUNJES PRODUCTIONS LTD,April,2017,322
Tunbridge Wells Borough Council,Housing Services,108,HO,HOUSING,RENT DEPOSIT SCHEME,DEBTORS,8510,-,-,2017/04/25 23:00:00+00,2017/04/25 23:00:00+00,160199,7754,Revenue,Your Move,April,2017,323
Tunbridge Wells Borough Council,Housing Services,108,FI,FINANCE,RENT DEPOSIT SCHEME,DEBTORS,8510,-,-,2017/04/25 23:00:00+00,2017/04/25 23:00:00+00,160224,7515,Revenue,The Letting Company,April,2017,324
Tunbridge Wells Borough Council,Cultural and Related Services,104,AH,ASSEMBLY HALL,A-HALL COUNCIL SHOWS,SHOW FEES,3380,170324 BEN E KING,A17C04,2017/04/24 23:00:00+00,2017/04/25 23:00:00+00,160198,6927.5,Revenue,PMG Live Limited,April,2017,325
Tunbridge Wells Borough Council,Housing Services,108,HO,HOUSING,RENT DEPOSIT SCHEME,DEBTORS,8510,-,-,2017/04/25 23:00:00+00,2017/04/25 23:00:00+00,160200,6350,Revenue,This data has been redacted under the Data Protection Act,April,2017,326
Tunbridge Wells Borough Council,Central Services,102,FM,FACILITIES MANAGEMENT,TOWN HALL,ELECTRICITY,2140,-,-,2017/04/25 23:00:00+00,2017/04/25 23:00:00+00,160169,5367.2001953125,Revenue,Kent County Council (KCS),April,2017,327
Tunbridge Wells Borough Council,Environmental and regulatory services ,105,PK,PARKS,CREMATORIUM,Grounds Maint. Sodexo Contract,2054,-,-,2017/04/23 23:00:00+00,2017/04/25 23:00:00+00,159997,5348.419921875,Revenue,Boningale Ltd,April,2017,328
Tunbridge Wells Borough Council,Central Services,102,FM,FACILITIES MANAGEMENT,CIVIC CENTRE HEATING,GAS,2120,-,-,2017/04/24 23:00:00+00,2017/04/25 23:00:00+00,160170,4639.759765625,Revenue,Kent County Council (KCS),April,2017,329
Tunbridge Wells Borough Council,Cultural and Related Services,104,AH,ASSEMBLY HALL,A-HALL COUNCIL SHOWS,SHOW FEES,3380,1703 YOU WIN AGAIN,A17C12,2017/04/24 23:00:00+00,2017/04/25 23:00:00+00,160009,3756.78002929688,Revenue,Entertainers Show Providers Ltd,April,2017,330
Tunbridge Wells Borough Council,Cultural and Related Services,104,AB,ASSEMBLY HALL BAR,ASSEMBLY HALL ICT,COMPUTER SOFTWARE,8341,-,-,2017/04/24 23:00:00+00,2017/04/25 23:00:00+00,159626,3750,Capital,TopTix (UK) Ltd,April,2017,331
Tunbridge Wells Borough Council,Housing Services,108,HO,HOUSING,HOUSING NEEDS SERVICE,SUBS TO ORGANISATIONS,3730,-,-,2017/04/25 23:00:00+00,2017/04/25 23:00:00+00,160105,3500,Revenue,Ashford Borough Council,April,2017,332
Tunbridge Wells Borough Council,Environmental and regulatory services ,105,CS,CLIENT SERVICES (DEPOT),NORTH FARM DEPOT,FIRE & SECURITY COSTS,2080,-,-,2017/04/24 23:00:00+00,2017/04/25 23:00:00+00,159634,2870.35009765625,Revenue,Emprise Services plc,April,2017,333
Tunbridge Wells Borough Council,Cultural and Related Services,104,AH,ASSEMBLY HALL,A-HALL HIRE SHOWS,TICKET REPAYMENT,5421,170304 RTWSO,A17Q02,2017/04/24 23:00:00+00,2017/04/25 23:00:00+00,160186,2796,Revenue,Royal T W Symphony Orchestra,April,2017,334
Tunbridge Wells Borough Council,Environmental and regulatory services ,105,CS,CLIENT SERVICES (DEPOT),CLEANER BOROUGH,OTHER FEES,3330,-,-,2017/04/20 23:00:00+00,2017/04/25 23:00:00+00,159934,2640,Revenue,Kingdom Security Limited,April,2017,335
Tunbridge Wells Borough Council,Cultural and Related Services,104,AH,ASSEMBLY HALL,A-HALL TECHNICAL,CONTRACT CLEANING,2510,PROPERTY CLEANING CONTRACT,PH0590,2017/04/24 23:00:00+00,2017/04/25 23:00:00+00,159980,2386.8798828125,Revenue,CORDANT CLEANING LTD,April,2017,336
Tunbridge Wells Borough Council,Housing Services,108,HP,HOUSING (PRIVATE SECTOR),CINDERHILL WOOD CARAVAN SITE,ELECTRICITY,2140,-,-,2017/04/25 23:00:00+00,2017/04/25 23:00:00+00,160156,2286.39990234375,Revenue,Kent County Council (KCS),April,2017,337
Tunbridge Wells Borough Council,Highways and Transport Services,107,PA,PARKING,CRESCENT ROAD CAR PARK,FIRE & SECURITY COSTS,2080,-,-,2017/04/23 23:00:00+00,2017/04/25 23:00:00+00,159768,2280,Revenue,RIGHT GUARD SECURITY UK LTD,April,2017,338
Tunbridge Wells Borough Council,Housing Services,108,HP,HOUSING (PRIVATE SECTOR),PRIVATE SECTOR HOUSING,WORKS IN DEFAULT - COSTS,3801,-,-,2017/04/24 23:00:00+00,2017/04/25 23:00:00+00,160189,2100,Revenue,This data has been redacted under the Data Protection Act,April,2017,339
Tunbridge Wells Borough Council,Housing Services,108,FI,FINANCE,RENT DEPOSIT SCHEME,DEBTORS,8510,-,-,2017/04/25 23:00:00+00,2017/04/25 23:00:00+00,160223,2012,Revenue,This data has been redacted under the Data Protection Act,April,2017,340
Tunbridge Wells Borough Council,Housing Services,108,HO,HOUSING,MORTGAGE & LOANS CASH,CASH IN HAND,8600,-,-,2017/04/25 23:00:00+00,2017/04/25 23:00:00+00,160225,1921.2099609375,Revenue,This data has been redacted under the Data Protection Act,April,2017,341
Tunbridge Wells Borough Council,Central Services,102,PS,PROPERTY SERVICES,BUILDING SERVICES,AGENCY STAFF,100,-,-,2017/04/20 23:00:00+00,2017/04/25 23:00:00+00,159808,1893.92004394531,Revenue,Hays Montrose,April,2017,342
Tunbridge Wells Borough Council,Environmental and regulatory services ,105,CS,CLIENT SERVICES (DEPOT),CLEANER BOROUGH,OTHER FEES,3330,-,-,2017/04/20 23:00:00+00,2017/04/25 23:00:00+00,159757,1800,Revenue,Kingdom Security Limited,April,2017,343
Tunbridge Wells Borough Council,Central Services,102,IT,INFORMATION & COMMUNICATIONS TECHNOLOGY,MEMBERS TABLETS,COMPUTER HARDWARE,8329,-,-,2017/04/25 23:00:00+00,2017/04/25 23:00:00+00,160157,1738,Capital,Complete IT Systems Limited,April,2017,344
Tunbridge Wells Borough Council,Environmental and regulatory services ,105,CS,CLIENT SERVICES (DEPOT),NORTH FARM DEPOT,ELECTRICITY,2140,-,-,2017/04/20 23:00:00+00,2017/04/25 23:00:00+00,159792,1736.63000488281,Revenue,Kent County Council (KCS),April,2017,345
Tunbridge Wells Borough Council,Central Services,102,PS,PROPERTY SERVICES,BUILDING SERVICES,AGENCY STAFF,100,-,-,2017/04/24 23:00:00+00,2017/04/25 23:00:00+00,159969,1689.40002441406,Revenue,Hays Montrose,April,2017,346
Tunbridge Wells Borough Council,Housing Services,108,HO,HOUSING,BED & BREAKFAST COSTS,RENTS/HIRE OF PREMISES,2200,-,-,2017/04/24 23:00:00+00,2017/04/25 23:00:00+00,159583,1635.90002441406,Revenue,Spa Caffe Ltd,April,2017,347
Tunbridge Wells Borough Council,Central Services,102,CE,CHIEF EXECUTIVE,CHIEF EXECUTIVE,CONFERENCES/SEMINARS,205,-,-,2017/04/23 23:00:00+00,2017/04/25 23:00:00+00,160131,1635,Revenue,Local Government Association,April,2017,348
Tunbridge Wells Borough Council,Central Services,102,FM,FACILITIES MANAGEMENT,POSTAL CHARGES ACCOUNT,CASH TRANSFERS,9100,-,-,2017/04/24 23:00:00+00,2017/04/25 23:00:00+00,160126,1542.7900390625,Revenue,Royal Mail  Group plc,April,2017,349
Tunbridge Wells Borough Council,Environmental and regulatory services ,105,CS,CLIENT SERVICES (DEPOT),NORTH FARM DEPOT,ELECTRICITY,2140,-,-,2017/04/20 23:00:00+00,2017/04/25 23:00:00+00,159790,1415.51000976563,Revenue,Kent County Council (KCS),April,2017,350
Tunbridge Wells Borough Council,Cultural and Related Services,104,PK,PARKS,PARKS & GROUNDS,PROJECTS & INITIATIVES,3910,GROSVENOR/HILBERT HLF,PE0120,2017/04/25 23:00:00+00,2017/04/25 23:00:00+00,160117,1109.5,Revenue,Sodexo Ltd,April,2017,351
Tunbridge Wells Borough Council,Cultural and Related Services,104,PK,PARKS,PARKS & GROUNDS,Horticulture,2061,-,-,2017/04/24 23:00:00+00,2017/04/25 23:00:00+00,160159,1090,Revenue,Treework,April,2017,352
Tunbridge Wells Borough Council,Highways and Transport Services,107,PA,PARKING,CRESCENT ROAD CAR PARK,ELECTRICITY,2140,-,-,2017/05/01 23:00:00+00,2017/05/02 23:00:00+00,159796,3400.07006835938,Revenue,Kent County Council (KCS),May,2017,353
Tunbridge Wells Borough Council,Central Services,102,HR,HUMAN RESOURCES,I T SERVICE,IT SOFTWARE,3590,-,-,2017/05/02 23:00:00+00,2017/05/02 23:00:00+00,160103,2996.2099609375,Revenue,Covalent Software Limited,May,2017,354
Tunbridge Wells Borough Council,Environmental and regulatory services ,105,CS,CLIENT SERVICES (DEPOT),CLEANER BOROUGH,OTHER FEES,3330,LITTERING ENFORCEMENT,EV0464,2017/05/01 23:00:00+00,2017/05/02 23:00:00+00,159793,2964.85009765625,Revenue,Kingdom Security Limited,May,2017,355
Tunbridge Wells Borough Council,Highways and Transport Services,107,PA,PARKING,CRESCENT ROAD CAR PARK,ELECTRICITY,2140,-,-,2017/05/01 23:00:00+00,2017/05/02 23:00:00+00,159795,2918.580078125,Revenue,Kent County Council (KCS),May,2017,356
Tunbridge Wells Borough Council,Environmental and regulatory services ,105,EH,ENVIRONMENTAL HEALTH,HEAD OF ENVIRONMENT & SS,EXTERNAL TRAINING,204,-,-,2017/05/02 23:00:00+00,2017/05/02 23:00:00+00,160441,2880,Revenue,Ricardo-AEA,May,2017,357
Tunbridge Wells Borough Council,Housing Services,108,PS,PROPERTY SERVICES,PROPERTY,RESPONSIVE REPAIRS BUILDINGS,2020,PROPERTY CONTRACTS,PH0600,2017/05/02 23:00:00+00,2017/05/02 23:00:00+00,159739,2727.27001953125,Revenue,Millwood Servicing Ltd,May,2017,358
Tunbridge Wells Borough Council,Cultural and Related Services,104,AH,ASSEMBLY HALL,A-HALL HIRE SHOWS,TICKET REPAYMENT,5421,170310 WOMEN WORK,A17Q09,2017/05/02 23:00:00+00,2017/05/02 23:00:00+00,160419,2400,Revenue,Women Work Events,May,2017,359
Tunbridge Wells Borough Council,Environmental and regulatory services ,105,CU,COMMUNITY SAFTY UNIT,CCTV,PARTNERSHIP AGREEMENT,202,-,-,2017/05/01 23:00:00+00,2017/05/02 23:00:00+00,160379,2369,Revenue,Sevenoaks District Council,May,2017,360
Tunbridge Wells Borough Council,Housing Services,108,DS,Sundry Customer,HOUSING RENEWAL ADVANCES,CAPITAL GRANTS PAYABLE,8355,WINTER WARMTH SCHEMES,PG0113,2017/05/02 23:00:00+00,2017/05/02 23:00:00+00,160344,2200,Capital,This data has been redacted under the Data Protection Act,May,2017,361
Tunbridge Wells Borough Council,Central Services,102,RB,REVS & BENS,BENEFITS,OTHER FEES,3330,-,-,2017/05/01 23:00:00+00,2017/05/02 23:00:00+00,159942,2000,Revenue,Tunbridge Wells Citizens Advice Bureau,May,2017,362
Tunbridge Wells Borough Council,Planning Services,110,CO,COMMUNITY & CORPORATE PLANNING,COMMUNITY CAPITAL GRANTS,CAPITAL GRANTS PAYABLE,8355,TW CRICKET CLUB 17/18,PG0753,2017/05/02 23:00:00+00,2017/05/02 23:00:00+00,160423,2000,Capital,Tunbridge Wells Cricket Club,May,2017,363
Tunbridge Wells Borough Council,Planning Services,110,HE,HEALTHY COMMUNITIES,COMMUNITY & GRANTS,GRANTS,3750,-,-,2017/05/02 23:00:00+00,2017/05/02 23:00:00+00,160438,2000,Revenue,PADDOCK WOOD COMMUNITY ADVICE CENTRE,May,2017,364
Tunbridge Wells Borough Council,Planning Services,110,HE,HEALTHY COMMUNITIES,COMMUNITY CAPITAL GRANTS,CAPITAL GRANTS PAYABLE,8355,CRANBROOK & SISSINGHURST 17/18,PG0754,2017/05/02 23:00:00+00,2017/05/02 23:00:00+00,160430,1933,Capital,Cranbrook & Sissinghurst  Parish Council,May,2017,365
Tunbridge Wells Borough Council,Environmental and regulatory services ,105,CR,CREMATORIUM,CREMATORIUM,ELECTRICITY,2140,-,-,2017/05/01 23:00:00+00,2017/05/02 23:00:00+00,160112,1905.48999023438,Revenue,Kent County Council (KCS),May,2017,366
Tunbridge Wells Borough Council,Central Services,102,PP,POLICY AND PERFORMANCE,PERFORMANCE MANAGEMENT,QUALIFICATIONS TRAINING,207,-,-,2017/05/02 23:00:00+00,2017/05/02 23:00:00+00,160435,1795,Revenue,Act Now Training Ltd,May,2017,367
Tunbridge Wells Borough Council,Environmental and regulatory services ,105,CC,CAMDEN CENTRE,CCTV,EQUIPMENT PURCHASE/MTCE,3000,-,-,2017/05/02 23:00:00+00,2017/05/02 23:00:00+00,160345,1683.43005371094,Revenue,Chroma Vision Limited,May,2017,368
Tunbridge Wells Borough Council,Environmental and regulatory services ,105,CR,CREMATORIUM,CREMATORIUM,GAS/CREMATORS,2121,-,-,2017/05/01 23:00:00+00,2017/05/02 23:00:00+00,160111,1646.86999511719,Revenue,Kent County Council (KCS),May,2017,369
Tunbridge Wells Borough Council,Environmental and regulatory services ,105,EH,ENVIRONMENTAL HEALTH,CHOOSING HEALTH,PROJECTS & INITIATIVES,3910,CHSG HEALTH HEALTHY LIVING,EV0950,2017/05/01 23:00:00+00,2017/05/02 23:00:00+00,160168,1239,Revenue,Sevenoaks District Council,May,2017,370
Tunbridge Wells Borough Council,Cultural and Related Services,104,AB,ASSEMBLY HALL BAR,A-HALL FRONT OF HOUSE,COGS - DRINK,3091,-,-,2017/05/02 23:00:00+00,2017/05/02 23:00:00+00,159930,1218.7900390625,Revenue,H T White & Co Ltd,May,2017,371
Tunbridge Wells Borough Council,Central Services,102,FM,FACILITIES MANAGEMENT,POSTAL CHARGES ACCOUNT,CASH TRANSFERS,9100,-,-,2017/05/02 23:00:00+00,2017/05/02 23:00:00+00,160356,1001.47998046875,Revenue,Royal Mail  Group plc,May,2017,372
Tunbridge Wells Borough Council,Cultural and Related Services,104,PK,PARKS,PARKS & GROUNDS,GROUND MAINT.infrastructure,2063,-,-,2017/05/01 23:00:00+00,2017/05/02 23:00:00+00,160385,985,Revenue,D S Restoration,May,2017,373
Tunbridge Wells Borough Council,Central Services,102,EL,ELECTIONS,NON TWBC ELECTIONS,RENTS/HIRE OF PREMISES,2200,GENERAL ELECTION JUNE 2017,CS0402,2017/05/02 23:00:00+00,2017/05/02 23:00:00+00,160432,922.5,Revenue,Fusion Lifestyle,May,2017,374
Tunbridge Wells Borough Council,Highways and Transport Services,107,PA,PARKING,PARKING ADMIN & ENFORCEMENT,NATNL PARKING ADJUDCTN SERVICE,3331,-,-,2017/05/02 23:00:00+00,2017/05/02 23:00:00+00,160436,623.599975585938,Revenue,Patrol Bus,May,2017,375
Tunbridge Wells Borough Council,Central Services,102,IT,INFORMATION & COMMUNICATIONS TECHNOLOGY,I T SERVICE,COMPUTER HARDWARE,3580,HARDWARE REPLACEMENT,EV0324,2017/05/02 23:00:00+00,2017/05/02 23:00:00+00,160434,617,Revenue,Insight Direct (UK) Ltd,May,2017,376
Tunbridge Wells Borough Council,Housing Services,108,HO,HOUSING,RENT DEPOSIT SCHEME,DEBTORS,8510,-,-,2017/05/02 23:00:00+00,2017/05/02 23:00:00+00,160415,600,Revenue,This data has been redacted under the Data Protection Act,May,2017,377
Tunbridge Wells Borough Council,Housing Services,108,HO,HOUSING,BED & BREAKFAST COSTS,RENTS/HIRE OF PREMISES,2200,-,-,2017/05/01 23:00:00+00,2017/05/02 23:00:00+00,160410,490,Revenue,This data has been redacted under the Data Protection Act,May,2017,378
Tunbridge Wells Borough Council,Central Services,102,RB,REVS & BENS,REVS & BENS ADMINISTRATION,CONSULTANTS FEES,3292,-,-,2017/05/01 23:00:00+00,2017/05/02 23:00:00+00,160358,435,Revenue,STRATEGIC INTELLIGENCE & RISK SERVICES EUROPE,May,2017,379
Tunbridge Wells Borough Council,Highways and Transport Services,107,PA,PARKING,PARKING ADMIN & ENFORCEMENT,UNIFORMS & PROTECTIVE CLOTHING,3100,-,-,2017/05/02 23:00:00+00,2017/05/02 23:00:00+00,159738,402.399993896484,Revenue,Keltic Clothing Ltd,May,2017,380
Tunbridge Wells Borough Council,Environmental and regulatory services ,105,EH,ENVIRONMENTAL HEALTH,FOOD & SAFETY,AGENCY STAFF,100,-,-,2017/05/02 23:00:00+00,2017/05/02 23:00:00+00,160366,402,Revenue,Recruitment Solutions,May,2017,381
Tunbridge Wells Borough Council,Environmental and regulatory services ,105,FM,FACILITIES MANAGEMENT,NORTH FARM DEPOT,MAINT/SERVICING PLANT,2030,-,-,2017/05/02 23:00:00+00,2017/05/02 23:00:00+00,160346,375,Revenue,Swale Shutter and Door Services Limited,May,2017,382
Tunbridge Wells Borough Council,Housing Services,108,HO,HOUSING,BED & BREAKFAST COSTS,RENTS/HIRE OF PREMISES,2200,-,-,2017/05/01 23:00:00+00,2017/05/02 23:00:00+00,160411,350,Revenue,This data has been redacted under the Data Protection Act,May,2017,383
Tunbridge Wells Borough Council,Housing Services,108,HO,HOUSING,BED & BREAKFAST COSTS,RENTS/HIRE OF PREMISES,2200,-,-,2017/05/01 23:00:00+00,2017/05/02 23:00:00+00,160409,312.5,Revenue,This data has been redacted under the Data Protection Act,May,2017,384
Tunbridge Wells Borough Council,Housing Services,108,HO,HOUSING,BED & BREAKFAST COSTS,RENTS/HIRE OF PREMISES,2200,-,-,2017/05/01 23:00:00+00,2017/05/02 23:00:00+00,160407,262.5,Revenue,This data has been redacted under the Data Protection Act,May,2017,385
Tunbridge Wells Borough Council,Environmental and regulatory services ,105,CS,CLIENT SERVICES (DEPOT),REFUSE COLLECTION SERVICES,EXTERNAL CONTRACT PAYMENTS,3220,-,-,2017/05/09 23:00:00+00,2017/05/09 23:00:00+00,159801,218103.484375,Revenue,BIFFA MUNICIPAL LTD,May,2017,386
Tunbridge Wells Borough Council,Highways and Transport Services,107,FI,FINANCE,OFF STREET PARKING,CONTRIBUTION TO PROVISIONS,3957,-,-,2017/05/09 23:00:00+00,2017/05/09 23:00:00+00,119729,56584.33984375,Revenue,Expense Reduction Analysts (Mr Peter Randall),May,2017,387
Tunbridge Wells Borough Council,Planning Services,110,ED,ECONOMIC DEVELOPMENT,ECONOMIC DEVELOPMENT,PROJECTS & INITIATIVES,3910,RTW TOGETHER,EV0254,2017/05/09 23:00:00+00,2017/05/09 23:00:00+00,160609,30000,Revenue,This data has been redacted under the Data Protection Act,May,2017,388
Tunbridge Wells Borough Council,Highways and Transport Services,107,FI,FINANCE,OFF STREET PARKING,CONTRIBUTION TO PROVISIONS,3957,-,-,2017/05/09 23:00:00+00,2017/05/09 23:00:00+00,160849,22098.7890625,Revenue,Expense Reduction Analysts (Mr Peter Randall),May,2017,389
Tunbridge Wells Borough Council,Central Services,102,SH,SHERWOOD,HEAD OF COMMUNITIES & ENGAGE,PROJECTS & INITIATIVES,3910,FAMILIES FIRST,EV0070,2017/05/09 23:00:00+00,2017/05/09 23:00:00+00,160365,21198.44921875,Revenue,West Kent Housing Association,May,2017,390
Tunbridge Wells Borough Council,Environmental and regulatory services ,105,CS,CLIENT SERVICES (DEPOT),REFUSE COLLECTION SERVICES,EQUIPMENT PURCHASE/MTCE,3000,-,-,2017/05/03 23:00:00+00,2017/05/09 23:00:00+00,158788,18984,Revenue,Straight Manufacturing Ltd,May,2017,391
Tunbridge Wells Borough Council,Central Services,102,IT,INFORMATION & COMMUNICATIONS TECHNOLOGY,I T SERVICE,IT SOFTWARE,3590,-,-,2017/05/07 23:00:00+00,2017/05/09 23:00:00+00,160567,13503.33984375,Revenue,Limehouse Software Ltd,May,2017,392
Tunbridge Wells Borough Council,Central Services,102,PS,PROPERTY SERVICES,BUILDING SERVICES,PROPERTY CONSULTANTS,3290,-,-,2017/05/09 23:00:00+00,2017/05/09 23:00:00+00,159029,12000,Revenue,GL HEARN LIMITED,May,2017,393
Tunbridge Wells Borough Council,Cultural and Related Services,104,AH,ASSEMBLY HALL,A-HALL HIRE SHOWS,TICKET REPAYMENT,5421,170318-19 LAMBERHURST BALLET S,A17Q04,2017/05/09 23:00:00+00,2017/05/09 23:00:00+00,160402,11666,Revenue,Lamberhurst School of Theatre Dance,May,2017,394
Tunbridge Wells Borough Council,Cultural and Related Services,104,AH,ASSEMBLY HALL,A-HALL COUNCIL SHOWS,SHOW FEES,3380,170420 THAT BE THE DAY,A17D12,2017/05/09 23:00:00+00,2017/05/09 23:00:00+00,160856,11061.8896484375,Revenue,DEREK BLOCK CONCERTS LTD,May,2017,395
Tunbridge Wells Borough Council,Cultural and Related Services,104,AH,ASSEMBLY HALL,A-HALL COUNCIL SHOWS,SHOW FEES,3380,170308 G4,A17C08,2017/05/07 23:00:00+00,2017/05/09 23:00:00+00,160595,8704.2998046875,Revenue,AMICK PRODUCTIONS LTD,May,2017,396
Tunbridge Wells Borough Council,Housing Services,108,PS,PROPERTY SERVICES,PROPERTY,MAINT/SERVICING PLANT,2030,PROPERTY CONTRACTS,PH0600,2017/05/09 23:00:00+00,2017/05/09 23:00:00+00,159952,8488.599609375,Revenue,OCO Limited,May,2017,397
Tunbridge Wells Borough Council,Cultural and Related Services,104,AH,ASSEMBLY HALL,A-HALL COUNCIL SHOWS,SHOW FEES,3380,170408 LETS HANG ON,A17D05,2017/05/08 23:00:00+00,2017/05/09 23:00:00+00,160738,8020.52978515625,Revenue,Riviera Entertainments Ltd,May,2017,398
Tunbridge Wells Borough Council,Housing Services,108,PS,PROPERTY SERVICES,PROPERTY,MAINT/SERVICING PLANT,2030,PROPERTY CONTRACTS,PH0600,2017/05/09 23:00:00+00,2017/05/09 23:00:00+00,159953,7251.35986328125,Revenue,OCO Limited,May,2017,399
Tunbridge Wells Borough Council,Cultural and Related Services,104,AH,ASSEMBLY HALL,A-HALL COUNCIL SHOWS,SHOW FEES,3380,170409 OMID DJALILI,A17D06,2017/05/09 23:00:00+00,2017/05/09 23:00:00+00,160858,6837.4599609375,Revenue,Bound & Gagged Comedy Ltd,May,2017,400
Tunbridge Wells Borough Council,Environmental and regulatory services ,105,CS,CLIENT SERVICES (DEPOT),NORTH FARM DEPOT,GAS,2120,-,-,2017/05/09 23:00:00+00,2017/05/09 23:00:00+00,160666,363.600006103516,Revenue,Kent County Council (KCS),May,2017,401
Tunbridge Wells Borough Council,Central Services,102,EL,ELECTIONS,NON TWBC ELECTIONS,RENTS/HIRE OF PREMISES,2200,KCC ELECTIONS MAY 2017,CS0401,2017/05/09 23:00:00+00,2017/05/09 23:00:00+00,160535,360,Revenue,Matfield Village Hall,May,2017,402
Tunbridge Wells Borough Council,Housing Services,108,TN,TN2 CENTRE,TN2 COMMUNITY CENTRE,ELECTRICITY,2140,-,-,2017/05/09 23:00:00+00,2017/05/09 23:00:00+00,160108,359.269989013672,Revenue,Kent County Council (KCS),May,2017,403
Tunbridge Wells Borough Council,Cultural and Related Services,104,PK,PARKS,PARKS & GROUNDS,GAS,2120,-,-,2017/05/09 23:00:00+00,2017/05/09 23:00:00+00,160726,358.989990234375,Revenue,Kent County Council (KCS),May,2017,404
Tunbridge Wells Borough Council,Housing Services,108,HO,HOUSING,BED & BREAKFAST COSTS,RENTS/HIRE OF PREMISES,2200,-,-,2017/05/07 23:00:00+00,2017/05/09 23:00:00+00,160636,350,Revenue,This data has been redacted under the Data Protection Act,May,2017,405
Tunbridge Wells Borough Council,Environmental and regulatory services ,105,CS,CLIENT SERVICES (DEPOT),CLEANER BOROUGH,OTHER FEES,3330,LITTERING ENFORCEMENT,EV0464,2017/05/30 23:00:00+00,2017/05/30 23:00:00+00,160783,2400,Revenue,Kingdom Security Limited,May,2017,406
Tunbridge Wells Borough Council,Central Services,102,PS,PROPERTY SERVICES,BUILDING SERVICES,AGENCY STAFF,100,-,-,2017/05/11 23:00:00+00,2017/05/16 23:00:00+00,160563,1552.43994140625,Revenue,Hays Montrose,May,2017,407
Tunbridge Wells Borough Council,Housing Services,108,HO,HOUSING,BED & BREAKFAST COSTS,RENTS/HIRE OF PREMISES,2200,-,-,2017/05/07 23:00:00+00,2017/05/09 23:00:00+00,160642,350,Revenue,This data has been redacted under the Data Protection Act,May,2017,408
Tunbridge Wells Borough Council,Central Services,102,PU,PUBLICATIONS,NON TWBC ELECTIONS,STATIONERY,3160,-,-,2017/05/08 23:00:00+00,2017/05/09 23:00:00+00,160632,341.230010986328,Revenue,Graphics Direct Ltd,May,2017,409
Tunbridge Wells Borough Council,Cultural and Related Services,104,PK,PARKS,PARKS & GROUNDS,GAS,2120,-,-,2017/05/09 23:00:00+00,2017/05/09 23:00:00+00,160731,329.779998779297,Revenue,Kent County Council (KCS),May,2017,410
Tunbridge Wells Borough Council,Cultural and Related Services,104,AB,ASSEMBLY HALL BAR,EVENTS,LICENCES (INC PRS/PPL),3390,-,-,2017/05/09 23:00:00+00,2017/05/09 23:00:00+00,160728,320,Revenue,Sevenoaks District Council,May,2017,411
Tunbridge Wells Borough Council,Environmental and regulatory services ,105,CR,CREMATORIUM,CREMATORIUM,GAS,2120,-,-,2017/05/09 23:00:00+00,2017/05/09 23:00:00+00,160711,316.929992675781,Revenue,Kent County Council (KCS),May,2017,412
Tunbridge Wells Borough Council,Planning Services,110,PL,PLANNING,PLANNING POLICY,PLANNING CONSULTANT FEES,3270,NEW LOCAL PLAN,EV0589,2017/05/07 23:00:00+00,2017/05/09 23:00:00+00,160653,310,Revenue,Local World Limited,May,2017,413
Tunbridge Wells Borough Council,Housing Services,108,HO,HOUSING,BED & BREAKFAST COSTS,RENTS/HIRE OF PREMISES,2200,-,-,2017/05/09 23:00:00+00,2017/05/09 23:00:00+00,160780,307.799987792969,Revenue,Spa Caffe Ltd,May,2017,414
Tunbridge Wells Borough Council,Central Services,102,GW,GATEWAY CUSTOMER SERVICES,WEALD INFORMATION CENTRE,CLEANING SUPPLIES,2500,-,-,2017/05/09 23:00:00+00,2017/05/09 23:00:00+00,160373,304,Revenue,Cranbrook & Sissinghurst  Parish Council,May,2017,415
Tunbridge Wells Borough Council,Cultural and Related Services,104,PK,PARKS,PARKS & GROUNDS,GAS,2120,-,-,2017/05/09 23:00:00+00,2017/05/09 23:00:00+00,160729,269.329986572266,Revenue,Kent County Council (KCS),May,2017,416
Tunbridge Wells Borough Council,Cultural and Related Services,104,PK,PARKS,PARKS & GROUNDS,GAS,2120,-,-,2017/05/09 23:00:00+00,2017/05/09 23:00:00+00,160730,267.989990234375,Revenue,Kent County Council (KCS),May,2017,417
Tunbridge Wells Borough Council,Environmental and regulatory services ,105,CR,CREMATORIUM,CREMATORIUM,GAS,2120,-,-,2017/05/09 23:00:00+00,2017/05/09 23:00:00+00,160714,266.510009765625,Revenue,Kent County Council (KCS),May,2017,418
Tunbridge Wells Borough Council,Cultural and Related Services,104,PK,PARKS,PARKS & GROUNDS,GAS,2120,-,-,2017/05/09 23:00:00+00,2017/05/09 23:00:00+00,160727,264.220001220703,Revenue,Kent County Council (KCS),May,2017,419
Tunbridge Wells Borough Council,Environmental and regulatory services ,105,CR,CREMATORIUM,CREMATORIUM,GROUNDS MAINT CONTRACTS,2050,-,-,2017/05/09 23:00:00+00,2017/05/09 23:00:00+00,160673,264,Revenue,D C Jordan,May,2017,420
Tunbridge Wells Borough Council,Housing Services,108,HO,HOUSING,BED & BREAKFAST COSTS,RENTS/HIRE OF PREMISES,2200,-,-,2017/05/07 23:00:00+00,2017/05/09 23:00:00+00,160637,262.5,Revenue,This data has been redacted under the Data Protection Act,May,2017,421
Tunbridge Wells Borough Council,Housing Services,108,HO,HOUSING,BED & BREAKFAST COSTS,RENTS/HIRE OF PREMISES,2200,-,-,2017/05/07 23:00:00+00,2017/05/09 23:00:00+00,160638,262.5,Revenue,This data has been redacted under the Data Protection Act,May,2017,422
Tunbridge Wells Borough Council,Planning Services,110,FI,FINANCE,COMMUNITY & GRANTS,PROJECTS & INITIATIVES,3910,TW LOTTERY,EV0146,2017/05/09 23:00:00+00,2017/05/09 23:00:00+00,160443,261,Revenue,Gambling Commission,May,2017,423
Tunbridge Wells Borough Council,Environmental and regulatory services ,105,CR,CREMATORIUM,CREMATORIUM,GAS,2120,-,-,2017/05/09 23:00:00+00,2017/05/09 23:00:00+00,160715,259.269989013672,Revenue,Kent County Council (KCS),May,2017,424
Tunbridge Wells Borough Council,Environmental and regulatory services ,105,CR,CREMATORIUM,CREMATORIUM,GAS/CREMATORS,2121,-,-,2017/05/09 23:00:00+00,2017/05/09 23:00:00+00,160716,258.529998779297,Revenue,Kent County Council (KCS),May,2017,425
Tunbridge Wells Borough Council,Environmental and regulatory services ,105,CR,CREMATORIUM,CREMATORIUM,GAS/CREMATORS,2121,-,-,2017/05/09 23:00:00+00,2017/05/09 23:00:00+00,160733,257.559997558594,Revenue,Kent County Council (KCS),May,2017,426
Tunbridge Wells Borough Council,Central Services,102,ST,STATIONERY ORDERS,REVS & BENS ADMINISTRATION,PRINTING,3150,-,-,2017/05/08 23:00:00+00,2017/05/09 23:00:00+00,160602,253,Revenue,Corporate Document Services Limited,May,2017,427
Tunbridge Wells Borough Council,Highways and Transport Services,107,FI,FINANCE,ROYAL VICTORIA PLACE CAR PARK,SERVICE CHARGES,2240,-,-,2017/05/16 23:00:00+00,2017/05/16 23:00:00+00,161080,363665.40625,Revenue,CBRE RE C/A HERMES CMR,May,2017,428
Tunbridge Wells Borough Council,Housing Services,108,PS,PROPERTY SERVICES,TEMPORARY ACCOMMODATION,PLANNED MAINTENANCE BUILDINGS,2000,DOWDING HOUSE,PH0400,2017/05/16 23:00:00+00,2017/05/16 23:00:00+00,160440,43932.76171875,Revenue,G M Monk Ltd,May,2017,429
Tunbridge Wells Borough Council,Housing Services,108,PS,PROPERTY SERVICES,PROPERTIES ON LOAN,PLANNED MAINTENANCE BUILDINGS,2000,PROPERTY CONTRACTS,PH0600,2017/05/16 23:00:00+00,2017/05/16 23:00:00+00,160399,29436.73046875,Revenue,DCB (Kent) Ltd,May,2017,430
Tunbridge Wells Borough Council,Cultural and Related Services,104,AH,ASSEMBLY HALL,A-HALL COUNCIL SHOWS,SHOW FEES,3380,170414-16 LITTLE MERMAID,A17D04,2017/05/16 23:00:00+00,2017/05/16 23:00:00+00,161049,24855,Revenue,Captiv8 Productions Ltd,May,2017,431
Tunbridge Wells Borough Council,Environmental and regulatory services ,105,EN,ENVIRONMENT & STREET SCENE,CCTV,EXTERNAL CONTRACT PAYMENTS,3220,-,-,2017/05/15 23:00:00+00,2017/05/16 23:00:00+00,160702,16095.599609375,Revenue,OCS Group UK Limited t/a Cannon,May,2017,432
Tunbridge Wells Borough Council,Central Services,102,FM,FACILITIES MANAGEMENT,TOWN HALL,CONTRACT CLEANING,2510,PROPERTY CLEANING CONTRACT,PH0590,2017/05/15 23:00:00+00,2017/05/16 23:00:00+00,160805,15962.9296875,Revenue,CORDANT CLEANING LTD,May,2017,433
Tunbridge Wells Borough Council,Cultural and Related Services,104,AH,ASSEMBLY HALL,A-HALL COUNCIL SHOWS,SHOW FEES,3380,170302 ROB BRYDON,A17C11,2017/05/16 23:00:00+00,2017/05/16 23:00:00+00,161058,15549.2197265625,Revenue,Live Nation (Music) UK Ltd,May,2017,434
Tunbridge Wells Borough Council,Planning Services,110,CU,COMMUNITY SAFTY UNIT,SHERWOOD COMMISSIONING POT,PROJECTS & INITIATIVES,3910,-,-,2017/05/15 23:00:00+00,2017/05/16 23:00:00+00,161102,12600,Revenue,PROJECT SALUS CIC,May,2017,435
Tunbridge Wells Borough Council,Central Services,102,TR,TRANSFORMATION AND DELIVERY,TELEPHONY MKIP PROJECT,COMPUTER SOFTWARE,8341,-,-,2017/05/16 23:00:00+00,2017/05/16 23:00:00+00,161062,11369,Capital,3C TECHNOLOGY LTD,May,2017,436
Tunbridge Wells Borough Council,Central Services,102,EL,ELECTIONS,NON TWBC ELECTIONS,POSTAGE,3500,KCC ELECTIONS MAY 2017,CS0401,2017/05/11 23:00:00+00,2017/05/16 23:00:00+00,160623,5996.009765625,Revenue,Royal Mail  Group plc,May,2017,437
Tunbridge Wells Borough Council,Central Services,102,PS,PROPERTY SERVICES,BUILDING SERVICES,AGENCY STAFF,100,-,-,2017/05/11 23:00:00+00,2017/05/16 23:00:00+00,160649,5250,Revenue,Hays Montrose,May,2017,438
Tunbridge Wells Borough Council,Cultural and Related Services,104,AH,ASSEMBLY HALL,A-HALL COUNCIL SHOWS,SHOW FEES,3380,170503 JOOLS HOLLAND,A17E06,2017/05/16 23:00:00+00,2017/05/16 23:00:00+00,161146,4978.27001953125,Revenue,Helicon Mountain Ltd,May,2017,439
Tunbridge Wells Borough Council,Central Services,102,CT,COMMITTEE,I T SERVICE,IT SOFTWARE,3590,SOFTWARE MAINTENANCE,EV0328,2017/05/10 23:00:00+00,2017/05/16 23:00:00+00,160804,4673,Revenue,Modern Mindset Ltd,May,2017,440
Tunbridge Wells Borough Council,Housing Services,108,PS,PROPERTY SERVICES,TEMPORARY ACCOMMODATION,MAINT/SERVICING PLANT,2030,PROPERTY CONTRACTS,PH0600,2017/05/11 23:00:00+00,2017/05/16 23:00:00+00,159951,4393.02978515625,Revenue,OCO Limited,May,2017,441
Tunbridge Wells Borough Council,Highways and Transport Services,107,PA,PARKING,PARKING ADMIN & ENFORCEMENT,NATNL PARKING ADJUDCTN SERVICE,3331,-,-,2017/05/15 23:00:00+00,2017/05/16 23:00:00+00,161161,3667.60009765625,Revenue,Patrol,May,2017,442
Tunbridge Wells Borough Council,Cultural and Related Services,104,AH,ASSEMBLY HALL,A-HALL HIRE SHOWS,TICKET REPAYMENT,5421,170402 RTWSO,A17R01,2017/05/15 23:00:00+00,2017/05/16 23:00:00+00,161027,3451,Revenue,Royal T W Symphony Orchestra,May,2017,443
Tunbridge Wells Borough Council,Cultural and Related Services,104,PS,PROPERTY SERVICES,TUNBRIDGE WELLS SPORTS CENTRE,PLANNED MAINTENANCE BUILDINGS,2000,PROPERTY NON CONTRACT,PH0605,2017/05/16 23:00:00+00,2017/05/16 23:00:00+00,160446,3234.55004882813,Revenue,Fusion Lifestyle,May,2017,444
Tunbridge Wells Borough Council,Housing Services,108,HP,HOUSING (PRIVATE SECTOR),DISABLED FACILITIES GRANTS,CAPITAL GRANTS PAYABLE,8355,-,-,2017/05/11 23:00:00+00,2017/05/16 23:00:00+00,160779,2452.59008789063,Capital,Dolphin Lifts Kent Ltd,May,2017,445
Tunbridge Wells Borough Council,Cultural and Related Services,104,AH,ASSEMBLY HALL,A-HALL COUNCIL SHOWS,SHOW FEES,3380,170503 JOOLS HOLLAND,A17E06,2017/05/16 23:00:00+00,2017/05/16 23:00:00+00,161089,2400,Revenue,Midland Sound & Lighting,May,2017,446
Tunbridge Wells Borough Council,Highways and Transport Services,107,PA,PARKING,ROYAL VICTORIA PLACE CAR PARK,MAINT/SERVICING PLANT,2030,-,-,2017/05/15 23:00:00+00,2017/05/16 23:00:00+00,161121,2355.51000976563,Revenue,Cale Access UK Ltd,May,2017,447
Tunbridge Wells Borough Council,Cultural and Related Services,104,PK,PARKS,PARKS & GROUNDS,GROUND MAINT NON CONTRACT,2060,PLAY AREAS,PL0399,2017/05/16 23:00:00+00,2017/05/16 23:00:00+00,161099,2242,Revenue,Foster Landscapes Ltd,May,2017,448
Tunbridge Wells Borough Council,Cultural and Related Services,104,AM,ASSEMBLY HALL MARKETING,A-HALL MARKETING,PROMOTION,3450,-,-,2017/05/16 23:00:00+00,2017/05/16 23:00:00+00,161053,2000,Revenue,Vuelio,May,2017,449
Tunbridge Wells Borough Council,Environmental and regulatory services ,105,CR,CREMATORIUM,CREMATORIUM,GAS/CREMATORS,2121,-,-,2017/05/15 23:00:00+00,2017/05/16 23:00:00+00,161114,1758.75,Revenue,Kent County Council (KCS),May,2017,450
Tunbridge Wells Borough Council,Environmental and regulatory services ,105,CR,CREMATORIUM,CREMATORIUM,ELECTRICITY,2140,-,-,2017/05/15 23:00:00+00,2017/05/16 23:00:00+00,161067,1737.17004394531,Revenue,Kent County Council (KCS),May,2017,451
Tunbridge Wells Borough Council,Central Services,102,PS,PROPERTY SERVICES,BUILDING SERVICES,AGENCY STAFF,100,SHOWFIELDS HALL,PH0304,2017/05/16 23:00:00+00,2017/05/16 23:00:00+00,160760,1689.40002441406,Revenue,Hays Montrose,May,2017,452
Tunbridge Wells Borough Council,Planning Services,110,PL,PLANNING,PLANNING MANAGEMENT,SUBS TO ORGANISATIONS,3730,-,-,2017/05/16 23:00:00+00,2017/05/16 23:00:00+00,161061,1482,Revenue,Haymarket Media Group Ltd,May,2017,453
Tunbridge Wells Borough Council,Planning Services,110,PL,PLANNING,PLANNING MANAGEMENT,SUBS TO ORGANISATIONS,3730,-,-,2017/05/16 23:00:00+00,2017/05/16 23:00:00+00,161056,1395,Revenue,Haymarket Media Group Ltd,May,2017,454
Tunbridge Wells Borough Council,Housing Services,108,HP,HOUSING (PRIVATE SECTOR),CINDERHILL WOOD CARAVAN SITE,ELECTRICITY,2140,-,-,2017/05/30 23:00:00+00,2017/05/30 23:00:00+00,161634,2113.68994140625,Revenue,Kent County Council (KCS),May,2017,455
Tunbridge Wells Borough Council,Central Services,102,FM,FACILITIES MANAGEMENT,POSTAL CHARGES ACCOUNT,CASH TRANSFERS,9100,-,-,2017/05/11 23:00:00+00,2017/05/16 23:00:00+00,160797,1306.25,Revenue,Royal Mail  Group plc,May,2017,456
Tunbridge Wells Borough Council,Environmental and regulatory services ,105,CS,CLIENT SERVICES (DEPOT),REFUSE COLLECTION SERVICES,RECYCLING EXPENSES-CARDBOARD,3241,-,-,2017/05/30 23:00:00+00,2017/05/30 23:00:00+00,161547,2007.43994140625,Revenue,Biffa Waste Services Ltd,May,2017,457
Tunbridge Wells Borough Council,Highways and Transport Services,107,PA,PARKING,OFF STREET PARKING,PRINTING - CAR PARK TICKETS,3151,-,-,2017/05/15 23:00:00+00,2017/05/16 23:00:00+00,160790,1283.25,Revenue,Paperwork UK Ltd,May,2017,458
Tunbridge Wells Borough Council,Central Services,102,FI,FINANCE,ITRENT PAYROLL & HR SYSTEM,COMPUTER SOFTWARE,8341,-,-,2017/05/30 23:00:00+00,2017/05/30 23:00:00+00,160766,1868,Capital,Midland Software Ltd,May,2017,459
Tunbridge Wells Borough Council,Highways and Transport Services,107,PA,PARKING,ROYAL VICTORIA PLACE CAR PARK,MAINT/SERVICING PLANT,2030,-,-,2017/05/16 23:00:00+00,2017/05/16 23:00:00+00,160354,1260,Revenue,Cale Access UK Ltd,May,2017,460
Tunbridge Wells Borough Council,Housing Services,108,PK,PARKS,PROPERTY,MAINT/SERVICING PLANT,2030,RED OAK HAWKHURST,PH0723,2017/05/30 23:00:00+00,2017/05/30 23:00:00+00,161546,1740,Revenue,Treework,May,2017,461
Tunbridge Wells Borough Council,Central Services,102,HR,HUMAN RESOURCES,HUMAN RESOURCES,IN HOUSE TRAINING,201,-,-,2017/05/15 23:00:00+00,2017/05/16 23:00:00+00,161143,1175,Revenue,Outset Legal LLP,May,2017,462
Tunbridge Wells Borough Council,Central Services,102,FM,FACILITIES MANAGEMENT,POSTAL CHARGES ACCOUNT,CASH TRANSFERS,9100,-,-,2017/05/30 23:00:00+00,2017/05/30 23:00:00+00,161538,1474.01000976563,Revenue,Royal Mail  Group plc,May,2017,463
Tunbridge Wells Borough Council,Housing Services,108,PS,PROPERTY SERVICES,CINDERHILL WOOD CARAVAN SITE,RESPONSIVE REPAIRS BUILDINGS,2020,-,-,2017/05/11 23:00:00+00,2017/05/16 23:00:00+00,159279,1030,Revenue,Willow Pumps Ltd,May,2017,464
Tunbridge Wells Borough Council,Cultural and Related Services,104,AH,ASSEMBLY HALL,A-HALL TECHNICAL,CONSUMABLES & MATERIALS,3060,-,-,2017/05/29 23:00:00+00,2017/05/30 23:00:00+00,161278,1470.53002929688,Revenue,Stage Electrics Ptn Ltd,May,2017,465
Tunbridge Wells Borough Council,Highways and Transport Services,107,PA,PARKING,OFF STREET PARKING,PRINTING - CAR PARK TICKETS,3151,-,-,2017/05/15 23:00:00+00,2017/05/16 23:00:00+00,160737,991.150024414063,Revenue,Paperwork UK Ltd,May,2017,466
Tunbridge Wells Borough Council,Housing Services,108,HO,HOUSING,RENT DEPOSIT SCHEME,DEBTORS,8510,-,-,2017/05/30 23:00:00+00,2017/05/30 23:00:00+00,161648,1459.55004882813,Revenue,This data has been redacted under the Data Protection Act,May,2017,467
Tunbridge Wells Borough Council,Cultural and Related Services,104,MU,MUSEUM,MUSEUM & ART GALLERY,PROJECTS & INITIATIVES,3910,-,-,2017/05/10 23:00:00+00,2017/05/16 23:00:00+00,160799,970,Revenue,This data has been redacted under the Data Protection Act,May,2017,468
Tunbridge Wells Borough Council,Cultural and Related Services,104,PK,PARKS,PARKS & GROUNDS,GROUND MAINT NON CONTRACT,2060,-,-,2017/05/16 23:00:00+00,2017/05/16 23:00:00+00,161144,960,Revenue,Glendale Horticulture Ltd,May,2017,469
Tunbridge Wells Borough Council,Central Services,102,EH,ENVIRONMENTAL HEALTH,I T SERVICE,IT SOFTWARE,3590,SOFTWARE MAINTENANCE,EV0328,2017/05/11 23:00:00+00,2017/05/16 23:00:00+00,160150,899.820007324219,Revenue,STM Environmental,May,2017,470
Tunbridge Wells Borough Council,Housing Services,108,HP,HOUSING (PRIVATE SECTOR),DISABLED FACILITIES GRANTS,CAPITAL GRANTS PAYABLE,8355,-,-,2017/05/11 23:00:00+00,2017/05/16 23:00:00+00,160745,892.929992675781,Capital,Family Mosaic Housing,May,2017,471
Tunbridge Wells Borough Council,Cultural and Related Services,104,MU,MUSEUM,MUSEUM & ART GALLERY,MUSEUM EXHIBITS - PURCHASE,3040,-,-,2017/05/15 23:00:00+00,2017/05/16 23:00:00+00,161052,800,Revenue,The British Museum Great Court Ltd,May,2017,472
Tunbridge Wells Borough Council,Planning Services,110,PL,PLANNING,PLANNING POLICY,PLANNING CONSULTANT FEES,3270,NEW LOCAL PLAN,EV0589,2017/05/16 23:00:00+00,2017/05/16 23:00:00+00,161043,769.5,Revenue,Wealden Advertiser Limited,May,2017,473
Tunbridge Wells Borough Council,Cultural and Related Services,104,PK,PARKS,PARKS & GROUNDS,Horticulture,2061,-,-,2017/05/16 23:00:00+00,2017/05/16 23:00:00+00,161095,740,Revenue,Treework,May,2017,474
Tunbridge Wells Borough Council,Environmental and regulatory services ,105,EH,ENVIRONMENTAL HEALTH,FOOD & SAFETY,AGENCY STAFF,100,-,-,2017/05/15 23:00:00+00,2017/05/16 23:00:00+00,160806,703.5,Revenue,Recruitment Solutions,May,2017,475
Tunbridge Wells Borough Council,Environmental and regulatory services ,105,IT,INFORMATION & COMMUNICATIONS TECHNOLOGY,CREMATORIUM,EQUIPMENT PURCHASE/MTCE,3000,-,-,2017/05/16 23:00:00+00,2017/05/16 23:00:00+00,160593,692.429992675781,Revenue,CCS Media Limited,May,2017,476
Tunbridge Wells Borough Council,Cultural and Related Services,104,AB,ASSEMBLY HALL BAR,A-HALL FRONT OF HOUSE,COGS - DRINK,3091,-,-,2017/05/15 23:00:00+00,2017/05/16 23:00:00+00,160165,686.239990234375,Revenue,Palmer & Harvey McLane Ltd,May,2017,477
Tunbridge Wells Borough Council,Highways and Transport Services,107,PA,PARKING,SURFACE CAR PARKS,RESPONSIVE REPAIRS BUILDINGS,2020,YEW TREE ROAD,PT0109,2017/05/16 23:00:00+00,2017/05/16 23:00:00+00,161040,686.179992675781,Revenue,D R M Rowswell,May,2017,478
Tunbridge Wells Borough Council,Cultural and Related Services,104,AB,ASSEMBLY HALL BAR,A-HALL FRONT OF HOUSE,COGS - CONFECTIONERY,3094,-,-,2017/05/16 23:00:00+00,2017/05/16 23:00:00+00,160556,685.760009765625,Revenue,Palmer & Harvey McLane Ltd,May,2017,479
Tunbridge Wells Borough Council,Environmental and regulatory services ,105,PK,PARKS,TUNBRIDGE WELLS-CEMETERIES,GROUNDS MAINT CONTRACTS,2050,-,-,2017/05/16 23:00:00+00,2017/05/16 23:00:00+00,161096,680,Revenue,Treework,May,2017,480
Tunbridge Wells Borough Council,Cultural and Related Services,104,PK,PARKS,PARKS & GROUNDS,PROJECTS & INITIATIVES,3910,GROSVENOR/HILBERT HLF,PE0120,2017/05/16 23:00:00+00,2017/05/16 23:00:00+00,161139,672,Revenue,CPS Ltd,May,2017,481
Tunbridge Wells Borough Council,Environmental and regulatory services ,105,CR,CREMATORIUM,CREMATORIUM,COGS - PLAQUES,3082,-,-,2017/05/11 23:00:00+00,2017/05/16 23:00:00+00,160690,612,Revenue,Falon Nameplates  Limited,May,2017,482
Tunbridge Wells Borough Council,Central Services,102,PS,PROPERTY SERVICES,BUILDING SERVICES,AGENCY STAFF,100,SHOWFIELDS HALL,PH0304,2017/05/16 23:00:00+00,2017/05/16 23:00:00+00,160383,576.640014648438,Revenue,Hays Montrose,May,2017,483
Tunbridge Wells Borough Council,Central Services,102,IT,INFORMATION & COMMUNICATIONS TECHNOLOGY,BUILDING SERVICES,EQUIPMENT PURCHASE/MTCE,3000,-,-,2017/05/16 23:00:00+00,2017/05/16 23:00:00+00,161137,541.659973144531,Revenue,Excitech Limited,May,2017,484
Tunbridge Wells Borough Council,Environmental and regulatory services ,105,LI,LICENSING,LICENSING,COGS-NON FOOD,3080,VEHICLE LICENSING - PH,EV0421,2017/05/11 23:00:00+00,2017/05/16 23:00:00+00,160846,500,Revenue,Tunbridge Wells MOT Centre Ltd,May,2017,485
Tunbridge Wells Borough Council,Housing Services,108,HO,HOUSING,BED & BREAKFAST COSTS,RENTS/HIRE OF PREMISES,2200,-,-,2017/05/16 23:00:00+00,2017/05/16 23:00:00+00,161008,490,Revenue,This data has been redacted under the Data Protection Act,May,2017,486
Tunbridge Wells Borough Council,Central Services,102,CE,CHIEF EXECUTIVE,HUMAN RESOURCES,IN HOUSE TRAINING,201,-,-,2017/05/11 23:00:00+00,2017/05/16 23:00:00+00,160583,467,Revenue,Centaur Overland Travel Ltd,May,2017,487
Tunbridge Wells Borough Council,Housing Services,108,HO,HOUSING,BED & BREAKFAST COSTS,RENTS/HIRE OF PREMISES,2200,-,-,2017/05/16 23:00:00+00,2017/05/16 23:00:00+00,161010,437.5,Revenue,This data has been redacted under the Data Protection Act,May,2017,488
Tunbridge Wells Borough Council,Central Services,102,FI,FINANCE,ITRENT PAYROLL & HR SYSTEM,COMPUTER SOFTWARE,8341,-,-,2017/05/16 23:00:00+00,2017/05/16 23:00:00+00,160611,428.079986572266,Capital,Midland Software Ltd,May,2017,489
Tunbridge Wells Borough Council,Cultural and Related Services,104,PK,PARKS,PARKS & GROUNDS,CONTRACT CLEANING,2510,PROPERTY CLEANING CONTRACT,PH0590,2017/05/16 23:00:00+00,2017/05/16 23:00:00+00,161125,402.799987792969,Revenue,CORDANT CLEANING LTD,May,2017,490
Tunbridge Wells Borough Council,Highways and Transport Services,107,FI,FINANCE,PARKING ADMIN & ENFORCEMENT,FUEL & OIL,1010,-,-,2017/05/15 23:00:00+00,2017/05/16 23:00:00+00,160187,397.799987792969,Revenue,Fuel Card Services Ltd,May,2017,491
Tunbridge Wells Borough Council,Cultural and Related Services,104,MU,MUSEUM,CULTURAL HUB,CONSULTANTS FEES,3292,-,-,2017/05/11 23:00:00+00,2017/05/16 23:00:00+00,160794,394,Revenue,Cause4 Ltd,May,2017,492
Tunbridge Wells Borough Council,Cultural and Related Services,104,PK,PARKS,PARKS & GROUNDS,WATER SUPPLY,2300,-,-,2017/05/16 23:00:00+00,2017/05/16 23:00:00+00,161018,391.799987792969,Revenue,South East Water Choice,May,2017,493
Tunbridge Wells Borough Council,Central Services,102,HR,HUMAN RESOURCES,HUMAN RESOURCES,LEGAL FEES,3260,-,-,2017/05/15 23:00:00+00,2017/05/16 23:00:00+00,161142,390,Revenue,Outset Legal LLP,May,2017,494
Tunbridge Wells Borough Council,Central Services,102,DS,Sundry Customer,COUNCIL TAXPAYERS ACCOUNT,REFUNDS,8690,-,-,2017/05/16 23:00:00+00,2017/05/16 23:00:00+00,161004,370.399993896484,Revenue,This data has been redacted under the Data Protection Act,May,2017,495
Tunbridge Wells Borough Council,Housing Services,108,HO,HOUSING,BED & BREAKFAST COSTS,RENTS/HIRE OF PREMISES,2200,-,-,2017/05/16 23:00:00+00,2017/05/16 23:00:00+00,161007,350,Revenue,This data has been redacted under the Data Protection Act,May,2017,496
Tunbridge Wells Borough Council,Housing Services,108,HO,HOUSING,BED & BREAKFAST COSTS,RENTS/HIRE OF PREMISES,2200,-,-,2017/05/16 23:00:00+00,2017/05/16 23:00:00+00,161013,350,Revenue,This data has been redacted under the Data Protection Act,May,2017,497
Tunbridge Wells Borough Council,Highways and Transport Services,107,TR,TRANSFORMATION AND DELIVERY,PARKING ADMIN & ENFORCEMENT,EXTERNAL TRAINING,204,-,-,2017/05/15 23:00:00+00,2017/05/16 23:00:00+00,161141,350,Revenue,CONNEXICA LIMITED,May,2017,498
Tunbridge Wells Borough Council,Central Services,102,EL,ELECTIONS,NON TWBC ELECTIONS,POSTAGE,3500,KCC ELECTIONS MAY 2017,CS0401,2017/05/11 23:00:00+00,2017/05/16 23:00:00+00,160854,345.679992675781,Revenue,Stephen Austin & Sons Ltd,May,2017,499
Tunbridge Wells Borough Council,Highways and Transport Services,107,PA,PARKING,PARKING ADMIN & ENFORCEMENT,IT SOFTWARE,3590,-,-,2017/05/16 23:00:00+00,2017/05/16 23:00:00+00,161021,325,Revenue,Imperial Civil Enforcement Solutions Ltd,May,2017,500
Tunbridge Wells Borough Council,Cultural and Related Services,104,PK,PARKS,PARKS & GROUNDS,GROUND MAINT NON CONTRACT,2060,-,-,2017/05/16 23:00:00+00,2017/05/16 23:00:00+00,161073,320,Revenue,Treework,May,2017,501
Tunbridge Wells Borough Council,Environmental and regulatory services ,105,CR,CREMATORIUM,CREMATORIUM,COGS - PLAQUES,3082,-,-,2017/05/11 23:00:00+00,2017/05/16 23:00:00+00,160851,290,Revenue,The Columbaria Company,May,2017,502
Tunbridge Wells Borough Council,Housing Services,108,HP,HOUSING (PRIVATE SECTOR),DISABLED FACILITIES GRANTS,CAPITAL GRANTS PAYABLE,8355,-,-,2017/05/15 23:00:00+00,2017/05/16 23:00:00+00,161028,276.880004882813,Capital,Family Mosaic Housing,May,2017,503
Tunbridge Wells Borough Council,Planning Services,110,PL,PLANNING,PLANNING POLICY,PLANNING CONSULTANT FEES,3270,NEW LOCAL PLAN,EV0589,2017/05/16 23:00:00+00,2017/05/16 23:00:00+00,161109,270,Revenue,CBRE RE C/A HERMES CMR,May,2017,504
Tunbridge Wells Borough Council,Housing Services,108,HO,HOUSING,BED & BREAKFAST COSTS,RENTS/HIRE OF PREMISES,2200,-,-,2017/05/16 23:00:00+00,2017/05/16 23:00:00+00,161012,262.5,Revenue,This data has been redacted under the Data Protection Act,May,2017,505
Tunbridge Wells Borough Council,Cultural and Related Services,104,PU,PUBLICATIONS,TW TIC,COGS - SOUVENIRS,3087,-,-,2017/05/16 23:00:00+00,2017/05/16 23:00:00+00,161060,257.399993896484,Revenue,Corporate Document Services Limited,May,2017,506
Tunbridge Wells Borough Council,Planning Services,110,PS,PROPERTY SERVICES,DEVELOPMENT PROGRAMME,PROPERTY CONSULTANTS,3290,MASTERPLAN CIVIC COMPLEX,PH0709,2017/05/18 23:00:00+00,2017/05/23 23:00:00+00,160559,288126.34375,Revenue,GVA Grimley Ltd,May,2017,507
Tunbridge Wells Borough Council,Planning Services,110,PS,PROPERTY SERVICES,DEVELOPMENT PROGRAMME,PROPERTY CONSULTANTS,3290,CRESCENT ROAD EXTENSION,PH0724,2017/05/21 23:00:00+00,2017/05/23 23:00:00+00,161111,54625,Revenue,GVA Grimley Ltd,May,2017,508
Tunbridge Wells Borough Council,Central Services,102,PS,PROPERTY SERVICES,BUILDING SERVICES,AGENCY STAFF,100,-,-,2017/05/29 23:00:00+00,2017/05/30 23:00:00+00,161031,1438.2900390625,Revenue,Hays Montrose,May,2017,509
Tunbridge Wells Borough Council,Cultural and Related Services,104,PK,PARKS,PARKS & GROUNDS,Horticulture,2061,-,-,2017/05/30 23:00:00+00,2017/05/30 23:00:00+00,161545,1420,Revenue,Treework,May,2017,510
Tunbridge Wells Borough Council,Housing Services,108,HO,HOUSING,RENT DEPOSIT SCHEME,DEBTORS,8510,-,-,2017/05/30 23:00:00+00,2017/05/30 23:00:00+00,161649,1315.38000488281,Revenue,KINGS ESTATE AGENTS,May,2017,511
Tunbridge Wells Borough Council,Cultural and Related Services,104,MU,MUSEUM,CULTURAL HUB,PROJECTS & INITIATIVES,3910,ACE DEVELOPMENT FUND,EV0042,2017/05/29 23:00:00+00,2017/05/30 23:00:00+00,161576,1250,Revenue,This data has been redacted under the Data Protection Act,May,2017,512
Tunbridge Wells Borough Council,Central Services,102,FI,FINANCE,ITRENT PAYROLL & HR SYSTEM,COMPUTER SOFTWARE,8341,-,-,2017/05/30 23:00:00+00,2017/05/30 23:00:00+00,159715,1196.22998046875,Capital,Midland Software Ltd,May,2017,513
Tunbridge Wells Borough Council,Planning Services,110,PL,PLANNING,DEVELOPMENT MANAGEMENT,PLANNING CONSULTANT FEES,3270,-,-,2017/05/29 23:00:00+00,2017/05/30 23:00:00+00,161437,1152.40002441406,Revenue,RANDSTAD CPE LIMITED,May,2017,514
Tunbridge Wells Borough Council,Central Services,102,FI,FINANCE,ACCOUNTANCY,PHOTOCOPYING EXPENSES,3180,PHOTOCOPYING PAPER,EV0312,2017/05/30 23:00:00+00,2017/05/30 23:00:00+00,160526,1143.36999511719,Revenue,Lyreco UK Limited,May,2017,515
Tunbridge Wells Borough Council,Planning Services,110,FM,FACILITIES MANAGEMENT,9-10 CALVERLEY TERRACE,ELECTRICITY,2140,-,-,2017/05/30 23:00:00+00,2017/05/30 23:00:00+00,161518,1112.84997558594,Revenue,Southern Electric,May,2017,516
Tunbridge Wells Borough Council,Cultural and Related Services,104,PS,PROPERTY SERVICES,PARKS & GROUNDS,RESPONSIVE REPAIRS BUILDINGS,2020,PROPERTY CONTRACTS,PH0600,2017/05/30 23:00:00+00,2017/05/30 23:00:00+00,161071,1017.44000244141,Revenue,Millwood Servicing Ltd,May,2017,517
Tunbridge Wells Borough Council,Cultural and Related Services,104,PK,PARKS,PARKS & GROUNDS,GROUND MAINT.infrastructure,2063,-,-,2017/05/30 23:00:00+00,2017/05/30 23:00:00+00,161556,1005,Revenue,D S Restoration,May,2017,518
Tunbridge Wells Borough Council,Central Services,102,FI,FINANCE,REVS & BENS ADMINISTRATION,SUBS TO ORGANISATIONS,3730,-,-,2017/05/29 23:00:00+00,2017/05/30 23:00:00+00,161020,1000,Revenue,Tameside MBC,May,2017,519
Tunbridge Wells Borough Council,Environmental and regulatory services ,105,CU,COMMUNITY SAFTY UNIT,COMMUNITY SAFETY,PROJECTS & INITIATIVES,3910,COMM.SAFETY PARTNE,EV0088,2017/05/29 23:00:00+00,2017/05/30 23:00:00+00,161535,1000,Revenue,PROJECT SALUS CIC,May,2017,520
Tunbridge Wells Borough Council,Cultural and Related Services,104,PK,PARKS,WOODLANDS,GROUND MAINT NON CONTRACT,2060,-,-,2017/05/29 23:00:00+00,2017/05/30 23:00:00+00,161536,1000,Revenue,Kent County Council,May,2017,521
Tunbridge Wells Borough Council,Central Services,102,PS,PROPERTY SERVICES,ASSET DISPOSAL PROJECT,LEGAL FEES,3260,-,-,2017/05/30 23:00:00+00,2017/05/30 23:00:00+00,161552,1000,Revenue,Pembury Parish Council,May,2017,522
Tunbridge Wells Borough Council,Central Services,102,EL,ELECTIONS,NON TWBC ELECTIONS,RENTS/HIRE OF PREMISES,2200,KCC ELECTIONS MAY 2017,CS0401,2017/05/30 23:00:00+00,2017/05/30 23:00:00+00,161632,1000,Revenue,St Barnabas PCC,May,2017,523
Tunbridge Wells Borough Council,Central Services,102,EL,ELECTIONS,NON TWBC ELECTIONS,PRINTING,3150,GENERAL ELECTION JUNE 2017,CS0402,2017/05/29 23:00:00+00,2017/05/30 23:00:00+00,161481,953.330017089844,Revenue,Shaw & Sons Ltd,May,2017,524
Tunbridge Wells Borough Council,Central Services,102,GW,GATEWAY CUSTOMER SERVICES,GATEWAY,REVENUE CONT FROM OTHER LA,5100,GATEWAY IMPROVEMENTS,EV0345,2017/05/30 23:00:00+00,2017/05/30 23:00:00+00,161119,937.5,Revenue,Kent County Council,May,2017,525
Tunbridge Wells Borough Council,Central Services,102,FI,FINANCE,ITRENT PAYROLL & HR SYSTEM,COMPUTER SOFTWARE,8341,-,-,2017/05/30 23:00:00+00,2017/05/30 23:00:00+00,159709,879,Capital,Midland Software Ltd,May,2017,526
Tunbridge Wells Borough Council,Central Services,102,FI,FINANCE,ITRENT PAYROLL & HR SYSTEM,COMPUTER SOFTWARE,8341,-,-,2017/05/30 23:00:00+00,2017/05/30 23:00:00+00,159714,879,Capital,Midland Software Ltd,May,2017,527
Tunbridge Wells Borough Council,Cultural and Related Services,104,AB,ASSEMBLY HALL BAR,A-HALL FRONT OF HOUSE,COGS - DRINK,3091,-,-,2017/05/29 23:00:00+00,2017/05/30 23:00:00+00,161448,872.780029296875,Revenue,H T White & Co Ltd,May,2017,528
Tunbridge Wells Borough Council,Central Services,102,GW,GATEWAY CUSTOMER SERVICES,GATEWAY,ELECTRICITY,2140,GATEWAY,EV0340,2017/05/30 23:00:00+00,2017/05/30 23:00:00+00,161068,865.219970703125,Revenue,Kent County Council (KCS),May,2017,529
Tunbridge Wells Borough Council,Environmental and regulatory services ,105,PK,PARKS,CREMATORIUM,GROUNDS MAINT CONTRACTS,2050,-,-,2017/05/29 23:00:00+00,2017/05/30 23:00:00+00,161541,850,Revenue,Treework,May,2017,530
Tunbridge Wells Borough Council,Cultural and Related Services,104,AM,ASSEMBLY HALL MARKETING,A-HALL MARKETING,PROMOTION - WHATS ON MAG,3456,-,-,2017/05/30 23:00:00+00,2017/05/30 23:00:00+00,161635,850,Revenue,Purple Seven Limited,May,2017,531
Tunbridge Wells Borough Council,Central Services,102,FI,FINANCE,ITRENT PAYROLL & HR SYSTEM,COMPUTER SOFTWARE,8341,-,-,2017/05/30 23:00:00+00,2017/05/30 23:00:00+00,159711,840.739990234375,Capital,Midland Software Ltd,May,2017,532
Tunbridge Wells Borough Council,Central Services,102,EL,ELECTIONS,NON TWBC ELECTIONS,RENTS/HIRE OF PREMISES,2200,KCC ELECTIONS MAY 2017,CS0401,2017/05/30 23:00:00+00,2017/05/30 23:00:00+00,161640,800,Revenue,St John's PCC,May,2017,533
Tunbridge Wells Borough Council,Highways and Transport Services,107,PA,PARKING,CRESCENT ROAD CAR PARK,RESPONSIVE REPAIRS BUILDINGS,2020,-,-,2017/05/29 23:00:00+00,2017/05/30 23:00:00+00,161440,795,Revenue,D R M Rowswell,May,2017,534
Tunbridge Wells Borough Council,Planning Services,110,HE,HEALTHY COMMUNITIES,COMMUNITY & GRANTS,GRANTS,3750,-,-,2017/05/30 23:00:00+00,2017/05/30 23:00:00+00,161605,750,Revenue,Relate West and Mid-Kent,May,2017,535
Tunbridge Wells Borough Council,Planning Services,110,IT,INFORMATION & COMMUNICATIONS TECHNOLOGY,GIS SYSTEM,PROJECTS & INITIATIVES,3910,-,-,2017/05/29 23:00:00+00,2017/05/30 23:00:00+00,161467,744.419982910156,Revenue,Complete IT Systems Limited,May,2017,536
Tunbridge Wells Borough Council,Highways and Transport Services,107,PA,PARKING,PARKING REGULATION,SIGNING & LINING WORKS,3920,-,-,2017/05/29 23:00:00+00,2017/05/30 23:00:00+00,161443,713,Revenue,Local World Limited,May,2017,537
Tunbridge Wells Borough Council,Environmental and regulatory services ,105,DS,Sundry Customer,CREMATORIUM,CREMATION & BURIAL FEES,5350,-,-,2017/05/29 23:00:00+00,2017/05/30 23:00:00+00,161309,631,Revenue,This data has been redacted under the Data Protection Act,May,2017,538
Tunbridge Wells Borough Council,Cultural and Related Services,104,AB,ASSEMBLY HALL BAR,A-HALL FRONT OF HOUSE,COGS - ICE CREAMS,3093,-,-,2017/05/24 23:00:00+00,2017/05/30 23:00:00+00,160750,630,Revenue,Taywell Ice Creams Limited,May,2017,539
Tunbridge Wells Borough Council,Housing Services,108,FI,FINANCE,RENT DEPOSIT SCHEME,DEBTORS,8510,-,-,2017/05/30 23:00:00+00,2017/05/30 23:00:00+00,161584,600,Revenue,This data has been redacted under the Data Protection Act,May,2017,540
Tunbridge Wells Borough Council,Environmental and regulatory services ,105,PK,PARKS,CREMATORIUM,Grounds Maint. Sodexo Contract,2054,-,-,2017/05/29 23:00:00+00,2017/05/30 23:00:00+00,161464,590,Revenue,Barcham Trees Plc,May,2017,541
Tunbridge Wells Borough Council,Cultural and Related Services,104,PK,PARKS,PARKS & GROUNDS,GROUND MAINT.infrastructure,2063,-,-,2017/05/30 23:00:00+00,2017/05/30 23:00:00+00,161565,576,Revenue,D S Restoration,May,2017,542
Tunbridge Wells Borough Council,Cultural and Related Services,104,AB,ASSEMBLY HALL BAR,A-HALL FRONT OF HOUSE,COGS - DRINK,3091,-,-,2017/05/30 23:00:00+00,2017/05/30 23:00:00+00,160792,547.380004882813,Revenue,Kentish Pip Ltd,May,2017,543
Tunbridge Wells Borough Council,Highways and Transport Services,107,PA,PARKING,PARKING ADMIN & ENFORCEMENT,AGENCY STAFF,100,-,-,2017/05/29 23:00:00+00,2017/05/30 23:00:00+00,161484,530.400024414063,Revenue,Robson Newman Ltd,May,2017,544
Tunbridge Wells Borough Council,Housing Services,108,HO,HOUSING,CINDERHILL WOOD CARAVAN SITE,WATER SUPPLY,2300,-,-,2017/05/30 23:00:00+00,2017/05/30 23:00:00+00,161488,514.739990234375,Revenue,South East Water Plc,May,2017,545
Tunbridge Wells Borough Council,Cultural and Related Services,104,AM,ASSEMBLY HALL MARKETING,A-HALL MARKETING,PROMOTION,3450,-,-,2017/05/30 23:00:00+00,2017/05/30 23:00:00+00,161597,500,Revenue,Boomerang Family Ltd,May,2017,546
Tunbridge Wells Borough Council,Housing Services,108,HO,HOUSING,BED & BREAKFAST COSTS,RENTS/HIRE OF PREMISES,2200,-,-,2017/05/29 23:00:00+00,2017/05/30 23:00:00+00,161458,490,Revenue,This data has been redacted under the Data Protection Act,May,2017,547
Tunbridge Wells Borough Council,Central Services,102,RB,REVS & BENS,REVS & BENS ADMINISTRATION,CONSULTANTS FEES,3292,-,-,2017/05/29 23:00:00+00,2017/05/30 23:00:00+00,161035,472,Revenue,Inform CPI Limited,May,2017,548
Tunbridge Wells Borough Council,Highways and Transport Services,107,PA,PARKING,PARKING ADMIN & ENFORCEMENT,AGENCY STAFF,100,-,-,2017/05/24 23:00:00+00,2017/05/30 23:00:00+00,161290,455.600006103516,Revenue,Robson Newman Ltd,May,2017,549
Tunbridge Wells Borough Council,Cultural and Related Services,104,PK,PARKS,PARKS & GROUNDS,GROUND MAINT.infrastructure,2063,-,-,2017/05/30 23:00:00+00,2017/05/30 23:00:00+00,161557,455,Revenue,D S Restoration,May,2017,550
Tunbridge Wells Borough Council,Planning Services,110,PS,PROPERTY SERVICES,DEVELOPMENT PROGRAMME,PROPERTY CONSULTANTS,3290,CRESCENT ROAD EXTENSION,PH0724,2017/05/21 23:00:00+00,2017/05/23 23:00:00+00,161110,41625,Revenue,GVA Grimley Ltd,May,2017,551
Tunbridge Wells Borough Council,Planning Services,110,ED,ECONOMIC DEVELOPMENT,ECONOMIC DEVELOPMENT,PROPERTY CONSULTANTS,3290,21ST CENTURY WAY,PT0530,2017/05/22 23:00:00+00,2017/05/23 23:00:00+00,161292,33000,Revenue,Kent County Council,May,2017,552
Tunbridge Wells Borough Council,Central Services,102,EL,ELECTIONS,NON TWBC ELECTIONS,POSTAGE,3500,GENERAL ELECTION JUNE 2017,CS0402,2017/05/21 23:00:00+00,2017/05/23 23:00:00+00,161101,20885.439453125,Revenue,Royal Mail  Group plc,May,2017,553
Tunbridge Wells Borough Council,Environmental and regulatory services ,105,CR,CREMATORIUM,CREMATORIUM,MAINT/SERVICING PLANT,2030,-,-,2017/05/22 23:00:00+00,2017/05/23 23:00:00+00,160688,15139.25,Revenue,Facultatieve Technologies Ltd,May,2017,554
Tunbridge Wells Borough Council,Cultural and Related Services,104,AH,ASSEMBLY HALL,A-HALL COUNCIL SHOWS,SHOW FEES,3380,170515 JUDGEMENT IN STONE,A17E09,2017/05/23 23:00:00+00,2017/05/23 23:00:00+00,161280,15000,Revenue,Bill Kenwright Ltd,May,2017,555
Tunbridge Wells Borough Council,Cultural and Related Services,104,AH,ASSEMBLY HALL,A-HALL COUNCIL SHOWS,SHOW FEES,3380,170407-09 BEN AND HOLLY,A17D08,2017/05/16 23:00:00+00,2017/05/23 23:00:00+00,161145,13870.1298828125,Revenue,Fierylight Kingdom Ltd,May,2017,556
Tunbridge Wells Borough Council,Cultural and Related Services,104,AM,ASSEMBLY HALL MARKETING,A-HALL MARKETING,PROMOTION - WHATS ON MAG,3456,ASSEMBLY HALL,CS0120,2017/05/23 23:00:00+00,2017/05/23 23:00:00+00,160601,12020.75,Revenue,Corporate Document Services Limited,May,2017,557
Tunbridge Wells Borough Council,Cultural and Related Services,104,DS,Sundry Customer,A-HALL HIRE SHOWS,TICKET REPAYMENT,5421,170312 CALVERLEY VARIETY,A17Q11,2017/05/22 23:00:00+00,2017/05/23 23:00:00+00,161326,11695.400390625,Revenue,CALVERLEY ADVENTURE GROUNDS,May,2017,558
Tunbridge Wells Borough Council,Environmental and regulatory services ,105,CR,CREMATORIUM,TUNBRIDGE WELLS-CEMETERIES,EQUIPMENT PURCHASE/MTCE,3000,-,-,2017/05/18 23:00:00+00,2017/05/23 23:00:00+00,161055,10889,Revenue,FELTON WORKS LTD,May,2017,559
Tunbridge Wells Borough Council,Cultural and Related Services,104,AH,ASSEMBLY HALL,A-HALL COUNCIL SHOWS,SHOW FEES,3380,170604 ALL MURRAY,A17F04,2017/05/23 23:00:00+00,2017/05/23 23:00:00+00,161303,10000,Revenue,Avalon Promotions Ltd,May,2017,560
Tunbridge Wells Borough Council,Housing Services,108,HO,HOUSING,PROPERTIES ON LOAN,RENTS/HIRE OF PREMISES,2200,-,-,2017/05/18 23:00:00+00,2017/05/23 23:00:00+00,161064,7188.52001953125,Revenue,Town and Country Housing Group,May,2017,561
Tunbridge Wells Borough Council,Environmental and regulatory services ,105,CS,CLIENT SERVICES (DEPOT),REFUSE COLLECTION SERVICES,EQUIPMENT PURCHASE/MTCE,3000,-,-,2017/05/16 23:00:00+00,2017/05/23 23:00:00+00,160800,7130,Revenue,MGB Plastics Ltd (One 51 Plastics),May,2017,562
Tunbridge Wells Borough Council,Housing Services,108,HP,HOUSING (PRIVATE SECTOR),DISABLED FACILITIES GRANTS,CAPITAL GRANTS PAYABLE,8355,-,-,2017/05/21 23:00:00+00,2017/05/23 23:00:00+00,161299,6090,Capital,Town and Country Housing Group,May,2017,563
Tunbridge Wells Borough Council,Housing Services,108,HP,HOUSING (PRIVATE SECTOR),DISABLED FACILITIES GRANTS,CAPITAL GRANTS PAYABLE,8355,-,-,2017/05/21 23:00:00+00,2017/05/23 23:00:00+00,161300,5663,Capital,Town and Country Housing Group,May,2017,564
Tunbridge Wells Borough Council,Cultural and Related Services,104,PK,PARKS,PARKS & GROUNDS,GROUND MAINT NON CONTRACT,2060,PLAY AREAS,PL0399,2017/06/05 23:00:00+00,2017/06/06 23:00:00+00,161100,1614,Revenue,Foster Landscapes Ltd,June,2017,565
Tunbridge Wells Borough Council,Environmental and regulatory services ,105,EN,ENVIRONMENT & STREET SCENE,PUBLIC REALM IMPROVEMENTS,"CONSTRUCTION, RENOVATION, ETC",8311,PHASE 2: PUBLIC REALM IMPROV,PE0760,2017/05/23 23:00:00+00,2017/05/23 23:00:00+00,161097,5048.7998046875,Capital,Amey OW Limited,May,2017,566
Tunbridge Wells Borough Council,Environmental and regulatory services ,105,CR,CREMATORIUM,CREMATORIUM,COGS - PLAQUES,3082,-,-,2017/05/18 23:00:00+00,2017/05/23 23:00:00+00,161091,4110,Revenue,The Columbaria Company,May,2017,567
Tunbridge Wells Borough Council,Central Services,102,FM,FACILITIES MANAGEMENT,CIVIC CENTRE HEATING,GAS,2120,-,-,2017/05/21 23:00:00+00,2017/05/23 23:00:00+00,161085,4050.6201171875,Revenue,Kent County Council (KCS),May,2017,568
Tunbridge Wells Borough Council,Environmental and regulatory services ,105,PS,PROPERTY SERVICES,NORTH FARM DEPOT,FIRE & SECURITY COSTS,2080,PROPERTY CONTRACTS,PH0600,2017/05/21 23:00:00+00,2017/05/23 23:00:00+00,160445,4027.15991210938,Revenue,Millwood Servicing Ltd,May,2017,569
Tunbridge Wells Borough Council,Housing Services,108,HP,HOUSING (PRIVATE SECTOR),HOUSING RENEWAL ADVANCES,CAPITAL GRANTS PAYABLE,8355,WINTER WARMTH SCHEMES,PG0113,2017/05/22 23:00:00+00,2017/05/23 23:00:00+00,161314,3952.03002929688,Capital,NUTRA,May,2017,570
Tunbridge Wells Borough Council,Planning Services,110,ED,ECONOMIC DEVELOPMENT,ECONOMIC DEVELOPMENT,SUBS TO ORGANISATIONS,3730,-,-,2017/05/16 23:00:00+00,2017/05/23 23:00:00+00,161032,3840,Revenue,Visit Kent Limited,May,2017,571
Tunbridge Wells Borough Council,Cultural and Related Services,104,PK,PARKS,PARKS & GROUNDS,GROUND MAINT.infrastructure,2063,-,-,2017/05/22 23:00:00+00,2017/05/23 23:00:00+00,161316,3705,Revenue,Blakedown Landscapes (SE) Ltd,May,2017,572
Tunbridge Wells Borough Council,Cultural and Related Services,104,AH,ASSEMBLY HALL,A-HALL COUNCIL SHOWS,SHOW FEES,3380,170316 SINGALONGA ROCKY HORROR,A17C09,2017/05/21 23:00:00+00,2017/05/23 23:00:00+00,160857,3692.96997070313,Revenue,Singalonga Productions Limited,May,2017,573
Tunbridge Wells Borough Council,Central Services,102,FI,FINANCE,ITRENT PAYROLL & HR SYSTEM,COMPUTER SOFTWARE,8341,-,-,2017/05/18 23:00:00+00,2017/05/23 23:00:00+00,160612,3516,Capital,Midland Software Ltd,May,2017,574
Tunbridge Wells Borough Council,Environmental and regulatory services ,105,CU,COMMUNITY SAFTY UNIT,COMMUNITY SAFETY,PROJECTS & INITIATIVES,3910,COMM.SAFETY PARTNE,EV0088,2017/05/21 23:00:00+00,2017/05/23 23:00:00+00,160598,3000,Revenue,Kent Community Domestic Abuse Programme,May,2017,575
Tunbridge Wells Borough Council,Environmental and regulatory services ,105,CS,CLIENT SERVICES (DEPOT),NORTH FARM DEPOT,FIRE & SECURITY COSTS,2080,-,-,2017/05/21 23:00:00+00,2017/05/23 23:00:00+00,160587,2870.35009765625,Revenue,Emprise Services plc,May,2017,576
Tunbridge Wells Borough Council,Central Services,102,FI,FINANCE,ITRENT PAYROLL & HR SYSTEM,COMPUTER SOFTWARE,8341,-,-,2017/05/21 23:00:00+00,2017/05/23 23:00:00+00,160613,2747,Capital,Midland Software Ltd,May,2017,577
Tunbridge Wells Borough Council,Planning Services,110,HE,HEALTHY COMMUNITIES,COMMUNITY & GRANTS,GRANTS,3750,-,-,2017/05/23 23:00:00+00,2017/05/23 23:00:00+00,161327,2500,Revenue,West Kent Mediation,May,2017,578
Tunbridge Wells Borough Council,Central Services,102,PP,POLICY AND PERFORMANCE,PERFORMANCE MANAGEMENT,QUALIFICATIONS TRAINING,207,-,-,2017/05/18 23:00:00+00,2017/05/23 23:00:00+00,161046,2395,Revenue,PDP,May,2017,579
Tunbridge Wells Borough Council,Environmental and regulatory services ,105,FI,FINANCE,PUBLIC CONVENIENCES,ELECTRICITY,2140,SOUTHBOROUGH WC,PH0513,2017/05/22 23:00:00+00,2017/05/23 23:00:00+00,160171,2134.2900390625,Revenue,EDF Energy,May,2017,580
Tunbridge Wells Borough Council,Cultural and Related Services,104,PK,PARKS,PARKS & GROUNDS,Horticulture,2061,-,-,2017/05/23 23:00:00+00,2017/05/23 23:00:00+00,160650,2000,Revenue,Community First Partnership Ltd,May,2017,581
Tunbridge Wells Borough Council,Cultural and Related Services,104,PK,PARKS,PARKS & GROUNDS,Horticulture,2061,-,-,2017/05/23 23:00:00+00,2017/05/23 23:00:00+00,161269,1995,Revenue,Community First Partnership Ltd,May,2017,582
Tunbridge Wells Borough Council,Central Services,102,FI,FINANCE,REVS & BENS ADMINISTRATION,IT SOFTWARE,3590,-,-,2017/05/21 23:00:00+00,2017/05/23 23:00:00+00,160538,1943.81005859375,Revenue,Maidstone Borough Council,May,2017,583
Tunbridge Wells Borough Council,Planning Services,110,BC,BUILDING CONTROL,PLANNING MANAGEMENT,EXTERNAL TRAINING,204,-,-,2017/05/22 23:00:00+00,2017/05/23 23:00:00+00,161318,1934.51000976563,Revenue,District Surveyors Association Limited,May,2017,584
Tunbridge Wells Borough Council,Environmental and regulatory services ,105,CS,CLIENT SERVICES (DEPOT),CLEANER BOROUGH,OTHER FEES,3330,SHERWOOD KINGDOM,EV0467,2017/05/21 23:00:00+00,2017/05/23 23:00:00+00,161069,1924,Revenue,Kingdom Security Limited,May,2017,585
Tunbridge Wells Borough Council,Planning Services,110,PL,PLANNING,PLANNING POLICY,PLANNING CONSULTANT FEES,3270,LOCAL DEVELOPMENT FRAMEWORK,EV0575,2017/05/18 23:00:00+00,2017/05/23 23:00:00+00,161019,1800,Revenue,Jeremy Benn Associates Ltd,May,2017,586
Tunbridge Wells Borough Council,Central Services,102,FM,FACILITIES MANAGEMENT,POSTAL CHARGES ACCOUNT,CASH TRANSFERS,9100,-,-,2017/05/21 23:00:00+00,2017/05/23 23:00:00+00,161087,1766.78002929688,Revenue,Royal Mail  Group plc,May,2017,587
Tunbridge Wells Borough Council,Housing Services,108,HO,HOUSING,RENT DEPOSIT SCHEME,DEBTORS,8510,-,-,2017/05/23 23:00:00+00,2017/05/23 23:00:00+00,161311,1669.22998046875,Revenue,This data has been redacted under the Data Protection Act,May,2017,588
Tunbridge Wells Borough Council,Environmental and regulatory services ,105,CS,CLIENT SERVICES (DEPOT),REFUSE COLLECTION SERVICES,EQUIPMENT PURCHASE/MTCE,3000,-,-,2017/05/18 23:00:00+00,2017/05/23 23:00:00+00,160798,1550,Revenue,MGB Plastics Ltd (One 51 Plastics),May,2017,589
Tunbridge Wells Borough Council,Environmental and regulatory services ,105,EH,ENVIRONMENTAL HEALTH,FOOTWAY LIGHTING-TW & RUSTHALL,STREET LIGHTING MTCE CONTRACT,2035,-,-,2017/05/23 23:00:00+00,2017/05/23 23:00:00+00,160540,1493.93994140625,Revenue,PSR LIGHTING & SIGNS LTD,May,2017,590
Tunbridge Wells Borough Council,Environmental and regulatory services ,105,EH,ENVIRONMENTAL HEALTH,FOOTWAY LIGHTING-TW & RUSTHALL,STREET LIGHTING MTCE CONTRACT,2035,-,-,2017/05/23 23:00:00+00,2017/05/23 23:00:00+00,161090,1286.7099609375,Revenue,PSR LIGHTING & SIGNS LTD,May,2017,591
Tunbridge Wells Borough Council,Central Services,102,FI,FINANCE,EXCHEQUER SERVICES,PROJECTS & INITIATIVES,3910,-,-,2017/05/23 23:00:00+00,2017/05/23 23:00:00+00,161282,1045,Revenue,Advanced Business Solutions,May,2017,592
Tunbridge Wells Borough Council,Housing Services,108,PS,PROPERTY SERVICES,PROPERTY,RESPONSIVE REPAIRS BUILDINGS,2020,PROPERTY NON CONTRACT,PH0605,2017/05/21 23:00:00+00,2017/05/23 23:00:00+00,161076,1000,Revenue,Lamberhurst Parish Council,May,2017,593
Tunbridge Wells Borough Council,Housing Services,108,HO,HOUSING,RENT DEPOSIT SCHEME,DEBTORS,8510,-,-,2017/05/23 23:00:00+00,2017/05/23 23:00:00+00,161332,1000,Revenue,This data has been redacted under the Data Protection Act,May,2017,594
Tunbridge Wells Borough Council,Central Services,102,FI,FINANCE,ITRENT PAYROLL & HR SYSTEM,COMPUTER SOFTWARE,8341,-,-,2017/05/21 23:00:00+00,2017/05/23 23:00:00+00,160617,879,Capital,Midland Software Ltd,May,2017,595
Tunbridge Wells Borough Council,Central Services,102,FI,FINANCE,ITRENT PAYROLL & HR SYSTEM,COMPUTER SOFTWARE,8341,-,-,2017/05/23 23:00:00+00,2017/05/23 23:00:00+00,160618,879,Capital,Midland Software Ltd,May,2017,596
Tunbridge Wells Borough Council,Planning Services,110,PL,PLANNING,DEVELOPMENT MANAGEMENT,PLANNING CONSULTANT FEES,3270,-,-,2017/05/16 23:00:00+00,2017/05/23 23:00:00+00,161150,842.799987792969,Revenue,RANDSTAD CPE LIMITED,May,2017,597
Tunbridge Wells Borough Council,Cultural and Related Services,104,AH,ASSEMBLY HALL,A-HALL TECHNICAL,CONSUMABLES & MATERIALS,3060,-,A17R03,2017/05/23 23:00:00+00,2017/05/23 23:00:00+00,160748,814,Revenue,White Light Ltd,May,2017,598
Tunbridge Wells Borough Council,Environmental and regulatory services ,105,LI,LICENSING,LICENSING,COGS-NON FOOD,3080,VEHICLE LICENSING - PH,EV0421,2017/05/23 23:00:00+00,2017/05/23 23:00:00+00,160674,780,Revenue,Matfield MOT Centre,May,2017,599
Tunbridge Wells Borough Council,Cultural and Related Services,104,AH,ASSEMBLY HALL,A-HALL FRONT OF HOUSE,SALES-PUBLICATIONS,5194,-,-,2017/05/22 23:00:00+00,2017/05/23 23:00:00+00,161324,640,Revenue,John Good Ltd,May,2017,600
Tunbridge Wells Borough Council,Housing Services,108,HO,HOUSING,MORTGAGE & LOANS CASH,CASH IN HAND,8600,-,-,2017/05/22 23:00:00+00,2017/05/23 23:00:00+00,161312,639.760009765625,Revenue,This data has been redacted under the Data Protection Act,May,2017,601
Tunbridge Wells Borough Council,Central Services,102,PS,PROPERTY SERVICES,BUILDING SERVICES,AGENCY STAFF,100,-,-,2017/06/04 23:00:00+00,2017/06/06 23:00:00+00,161617,1495.19995117188,Revenue,Hays Montrose,June,2017,602
Tunbridge Wells Borough Council,Central Services,102,RB,REVS & BENS,REVS & BENS ADMINISTRATION,BAILIFFS FEES,3300,-,-,2017/06/04 23:00:00+00,2017/06/06 23:00:00+00,161533,1488.40002441406,Revenue,This data has been redacted under the Data Protection Act,June,2017,603
Tunbridge Wells Borough Council,Central Services,102,PS,PROPERTY SERVICES,BUILDING SERVICES,AGENCY STAFF,100,-,-,2017/06/04 23:00:00+00,2017/06/06 23:00:00+00,161618,1470.28002929688,Revenue,Hays Montrose,June,2017,604
Tunbridge Wells Borough Council,Cultural and Related Services,104,PK,PARKS,TW ICE RINK,EXTERNAL CONTRACT PAYMENTS,3220,-,-,2017/06/04 23:00:00+00,2017/06/06 23:00:00+00,160761,1454,Revenue,Sodexo Ltd,June,2017,605
Tunbridge Wells Borough Council,Environmental and regulatory services ,105,CR,CREMATORIUM,TUNBRIDGE WELLS-CEMETERIES,EQUIPMENT PURCHASE/MTCE,3000,-,-,2017/06/06 23:00:00+00,2017/06/06 23:00:00+00,161847,1445,Revenue,The Church Cushion Co,June,2017,606
Tunbridge Wells Borough Council,Environmental and regulatory services ,105,CR,CREMATORIUM,CREMATORIUM,EQUIPMENT PURCHASE/MTCE,3000,-,-,2017/06/06 23:00:00+00,2017/06/06 23:00:00+00,161906,1341,Revenue,Metspin Limited,June,2017,607
Tunbridge Wells Borough Council,Planning Services,110,PL,PLANNING,DEVELOPMENT MANAGEMENT,PLANNING CONSULTANT FEES,3270,-,-,2017/06/06 23:00:00+00,2017/06/06 23:00:00+00,161823,1307.19995117188,Revenue,RANDSTAD CPE LIMITED,June,2017,608
Tunbridge Wells Borough Council,Environmental and regulatory services ,105,CR,CREMATORIUM,CREMATORIUM,COGS - URNS,3081,-,-,2017/06/06 23:00:00+00,2017/06/06 23:00:00+00,161907,1290,Revenue,Ashdown Supplies,June,2017,609
Tunbridge Wells Borough Council,Central Services,102,CE,CHIEF EXECUTIVE,CHIEF EXECUTIVE,SUBS TO ORGANISATIONS,3730,-,-,2017/06/04 23:00:00+00,2017/06/06 23:00:00+00,161587,1130.40002441406,Revenue,Solace Group,June,2017,610
Tunbridge Wells Borough Council,Cultural and Related Services,104,PK,PARKS,PARKS & GROUNDS,PROJECTS & INITIATIVES,3910,GROSVENOR/HILBERT HLF,PE0120,2017/06/04 23:00:00+00,2017/06/06 23:00:00+00,161266,1109.5,Revenue,Sodexo Ltd,June,2017,611
Tunbridge Wells Borough Council,Central Services,102,PS,PROPERTY SERVICES,BUILDING SERVICES,AGENCY STAFF,100,-,-,2017/06/04 23:00:00+00,2017/06/06 23:00:00+00,161616,1106.4599609375,Revenue,Hays Montrose,June,2017,612
Tunbridge Wells Borough Council,Environmental and regulatory services ,105,PK,PARKS,TUNBRIDGE WELLS-CEMETERIES,Grounds Maint. Sodexo Contract,2054,-,-,2017/06/04 23:00:00+00,2017/06/06 23:00:00+00,160762,992.75,Revenue,Sodexo Ltd,June,2017,613
Tunbridge Wells Borough Council,Housing Services,108,HO,HOUSING,HOUSING NEEDS SERVICE,HOMELESSNESS EXPENSES,3912,SYRIAN REFUGEES,EV0587,2017/06/05 23:00:00+00,2017/06/06 23:00:00+00,161910,967,Revenue,This data has been redacted under the Data Protection Act,June,2017,614
Tunbridge Wells Borough Council,Housing Services,108,HO,HOUSING,HOUSING NEEDS SERVICE,HOMELESSNESS EXPENSES,3912,SYRIAN REFUGEES,EV0587,2017/06/05 23:00:00+00,2017/06/06 23:00:00+00,161911,967,Revenue,This data has been redacted under the Data Protection Act,June,2017,615
Tunbridge Wells Borough Council,Environmental and regulatory services ,105,EH,ENVIRONMENTAL HEALTH,FOOD & SAFETY,AGENCY STAFF,100,-,-,2017/06/05 23:00:00+00,2017/06/06 23:00:00+00,161799,804,Revenue,Recruitment Solutions,June,2017,616
Tunbridge Wells Borough Council,Cultural and Related Services,104,AH,ASSEMBLY HALL,EVENTS,EVENTS,3420,CRICKET WEEK,EV0001,2017/06/06 23:00:00+00,2017/06/06 23:00:00+00,161857,785,Revenue,AA Media Limited,June,2017,617
Tunbridge Wells Borough Council,Cultural and Related Services,104,PK,PARKS,PARKS & GROUNDS,Grounds Maint. Sodexo Contract,2054,-,-,2017/06/04 23:00:00+00,2017/06/06 23:00:00+00,161798,770,Revenue,Weed Management Limited,June,2017,618
Tunbridge Wells Borough Council,Housing Services,108,HO,HOUSING,HOUSING NEEDS SERVICE,HOMELESSNESS EXPENSES,3912,SYRIAN REFUGEES,EV0587,2017/06/05 23:00:00+00,2017/06/06 23:00:00+00,161909,765,Revenue,This data has been redacted under the Data Protection Act,June,2017,619
Tunbridge Wells Borough Council,Cultural and Related Services,104,AH,ASSEMBLY HALL,A-HALL TECHNICAL,CONSUMABLES & MATERIALS,3060,-,-,2017/06/05 23:00:00+00,2017/06/06 23:00:00+00,161908,759.950012207031,Revenue,Building Equipment Supplies Ltd,June,2017,620
Tunbridge Wells Borough Council,Cultural and Related Services,104,AB,ASSEMBLY HALL BAR,A-HALL FRONT OF HOUSE,BOOKS & PUBLICATIONS,3190,-,-,2017/06/06 23:00:00+00,2017/06/06 23:00:00+00,161789,640,Revenue,John Good Ltd,June,2017,621
Tunbridge Wells Borough Council,Central Services,102,EL,ELECTIONS,NON TWBC ELECTIONS,RENTS/HIRE OF PREMISES,2200,KCC ELECTIONS MAY 2017,CS0401,2017/06/04 23:00:00+00,2017/06/06 23:00:00+00,161802,640,Revenue,St Luke's Church PCC,June,2017,622
Tunbridge Wells Borough Council,Central Services,102,FH,FRONT OF HOUSE (RECEPTION),TOWN HALL,EQUIPMENT - FLAVIA SUPPLIES,3002,-,-,2017/06/05 23:00:00+00,2017/06/06 23:00:00+00,160735,605.97998046875,Revenue,Cherrybean Ltd,June,2017,623
Tunbridge Wells Borough Council,Cultural and Related Services,104,AM,ASSEMBLY HALL MARKETING,A-HALL MANAGEMENT,PROJECTS & INITIATIVES,3910,-,-,2017/06/06 23:00:00+00,2017/06/06 23:00:00+00,161836,600,Revenue,This data has been redacted under the Data Protection Act,June,2017,624
Tunbridge Wells Borough Council,Central Services,102,FM,FACILITIES MANAGEMENT,TOWN HALL,EQUIPMENT PURCHASE/MTCE,3000,-,-,2017/06/05 23:00:00+00,2017/06/06 23:00:00+00,161829,593.950012207031,Revenue,Digital ID Limited,June,2017,625
Tunbridge Wells Borough Council,Housing Services,108,HO,HOUSING,RENT DEPOSIT SCHEME,DEBTORS,8510,-,-,2017/06/05 23:00:00+00,2017/06/06 23:00:00+00,161809,586.559997558594,Revenue,This data has been redacted under the Data Protection Act,June,2017,626
Tunbridge Wells Borough Council,Environmental and regulatory services ,105,PK,PARKS,CREMATORIUM,Grounds Maint. Sodexo Contract,2054,-,-,2017/06/04 23:00:00+00,2017/06/06 23:00:00+00,160763,581.099975585938,Revenue,Sodexo Ltd,June,2017,627
Tunbridge Wells Borough Council,Environmental and regulatory services ,105,CR,CREMATORIUM,TUNBRIDGE WELLS-CEMETERIES,COGS - PLAQUES,3082,-,-,2017/06/05 23:00:00+00,2017/06/06 23:00:00+00,161846,570.400024414063,Revenue,A Burslem & Son Ltd (Burslem Memorials),June,2017,628
Tunbridge Wells Borough Council,Central Services,102,EL,ELECTIONS,NON TWBC ELECTIONS,RENTS/HIRE OF PREMISES,2200,KCC ELECTIONS MAY 2017,CS0401,2017/06/04 23:00:00+00,2017/06/06 23:00:00+00,161804,550,Revenue,Number One Community Trust,June,2017,629
Tunbridge Wells Borough Council,Central Services,102,EL,ELECTIONS,NON TWBC ELECTIONS,RENTS/HIRE OF PREMISES,2200,GENERAL ELECTION JUNE 2017,CS0402,2017/06/04 23:00:00+00,2017/06/06 23:00:00+00,161805,550,Revenue,Number One Community Trust,June,2017,630
Tunbridge Wells Borough Council,Central Services,102,FI,FINANCE,EXCHEQUER SERVICES,PROJECTS & INITIATIVES,3910,-,-,2017/06/06 23:00:00+00,2017/06/06 23:00:00+00,161284,522.5,Revenue,Advanced Business Solutions,June,2017,631
Tunbridge Wells Borough Council,Environmental and regulatory services ,105,CR,CREMATORIUM,TUNBRIDGE WELLS-CEMETERIES,COGS - PLAQUES,3082,-,-,2017/06/05 23:00:00+00,2017/06/06 23:00:00+00,161122,517.200012207031,Revenue,A Burslem & Son Ltd (Burslem Memorials),June,2017,632
Tunbridge Wells Borough Council,Central Services,102,FM,FACILITIES MANAGEMENT,TOWN HALL,WINDOW CLEANING,2540,-,-,2017/06/06 23:00:00+00,2017/06/06 23:00:00+00,161886,495,Revenue,An Eye for Detail Cleaning Services,June,2017,633
Tunbridge Wells Borough Council,Cultural and Related Services,104,PK,PARKS,PARKS & GROUNDS,GROUND MAINT NON CONTRACT,2060,-,-,2017/06/05 23:00:00+00,2017/06/06 23:00:00+00,161869,375,Revenue,An Eye for Detail Cleaning Services,June,2017,634
Tunbridge Wells Borough Council,Environmental and regulatory services ,105,CR,CREMATORIUM,CREMATORIUM,Medical Fees,3340,-,-,2017/06/06 23:00:00+00,2017/06/06 23:00:00+00,161902,359.399993896484,Revenue,This data has been redacted under the Data Protection Act,June,2017,635
Tunbridge Wells Borough Council,Central Services,102,EL,ELECTIONS,NON TWBC ELECTIONS,RENTS/HIRE OF PREMISES,2200,KCC ELECTIONS MAY 2017,CS0401,2017/06/04 23:00:00+00,2017/06/06 23:00:00+00,161806,350,Revenue,HEADWAY IN WEST KENT,June,2017,636
Tunbridge Wells Borough Council,Central Services,102,EL,ELECTIONS,NON TWBC ELECTIONS,RENTS/HIRE OF PREMISES,2200,GENERAL ELECTION JUNE 2017,CS0402,2017/06/04 23:00:00+00,2017/06/06 23:00:00+00,161807,350,Revenue,HEADWAY IN WEST KENT,June,2017,637
Tunbridge Wells Borough Council,Central Services,102,ST,STATIONERY ORDERS,BUILDING ADMINISTRATION,PRINTING,3150,-,-,2017/06/06 23:00:00+00,2017/06/06 23:00:00+00,161865,330,Revenue,Corporate Document Services Limited,June,2017,638
Tunbridge Wells Borough Council,Cultural and Related Services,104,AH,ASSEMBLY HALL,EVENTS,EVENTS,3420,CRICKET WEEK,EV0001,2017/06/06 23:00:00+00,2017/06/06 23:00:00+00,161794,290,Revenue,Primrose,June,2017,639
Tunbridge Wells Borough Council,Central Services,102,EL,ELECTIONS,NON TWBC ELECTIONS,RENTS/HIRE OF PREMISES,2200,KCC ELECTIONS MAY 2017,CS0401,2017/06/04 23:00:00+00,2017/06/06 23:00:00+00,161800,275,Revenue,Kilndown Village Hall,June,2017,640
Tunbridge Wells Borough Council,Planning Services,110,PS,PROPERTY SERVICES,DEVELOPMENT PROGRAMME,PROPERTY CONSULTANTS,3290,MASTERPLAN CIVIC COMPLEX,PH0709,2017/06/04 23:00:00+00,2017/06/06 23:00:00+00,161424,270,Revenue,CBRE RE C/A HERMES CMR,June,2017,641
Tunbridge Wells Borough Council,Housing Services,108,HO,HOUSING,BED & BREAKFAST COSTS,RENTS/HIRE OF PREMISES,2200,-,-,2017/06/06 23:00:00+00,2017/06/06 23:00:00+00,161463,262.5,Revenue,This data has been redacted under the Data Protection Act,June,2017,642
Tunbridge Wells Borough Council,Cultural and Related Services,104,AB,ASSEMBLY HALL BAR,EVENTS,EVENTS,3420,CRICKET WEEK,EV0001,2017/06/06 23:00:00+00,2017/06/06 23:00:00+00,161637,250,Revenue,P & T Scaffolding Limited,June,2017,643
Tunbridge Wells Borough Council,Cultural and Related Services,104,AM,ASSEMBLY HALL MARKETING,A-HALL MARKETING,PROMOTION,3450,-,-,2017/06/04 23:00:00+00,2017/06/06 23:00:00+00,161787,250,Revenue,JPS Media Ltd,June,2017,644
Tunbridge Wells Borough Council,Central Services,102,FI,FINANCE,REVS & BENS ADMINISTRATION,IT SOFTWARE,3590,-,-,2017/06/13 23:00:00+00,2017/06/13 23:00:00+00,161641,73239.6015625,Revenue,Maidstone Borough Council,June,2017,645
Tunbridge Wells Borough Council,Cultural and Related Services,104,AH,ASSEMBLY HALL,A-HALL COUNCIL SHOWS,SHOW FEES,3380,170522-27 RENT,A17E03,2017/06/13 23:00:00+00,2017/06/13 23:00:00+00,162131,70791.203125,Revenue,Rent 20th Anniversery Production Ltd,June,2017,646
Tunbridge Wells Borough Council,Central Services,102,IT,INFORMATION & COMMUNICATIONS TECHNOLOGY,I T SERVICE,COMPUTER HARDWARE,3580,HARDWARE NETWORKING,EV0326,2017/06/11 23:00:00+00,2017/06/13 23:00:00+00,162002,20000,Revenue,Kent County Council,June,2017,647
Tunbridge Wells Borough Council,Central Services,102,RB,REVS & BENS,REVS & BENS ADMINISTRATION,"PRINTING - NDR, CNCL TX & INST",3153,-,-,2017/06/08 23:00:00+00,2017/06/13 23:00:00+00,161833,12047.6904296875,Revenue,Maidstone Borough Council,June,2017,648
Tunbridge Wells Borough Council,Housing Services,108,HO,HOUSING,HOUSING NEEDS SERVICE,SUBS TO ORGANISATIONS,3730,-,-,2017/06/11 23:00:00+00,2017/06/13 23:00:00+00,162060,11245.849609375,Revenue,Dover District Council,June,2017,649
Tunbridge Wells Borough Council,Central Services,102,FI,FINANCE,LAND CHARGES,PARTNERSHIP AGREEMENT,202,-,-,2017/06/13 23:00:00+00,2017/06/13 23:00:00+00,161889,10624,Revenue,Maidstone Borough Council,June,2017,650
Tunbridge Wells Borough Council,Cultural and Related Services,104,AH,ASSEMBLY HALL,A-HALL COUNCIL SHOWS,SHOW FEES,3380,170512 ONE NIGHT OF QUEEN,A17E02,2017/06/08 23:00:00+00,2017/06/13 23:00:00+00,161843,10026.25,Revenue,Gobo Productions Ltd,June,2017,651
Tunbridge Wells Borough Council,Central Services,102,FI,FINANCE,ITRENT PAYROLL & HR SYSTEM,COMPUTER SOFTWARE,8341,-,-,2017/05/21 23:00:00+00,2017/05/23 23:00:00+00,160614,636.119995117188,Capital,Midland Software Ltd,May,2017,652
Tunbridge Wells Borough Council,Environmental and regulatory services ,105,CU,COMMUNITY SAFTY UNIT,COMMUNITY SAFETY,PROJECTS & INITIATIVES,3910,COMM.SAFETY PARTNE,EV0088,2017/06/13 23:00:00+00,2017/06/13 23:00:00+00,161819,10000,Revenue,Domestic Abuse Volunteer Support Services,June,2017,653
Tunbridge Wells Borough Council,Highways and Transport Services,107,PA,PARKING,OFF STREET PARKING,MAINT/SERVICING PLANT,2030,-,-,2017/05/22 23:00:00+00,2017/05/23 23:00:00+00,159728,538.97998046875,Revenue,Metric Group Limited,May,2017,654
Tunbridge Wells Borough Council,Environmental and regulatory services ,105,CU,COMMUNITY SAFTY UNIT,COMMUNITY SAFETY,PROJECTS & INITIATIVES,3910,COMM.SAFETY PARTNE,EV0088,2017/06/13 23:00:00+00,2017/06/13 23:00:00+00,161820,10000,Revenue,Domestic Abuse Volunteer Support Services,June,2017,655
Tunbridge Wells Borough Council,Environmental and regulatory services ,105,CS,CLIENT SERVICES (DEPOT),REFUSE COLLECTION SERVICES,EXTNLL CONTRACT/CLINICAL WASTE,3224,-,-,2017/05/21 23:00:00+00,2017/05/23 23:00:00+00,160758,536.690002441406,Revenue,OCS Group UK Limited t/a Cannon,May,2017,656
Tunbridge Wells Borough Council,Housing Services,108,HP,HOUSING (PRIVATE SECTOR),DISABLED FACILITIES GRANTS,CAPITAL GRANTS PAYABLE,8355,-,-,2017/06/11 23:00:00+00,2017/06/13 23:00:00+00,162130,7799.1298828125,Capital,GREGORY (KENT) LTD,June,2017,657
Tunbridge Wells Borough Council,Housing Services,108,HO,HOUSING,BED & BREAKFAST COSTS,RENTS/HIRE OF PREMISES,2200,-,-,2017/05/23 23:00:00+00,2017/05/23 23:00:00+00,161272,490,Revenue,This data has been redacted under the Data Protection Act,May,2017,658
Tunbridge Wells Borough Council,Housing Services,108,HP,HOUSING (PRIVATE SECTOR),DISABLED FACILITIES GRANTS,CAPITAL GRANTS PAYABLE,8355,-,-,2017/06/11 23:00:00+00,2017/06/13 23:00:00+00,162111,7294.4599609375,Capital,Acorn Maintenance Services,June,2017,659
Tunbridge Wells Borough Council,Environmental and regulatory services ,105,FM,FACILITIES MANAGEMENT,NORTH FARM DEPOT,RESPONSIVE REPAIRS BUILDINGS,2020,-,-,2017/05/22 23:00:00+00,2017/05/23 23:00:00+00,161148,478.049987792969,Revenue,Swale Shutter and Door Services Limited,May,2017,660
Tunbridge Wells Borough Council,Planning Services,110,PL,PLANNING,PLANNING POLICY,PLANNING CONSULTANT FEES,3270,NEW LOCAL PLAN,EV0589,2017/06/11 23:00:00+00,2017/06/13 23:00:00+00,162170,6245.6298828125,Revenue,Allies and Morrison Architects,June,2017,661
Tunbridge Wells Borough Council,Central Services,102,IT,INFORMATION & COMMUNICATIONS TECHNOLOGY,I T SERVICE,COMPUTER HARDWARE,3580,HARDWARE NETWORKING,EV0326,2017/06/11 23:00:00+00,2017/06/13 23:00:00+00,162003,5600,Revenue,Kent County Council,June,2017,662
Tunbridge Wells Borough Council,Housing Services,108,HO,HOUSING,RENT DEPOSIT SCHEME,DEBTORS,8510,-,-,2017/06/13 23:00:00+00,2017/06/13 23:00:00+00,162200,5370,Revenue,Your Move,June,2017,663
Tunbridge Wells Borough Council,Highways and Transport Services,107,FI,FINANCE,PARKING ADMIN & ENFORCEMENT,EXTERNAL CONTRACT PAYMENTS,3220,-,-,2017/06/12 23:00:00+00,2017/06/13 23:00:00+00,161459,5079.81005859375,Revenue,Contract Security Services Ltd,June,2017,664
Tunbridge Wells Borough Council,Central Services,102,GW,GATEWAY CUSTOMER SERVICES,GATEWAY,TELEPHONE COSTS,3510,CALL CENTRE,EV0341,2017/06/08 23:00:00+00,2017/06/13 23:00:00+00,162123,5003.240234375,Revenue,Daisy Telecoms Ltd,June,2017,665
Tunbridge Wells Borough Council,Planning Services,110,EH,ENVIRONMENTAL HEALTH,COMMUNITY & GRANTS,GRANTS,3750,-,-,2017/06/08 23:00:00+00,2017/06/13 23:00:00+00,162096,5000,Revenue,Number One Community Trust,June,2017,666
Tunbridge Wells Borough Council,Housing Services,108,HP,HOUSING (PRIVATE SECTOR),DISABLED FACILITIES GRANTS,CAPITAL GRANTS PAYABLE,8355,-,-,2017/06/11 23:00:00+00,2017/06/13 23:00:00+00,162122,4400,Capital,Dolphin Lifts Kent Ltd,June,2017,667
Tunbridge Wells Borough Council,Cultural and Related Services,104,AH,ASSEMBLY HALL,A-HALL TECHNICAL,ELECTRICITY,2140,-,-,2017/06/08 23:00:00+00,2017/06/13 23:00:00+00,161325,3583.01000976563,Revenue,Kent County Council (KCS),June,2017,668
Tunbridge Wells Borough Council,Cultural and Related Services,104,AH,ASSEMBLY HALL,A-HALL COUNCIL SHOWS,SHOW FEES,3380,170404 ETTA JAMES STORY,A17D11,2017/06/13 23:00:00+00,2017/06/13 23:00:00+00,161845,3528.25,Revenue,THEATRE OF COMEDY COMPANY LIMITED,June,2017,669
Tunbridge Wells Borough Council,Cultural and Related Services,104,MU,MUSEUM,NORTH FARM ART WORKS,CAPITAL FEES EXTERNAL,8315,-,-,2017/06/13 23:00:00+00,2017/06/13 23:00:00+00,162094,3500,Capital,This data has been redacted under the Data Protection Act,June,2017,670
Tunbridge Wells Borough Council,Central Services,102,CO,COMMUNICATIONS,PERFORMANCE MANAGEMENT,SURVEYS & MARKET RESEARCH,3360,-,-,2017/06/13 23:00:00+00,2017/06/13 23:00:00+00,162278,2974.5,Revenue,Digitom Ltd,June,2017,671
Tunbridge Wells Borough Council,Central Services,102,EL,ELECTIONS,NON TWBC ELECTIONS,POSTAGE,3500,GENERAL ELECTION JUNE 2017,CS0402,2017/06/13 23:00:00+00,2017/06/13 23:00:00+00,162104,2609.61010742188,Revenue,Royal Mail  Group plc,June,2017,672
Tunbridge Wells Borough Council,Housing Services,108,DS,Sundry Customer,HOUSING NEEDS SERVICE,HOMELESSNESS EXPENSES,3912,-,-,2017/06/13 23:00:00+00,2017/06/13 23:00:00+00,162197,2600.14990234375,Revenue,CUBE SELF STORAGE LTD,June,2017,673
Tunbridge Wells Borough Council,Environmental and regulatory services ,105,CU,COMMUNITY SAFTY UNIT,COMMUNITY SAFETY,PROJECTS & INITIATIVES,3910,COMM.SAFETY PARTNE,EV0088,2017/06/13 23:00:00+00,2017/06/13 23:00:00+00,162152,2500,Revenue,TUNBRIDGE WELLS STREET PASTORS,June,2017,674
Tunbridge Wells Borough Council,Cultural and Related Services,104,AH,ASSEMBLY HALL,A-HALL COUNCIL SHOWS,SHOW FEES,3380,170309 DEREK ACHORAH,A17C05,2017/06/13 23:00:00+00,2017/06/13 23:00:00+00,162169,2400.93994140625,Revenue,JPCJ Ltd,June,2017,675
Tunbridge Wells Borough Council,Environmental and regulatory services ,105,FI,FINANCE,FOOD & SAFETY,SALARIES,20,-,-,2017/06/13 23:00:00+00,2017/06/13 23:00:00+00,162113,2372.419921875,Revenue,Fideliti Ltd,June,2017,676
Tunbridge Wells Borough Council,Cultural and Related Services,104,FM,FACILITIES MANAGEMENT,A-HALL TECHNICAL,CONTRACT CLEANING,2510,PROPERTY CLEANING CONTRACT,PH0590,2017/06/08 23:00:00+00,2017/06/13 23:00:00+00,161123,2359.60009765625,Revenue,CORDANT CLEANING LTD,June,2017,677
Tunbridge Wells Borough Council,Highways and Transport Services,107,PA,PARKING,CRESCENT ROAD CAR PARK,FIRE & SECURITY COSTS,2080,-,-,2017/06/11 23:00:00+00,2017/06/13 23:00:00+00,162048,2280,Revenue,RIGHT GUARD SECURITY UK LTD,June,2017,678
Tunbridge Wells Borough Council,Housing Services,108,HO,HOUSING,RENT DEPOSIT SCHEME,DEBTORS,8510,-,-,2017/06/13 23:00:00+00,2017/06/13 23:00:00+00,162198,2270,Revenue,The Letting Company,June,2017,679
Tunbridge Wells Borough Council,Cultural and Related Services,104,MU,MUSEUM,CULTURAL HUB,CONSULTANTS FEES,3292,-,-,2017/06/11 23:00:00+00,2017/06/13 23:00:00+00,162041,2260.6298828125,Revenue,Cause4 Ltd,June,2017,680
Tunbridge Wells Borough Council,Cultural and Related Services,104,PS,PROPERTY SERVICES,PARKS & GROUNDS,PLANNED MAINTENANCE BUILDINGS,2000,PROPERTY CONTRACTS,PH0600,2017/06/08 23:00:00+00,2017/06/13 23:00:00+00,161894,2209.65991210938,Revenue,DCB (Kent) Ltd,June,2017,681
Tunbridge Wells Borough Council,Highways and Transport Services,107,PA,PARKING,PARKING REGULATION,SIGNING & LINING WORKS,3920,-,-,2017/06/11 23:00:00+00,2017/06/13 23:00:00+00,162058,2108,Revenue,Local World Limited,June,2017,682
Tunbridge Wells Borough Council,Environmental and regulatory services ,105,CR,CREMATORIUM,CREMATORIUM,Medical Fees,3340,-,-,2017/06/13 23:00:00+00,2017/06/13 23:00:00+00,161904,1831.14001464844,Revenue,This data has been redacted under the Data Protection Act,June,2017,683
Tunbridge Wells Borough Council,Cultural and Related Services,104,AB,ASSEMBLY HALL BAR,A-HALL FRONT OF HOUSE,COGS - DRINK,3091,-,-,2017/06/13 23:00:00+00,2017/06/13 23:00:00+00,162209,1699.88000488281,Revenue,H T White & Co Ltd,June,2017,684
Tunbridge Wells Borough Council,Planning Services,110,PL,PLANNING,DEVELOPMENT MANAGEMENT,PLANNING CONSULTANT FEES,3270,-,-,2017/06/11 23:00:00+00,2017/06/13 23:00:00+00,162091,1650,Revenue,Dixon Searle Partnership Ltd,June,2017,685
Tunbridge Wells Borough Council,Environmental and regulatory services ,105,LI,LICENSING,LICENSING,COGS-NON FOOD,3080,VEHICLE LICENSING - PH,EV0421,2017/06/11 23:00:00+00,2017/06/13 23:00:00+00,162004,1550,Revenue,Tunbridge Wells MOT Centre Ltd,June,2017,686
Tunbridge Wells Borough Council,Housing Services,108,HO,HOUSING,BED & BREAKFAST COSTS,RENTS/HIRE OF PREMISES,2200,-,-,2017/06/11 23:00:00+00,2017/06/13 23:00:00+00,162079,1461.43005371094,Revenue,T & J Motel,June,2017,687
Tunbridge Wells Borough Council,Housing Services,108,HO,HOUSING,BED & BREAKFAST COSTS,RENTS/HIRE OF PREMISES,2200,-,-,2017/06/11 23:00:00+00,2017/06/13 23:00:00+00,162080,1461.43005371094,Revenue,T & J Motel,June,2017,688
Tunbridge Wells Borough Council,Highways and Transport Services,107,PA,PARKING,SURFACE CAR PARKS,RESPONSIVE REPAIRS BUILDINGS,2020,NORTH GROVE,PT0120,2017/06/13 23:00:00+00,2017/06/13 23:00:00+00,162195,1450,Revenue,Sturgeons (Civil Engineering) Ltd,June,2017,689
Tunbridge Wells Borough Council,Central Services,102,EL,ELECTIONS,NON TWBC ELECTIONS,PRINTING,3150,GENERAL ELECTION JUNE 2017,CS0402,2017/06/13 23:00:00+00,2017/06/13 23:00:00+00,162011,1314.93994140625,Revenue,Stephen Austin & Sons Ltd,June,2017,690
Tunbridge Wells Borough Council,Central Services,102,EL,ELECTIONS,NON TWBC ELECTIONS,POSTAGE,3500,GENERAL ELECTION JUNE 2017,CS0402,2017/06/13 23:00:00+00,2017/06/13 23:00:00+00,162090,1289.2099609375,Revenue,Royal Mail  Group plc,June,2017,691
Tunbridge Wells Borough Council,Planning Services,110,PL,PLANNING,DEVELOPMENT MANAGEMENT,PLANNING CONSULTANT FEES,3270,-,-,2017/06/11 23:00:00+00,2017/06/13 23:00:00+00,162081,1221.19995117188,Revenue,RANDSTAD CPE LIMITED,June,2017,692
Tunbridge Wells Borough Council,Housing Services,108,HO,HOUSING,BED & BREAKFAST COSTS,RENTS/HIRE OF PREMISES,2200,-,-,2017/06/11 23:00:00+00,2017/06/13 23:00:00+00,162077,1195.7099609375,Revenue,T & J Motel,June,2017,693
Tunbridge Wells Borough Council,Housing Services,108,HO,HOUSING,BED & BREAKFAST COSTS,RENTS/HIRE OF PREMISES,2200,-,-,2017/06/11 23:00:00+00,2017/06/13 23:00:00+00,162078,1195.7099609375,Revenue,T & J Motel,June,2017,694
Tunbridge Wells Borough Council,Central Services,102,FM,FACILITIES MANAGEMENT,POSTAL CHARGES ACCOUNT,CASH TRANSFERS,9100,-,-,2017/06/13 23:00:00+00,2017/06/13 23:00:00+00,162009,1191.41003417969,Revenue,Royal Mail  Group plc,June,2017,695
Tunbridge Wells Borough Council,Planning Services,110,PL,PLANNING,DEVELOPMENT MANAGEMENT,PLANNING CONSULTANT FEES,3270,-,-,2017/06/11 23:00:00+00,2017/06/13 23:00:00+00,162148,1100,Revenue,Dixon Searle Partnership Ltd,June,2017,696
Tunbridge Wells Borough Council,Central Services,102,FI,FINANCE,EXCHEQUER SERVICES,PROJECTS & INITIATIVES,3910,-,-,2017/06/13 23:00:00+00,2017/06/13 23:00:00+00,162256,1045,Revenue,Advanced Business Solutions,June,2017,697
Tunbridge Wells Borough Council,Cultural and Related Services,104,AM,ASSEMBLY HALL MARKETING,A-HALL MARKETING,PROMOTION,3450,-,-,2017/06/11 23:00:00+00,2017/06/13 23:00:00+00,161788,1000,Revenue,One Media Ltd,June,2017,698
Tunbridge Wells Borough Council,Highways and Transport Services,107,PA,PARKING,CRESCENT ROAD CAR PARK,CONTRACT CLEANING,2510,-,-,2017/06/11 23:00:00+00,2017/06/13 23:00:00+00,162005,1000,Revenue,D R M Rowswell,June,2017,699
Tunbridge Wells Borough Council,Housing Services,108,HO,HOUSING,BED & BREAKFAST COSTS,RENTS/HIRE OF PREMISES,2200,-,-,2017/06/11 23:00:00+00,2017/06/13 23:00:00+00,162074,885.710021972656,Revenue,T & J Motel,June,2017,700
Tunbridge Wells Borough Council,Housing Services,108,HO,HOUSING,BED & BREAKFAST COSTS,RENTS/HIRE OF PREMISES,2200,-,-,2017/06/11 23:00:00+00,2017/06/13 23:00:00+00,162076,885.710021972656,Revenue,T & J Motel,June,2017,701
Tunbridge Wells Borough Council,Central Services,102,EL,ELECTIONS,NON TWBC ELECTIONS,PRINTING,3150,-,-,2017/06/13 23:00:00+00,2017/06/13 23:00:00+00,162035,878.330017089844,Revenue,Shaw & Sons Ltd,June,2017,702
Tunbridge Wells Borough Council,Cultural and Related Services,104,AB,ASSEMBLY HALL BAR,A-HALL FRONT OF HOUSE,COGS - DRINK,3091,-,-,2017/06/13 23:00:00+00,2017/06/13 23:00:00+00,162032,859.070007324219,Revenue,H T White & Co Ltd,June,2017,703
Tunbridge Wells Borough Council,Cultural and Related Services,104,PU,PUBLICATIONS,A-HALL MARKETING,PROMOTION,3450,-,-,2017/06/13 23:00:00+00,2017/06/13 23:00:00+00,161867,830.5,Revenue,Corporate Document Services Limited,June,2017,704
Tunbridge Wells Borough Council,Housing Services,108,HO,HOUSING,BED & BREAKFAST COSTS,RENTS/HIRE OF PREMISES,2200,-,-,2017/06/11 23:00:00+00,2017/06/13 23:00:00+00,162075,828.570007324219,Revenue,T & J Motel,June,2017,705
Tunbridge Wells Borough Council,Cultural and Related Services,104,MU,MUSEUM,CULTURAL HUB,EVENTS,3420,ACTIVITY & PUBLIC ENGAGEMENT,EV0043,2017/05/18 23:00:00+00,2017/05/23 23:00:00+00,161036,450,Revenue,This data has been redacted under the Data Protection Act,May,2017,706
Tunbridge Wells Borough Council,Central Services,102,FI,FINANCE,ITRENT PAYROLL & HR SYSTEM,COMPUTER SOFTWARE,8341,-,-,2017/05/23 23:00:00+00,2017/05/23 23:00:00+00,160619,439.5,Capital,Midland Software Ltd,May,2017,707
Tunbridge Wells Borough Council,Central Services,102,FI,FINANCE,ITRENT PAYROLL & HR SYSTEM,COMPUTER SOFTWARE,8341,-,-,2017/05/23 23:00:00+00,2017/05/23 23:00:00+00,160620,439.5,Capital,Midland Software Ltd,May,2017,708
Tunbridge Wells Borough Council,Housing Services,108,HO,HOUSING,BED & BREAKFAST COSTS,RENTS/HIRE OF PREMISES,2200,-,-,2017/05/23 23:00:00+00,2017/05/23 23:00:00+00,161274,437.5,Revenue,This data has been redacted under the Data Protection Act,May,2017,709
Tunbridge Wells Borough Council,Cultural and Related Services,104,MU,MUSEUM,MUSEUM & ART GALLERY,SUBS TO ORGANISATIONS,3730,-,-,2017/05/18 23:00:00+00,2017/05/23 23:00:00+00,161059,399,Revenue,Modes Users Association,May,2017,710
Tunbridge Wells Borough Council,Environmental and regulatory services ,105,CS,CLIENT SERVICES (DEPOT),NORTH FARM DEPOT,GAS,2120,-,-,2017/05/21 23:00:00+00,2017/05/23 23:00:00+00,161115,388.239990234375,Revenue,Kent County Council (KCS),May,2017,711
Tunbridge Wells Borough Council,Environmental and regulatory services ,105,CS,CLIENT SERVICES (DEPOT),NORTH FARM DEPOT,FIRE & SECURITY COSTS,2080,-,-,2017/05/21 23:00:00+00,2017/05/23 23:00:00+00,160588,383.339996337891,Revenue,Emprise Services plc,May,2017,712
Tunbridge Wells Borough Council,Housing Services,108,HO,HOUSING,BED & BREAKFAST COSTS,RENTS/HIRE OF PREMISES,2200,-,-,2017/05/23 23:00:00+00,2017/05/23 23:00:00+00,161271,350,Revenue,This data has been redacted under the Data Protection Act,May,2017,713
Tunbridge Wells Borough Council,Cultural and Related Services,104,AB,ASSEMBLY HALL BAR,A-HALL FRONT OF HOUSE,COGS - DRINK,3091,-,-,2017/05/18 23:00:00+00,2017/05/23 23:00:00+00,161147,338.600006103516,Revenue,H T White & Co Ltd,May,2017,714
Tunbridge Wells Borough Council,Cultural and Related Services,104,AB,ASSEMBLY HALL BAR,A-HALL FRONT OF HOUSE,COGS - DRINK,3091,-,-,2017/05/18 23:00:00+00,2017/05/23 23:00:00+00,160793,323.540008544922,Revenue,Westerham Brewery,May,2017,715
Tunbridge Wells Borough Council,Environmental and regulatory services ,105,EH,ENVIRONMENTAL HEALTH,FOOD & SAFETY,AGENCY STAFF,100,-,-,2017/05/18 23:00:00+00,2017/05/23 23:00:00+00,161157,301.5,Revenue,Recruitment Solutions,May,2017,716
Tunbridge Wells Borough Council,Environmental and regulatory services ,105,EN,ENVIRONMENT & STREET SCENE,FOOD & SAFETY,Medical Fees,3340,-,-,2017/05/22 23:00:00+00,2017/05/23 23:00:00+00,160776,278.820007324219,Revenue,Culverden Veterinary Group,May,2017,717
Tunbridge Wells Borough Council,Environmental and regulatory services ,105,EH,ENVIRONMENTAL HEALTH,FOOD & SAFETY,Medical Fees,3340,-,-,2017/05/22 23:00:00+00,2017/05/23 23:00:00+00,161305,266.200012207031,Revenue,HeathfieldVets Ltd,May,2017,718
Tunbridge Wells Borough Council,Central Services,102,EL,ELECTIONS,NON TWBC ELECTIONS,STATIONERY,3160,GENERAL ELECTION JUNE 2017,CS0402,2017/05/23 23:00:00+00,2017/05/23 23:00:00+00,161270,260.649993896484,Revenue,Shaw & Sons Ltd,May,2017,719
Tunbridge Wells Borough Council,Planning Services,110,EH,ENVIRONMENTAL HEALTH,COMMUNITY & GRANTS,GRANTS,3750,-,-,2017/05/29 23:00:00+00,2017/05/30 23:00:00+00,161329,34375,Revenue,Tunbridge Wells Citizens Advice Bureau,May,2017,720
Tunbridge Wells Borough Council,Cultural and Related Services,104,PL,PLANNING,TRINITY THEATRE EXTENSION,CAPITAL FEES EXTERNAL,8315,-,-,2017/05/29 23:00:00+00,2017/05/30 23:00:00+00,161328,32160,Capital,Trinity Theatre & Arts Ctr Ltd,May,2017,721
Tunbridge Wells Borough Council,Cultural and Related Services,104,AH,ASSEMBLY HALL,A-HALL HIRE SHOWS,TICKET REPAYMENT,5421,170423-29 TWODS ANNIE,A17R03,2017/05/30 23:00:00+00,2017/05/30 23:00:00+00,161430,12640,Revenue,TWODS Limited,May,2017,722
Tunbridge Wells Borough Council,Cultural and Related Services,104,AH,ASSEMBLY HALL,A-HALL COUNCIL SHOWS,SHOW FEES,3380,170513 ILLEGAL EAGLES,A17E05,2017/05/30 23:00:00+00,2017/05/30 23:00:00+00,161586,12138.4404296875,Revenue,Riviera Entertainments Ltd,May,2017,723
Tunbridge Wells Borough Council,Cultural and Related Services,104,AH,ASSEMBLY HALL,A-HALL COUNCIL SHOWS,SHOW FEES,3380,170519 RUBY WAX,A17E07,2017/05/30 23:00:00+00,2017/05/30 23:00:00+00,161473,11569.1904296875,Revenue,Lakin McCarthy Entertainment Limited,May,2017,724
Tunbridge Wells Borough Council,Cultural and Related Services,104,AH,ASSEMBLY HALL,A-HALL HIRE SHOWS,TICKET REPAYMENT,5421,170506 ROYAL RUMBLE,A17S04,2017/05/30 23:00:00+00,2017/05/30 23:00:00+00,161581,11390,Revenue,Rustall & Tunbridge Wells Amateur Boxing Club,May,2017,725
Tunbridge Wells Borough Council,Environmental and regulatory services ,105,EN,ENVIRONMENT & STREET SCENE,LICENSING,PARTNERSHIP AGREEMENT,202,-,-,2017/05/30 23:00:00+00,2017/05/30 23:00:00+00,161542,9781,Revenue,Sevenoaks District Council,May,2017,726
Tunbridge Wells Borough Council,Central Services,102,FI,FINANCE,ITRENT PAYROLL & HR SYSTEM,COMPUTER SOFTWARE,8341,-,-,2017/05/30 23:00:00+00,2017/05/30 23:00:00+00,159713,9369.5,Capital,Midland Software Ltd,May,2017,727
Tunbridge Wells Borough Council,Central Services,102,HR,HUMAN RESOURCES,HUMAN RESOURCES,ADVERTISING STAFF,230,-,-,2017/05/29 23:00:00+00,2017/05/30 23:00:00+00,161469,9300,Revenue,LinkedIn Ireland,May,2017,728
Tunbridge Wells Borough Council,Cultural and Related Services,104,MU,MUSEUM,NORTH FARM ART WORKS,CAPITAL FEES EXTERNAL,8315,-,-,2017/05/30 23:00:00+00,2017/05/30 23:00:00+00,161480,7500,Capital,This data has been redacted under the Data Protection Act,May,2017,729
Tunbridge Wells Borough Council,Central Services,102,EL,ELECTIONS,NON TWBC ELECTIONS,POSTAGE,3500,GENERAL ELECTION JUNE 2017,CS0402,2017/05/29 23:00:00+00,2017/05/30 23:00:00+00,161550,7404.85986328125,Revenue,Royal Mail  Group plc,May,2017,730
Tunbridge Wells Borough Council,Housing Services,108,HO,HOUSING,PROPERTIES ON LOAN,RENTS/HIRE OF PREMISES,2200,-,-,2017/05/24 23:00:00+00,2017/05/30 23:00:00+00,161065,7188.52001953125,Revenue,Town and Country Housing Group,May,2017,731
Tunbridge Wells Borough Council,Cultural and Related Services,104,AH,ASSEMBLY HALL,A-HALL HIRE SHOWS,TICKET REPAYMENT,5421,170401 BANFF 2017,A17R02,2017/05/30 23:00:00+00,2017/05/30 23:00:00+00,161608,5309,Revenue,Snowline Media Ltd,May,2017,732
Tunbridge Wells Borough Council,Central Services,102,FI,FINANCE,ITRENT PAYROLL & HR SYSTEM,COMPUTER SOFTWARE,8341,-,-,2017/05/30 23:00:00+00,2017/05/30 23:00:00+00,159710,5274,Capital,Midland Software Ltd,May,2017,733
Tunbridge Wells Borough Council,Cultural and Related Services,104,MU,MUSEUM,NORTH FARM ART WORKS,CAPITAL FEES EXTERNAL,8315,-,-,2017/05/30 23:00:00+00,2017/05/30 23:00:00+00,161479,5000,Capital,This data has been redacted under the Data Protection Act,May,2017,734
Tunbridge Wells Borough Council,Housing Services,108,HO,HOUSING,RENT DEPOSIT SCHEME,DEBTORS,8510,-,-,2017/05/30 23:00:00+00,2017/05/30 23:00:00+00,161647,4835,Revenue,Andrews Letting Management,May,2017,735
Tunbridge Wells Borough Council,Housing Services,108,FI,FINANCE,RENT DEPOSIT SCHEME,DEBTORS,8510,-,-,2017/05/30 23:00:00+00,2017/05/30 23:00:00+00,161585,4800,Revenue,This data has been redacted under the Data Protection Act,May,2017,736
Tunbridge Wells Borough Council,Cultural and Related Services,104,AB,ASSEMBLY HALL BAR,A-HALL FRONT OF HOUSE,COGS - DRINK,3091,-,-,2017/05/24 23:00:00+00,2017/05/30 23:00:00+00,161016,4577.1201171875,Revenue,H T White & Co Ltd,May,2017,737
Tunbridge Wells Borough Council,Planning Services,110,HE,HEALTHY COMMUNITIES,COMMUNITY & GRANTS,GRANTS,3750,-,-,2017/05/30 23:00:00+00,2017/05/30 23:00:00+00,161603,4500,Revenue,Cranbrook&District Local History Museum Fund,May,2017,738
Tunbridge Wells Borough Council,Central Services,102,FM,FACILITIES MANAGEMENT,TOWN HALL,ELECTRICITY,2140,-,-,2017/05/30 23:00:00+00,2017/05/30 23:00:00+00,161433,4436.85986328125,Revenue,Kent County Council (KCS),May,2017,739
Tunbridge Wells Borough Council,Cultural and Related Services,104,AH,ASSEMBLY HALL,A-HALL TECHNICAL,ELECTRICITY,2140,-,-,2017/05/29 23:00:00+00,2017/05/30 23:00:00+00,161537,4364.7900390625,Revenue,Kent County Council (KCS),May,2017,740
Tunbridge Wells Borough Council,Central Services,102,TR,TRANSFORMATION AND DELIVERY,I T SERVICE,IT SOFTWARE,3590,-,-,2017/05/30 23:00:00+00,2017/05/30 23:00:00+00,161475,4124,Revenue,CACI LIMITED,May,2017,741
Tunbridge Wells Borough Council,Housing Services,108,HO,HOUSING,BED & BREAKFAST COSTS,RENTS/HIRE OF PREMISES,2200,-,-,2017/05/24 23:00:00+00,2017/05/30 23:00:00+00,160648,4065,Revenue,LESSHOMELESS LIMITED,May,2017,742
Tunbridge Wells Borough Council,Central Services,102,EL,ELECTIONS,NON TWBC ELECTIONS,POSTAGE,3500,GENERAL ELECTION JUNE 2017,CS0402,2017/05/29 23:00:00+00,2017/05/30 23:00:00+00,160827,2886.86010742188,Revenue,Royal Mail  Group plc,May,2017,743
Tunbridge Wells Borough Council,Central Services,102,FI,FINANCE,ITRENT PAYROLL & HR SYSTEM,COMPUTER SOFTWARE,8341,-,-,2017/05/30 23:00:00+00,2017/05/30 23:00:00+00,160179,2802,Capital,Midland Software Ltd,May,2017,744
Tunbridge Wells Borough Council,Central Services,102,GW,GATEWAY CUSTOMER SERVICES,GATEWAY,OTHER EMOLUMENTS,70,CALL CENTRE,EV0341,2017/05/30 23:00:00+00,2017/05/30 23:00:00+00,161155,2750,Revenue,MEDWAY PUBLIC SERVICES LTD,May,2017,745
Tunbridge Wells Borough Council,Housing Services,108,PS,PROPERTY SERVICES,TEMPORARY ACCOMMODATION,RESPONSIVE REPAIRS BUILDINGS,2020,PROPERTY CONTRACTS,PH0600,2017/05/30 23:00:00+00,2017/05/30 23:00:00+00,161120,2745.03002929688,Revenue,Millwood Servicing Ltd,May,2017,746
Tunbridge Wells Borough Council,Environmental and regulatory services ,105,CS,CLIENT SERVICES (DEPOT),REFUSE COLLECTION SERVICES,EQUIPMENT PURCHASE/MTCE,3000,-,-,2017/05/30 23:00:00+00,2017/05/30 23:00:00+00,161601,2593.80004882813,Revenue,Straight Manufacturing Ltd,May,2017,747
Tunbridge Wells Borough Council,Central Services,102,EL,ELECTIONS,NON TWBC ELECTIONS,POSTAGE,3500,GENERAL ELECTION JUNE 2017,CS0402,2017/05/30 23:00:00+00,2017/05/30 23:00:00+00,161621,2514.60009765625,Revenue,Royal Mail  Group plc,May,2017,748
Tunbridge Wells Borough Council,Planning Services,110,ED,ECONOMIC DEVELOPMENT,ECONOMIC DEVELOPMENT,SUBS TO ORGANISATIONS,3730,-,-,2017/05/29 23:00:00+00,2017/05/30 23:00:00+00,161466,2500,Revenue,Tourism South East,May,2017,749
Tunbridge Wells Borough Council,Cultural and Related Services,104,AH,ASSEMBLY HALL,A-HALL HIRE SHOWS,TICKET REPAYMENT,5421,170507 RTW CHORAL,A17S03,2017/05/29 23:00:00+00,2017/05/30 23:00:00+00,161573,2461,Revenue,Royal Tun Wells Choral Society,May,2017,750
Tunbridge Wells Borough Council,Environmental and regulatory services ,105,CR,CREMATORIUM,CREMATORIUM,SUBS TO ORGANISATIONS,3730,-,-,2017/05/29 23:00:00+00,2017/05/30 23:00:00+00,161319,445,Revenue,ICCM,May,2017,751
Tunbridge Wells Borough Council,Central Services,102,FI,FINANCE,ITRENT PAYROLL & HR SYSTEM,COMPUTER SOFTWARE,8341,-,-,2017/05/30 23:00:00+00,2017/05/30 23:00:00+00,160178,443.309997558594,Capital,Midland Software Ltd,May,2017,752
Tunbridge Wells Borough Council,Central Services,102,FI,FINANCE,ITRENT PAYROLL & HR SYSTEM,COMPUTER SOFTWARE,8341,-,-,2017/05/30 23:00:00+00,2017/05/30 23:00:00+00,159067,440.820007324219,Capital,Midland Software Ltd,May,2017,753
Tunbridge Wells Borough Council,Central Services,102,FI,FINANCE,ITRENT PAYROLL & HR SYSTEM,COMPUTER SOFTWARE,8341,-,-,2017/05/30 23:00:00+00,2017/05/30 23:00:00+00,159708,439.5,Capital,Midland Software Ltd,May,2017,754
Tunbridge Wells Borough Council,Central Services,102,FI,FINANCE,ITRENT PAYROLL & HR SYSTEM,COMPUTER SOFTWARE,8341,-,-,2017/05/30 23:00:00+00,2017/05/30 23:00:00+00,159712,439.5,Capital,Midland Software Ltd,May,2017,755
Tunbridge Wells Borough Council,Housing Services,108,HO,HOUSING,BED & BREAKFAST COSTS,RENTS/HIRE OF PREMISES,2200,-,-,2017/05/29 23:00:00+00,2017/05/30 23:00:00+00,161462,437.5,Revenue,This data has been redacted under the Data Protection Act,May,2017,756
Tunbridge Wells Borough Council,Highways and Transport Services,107,PA,PARKING,GREAT HALL CAR PARK,ELECTRICITY,2140,-,-,2017/05/29 23:00:00+00,2017/05/30 23:00:00+00,161539,418.790008544922,Revenue,Kent County Council (KCS),May,2017,757
Tunbridge Wells Borough Council,Highways and Transport Services,107,FI,FINANCE,PARKING ADMIN & ENFORCEMENT,FUEL & OIL,1010,-,-,2017/05/30 23:00:00+00,2017/05/30 23:00:00+00,161313,408.739990234375,Revenue,Fuel Card Services Ltd,May,2017,758
Tunbridge Wells Borough Council,Cultural and Related Services,104,AB,ASSEMBLY HALL BAR,A-HALL FRONT OF HOUSE,CONSUMABLES & MATERIALS,3060,-,-,2017/05/24 23:00:00+00,2017/05/30 23:00:00+00,161082,404.880004882813,Revenue,Nivek Catering Supplies Ltd,May,2017,759
Tunbridge Wells Borough Council,Environmental and regulatory services ,105,FI,FINANCE,CLEANER BOROUGH,FUEL & OIL,1010,-,-,2017/05/30 23:00:00+00,2017/05/30 23:00:00+00,160765,402.380004882813,Revenue,Fuel Card Services Ltd,May,2017,760
Tunbridge Wells Borough Council,Housing Services,108,HP,HOUSING (PRIVATE SECTOR),HOUSING RENEWAL ADVANCES,CAPITAL GRANTS PAYABLE,8355,WINTER WARMTH SCHEMES,PG0113,2017/05/29 23:00:00+00,2017/05/30 23:00:00+00,161423,395.200012207031,Capital,Family Mosaic Housing,May,2017,761
Tunbridge Wells Borough Council,Cultural and Related Services,104,AB,ASSEMBLY HALL BAR,A-HALL FRONT OF HOUSE,COGS - ICE CREAMS,3093,-,-,2017/05/24 23:00:00+00,2017/05/30 23:00:00+00,161083,385,Revenue,Taywell Ice Creams Limited,May,2017,762
Tunbridge Wells Borough Council,Central Services,102,PS,PROPERTY SERVICES,BUILDING SERVICES,BOOKS & PUBLICATIONS,3190,-,-,2017/05/30 23:00:00+00,2017/05/30 23:00:00+00,161582,370,Revenue,Sweet & Maxwell Ltd,May,2017,763
Tunbridge Wells Borough Council,Housing Services,108,HO,HOUSING,BED & BREAKFAST COSTS,RENTS/HIRE OF PREMISES,2200,-,-,2017/05/29 23:00:00+00,2017/05/30 23:00:00+00,161457,350,Revenue,This data has been redacted under the Data Protection Act,May,2017,764
Tunbridge Wells Borough Council,Cultural and Related Services,104,AB,ASSEMBLY HALL BAR,A-HALL FRONT OF HOUSE,COGS - ICE CREAMS,3093,-,-,2017/05/29 23:00:00+00,2017/05/30 23:00:00+00,161555,350,Revenue,Taywell Ice Creams Limited,May,2017,765
Tunbridge Wells Borough Council,Highways and Transport Services,107,PA,PARKING,CRESCENT ROAD CAR PARK,MAINT/SERVICING PLANT,2030,-,-,2017/05/29 23:00:00+00,2017/05/30 23:00:00+00,161454,328.440002441406,Revenue,Chubb Fire & Security Ltd,May,2017,766
Tunbridge Wells Borough Council,Central Services,102,EL,ELECTIONS,NON TWBC ELECTIONS,POSTAGE,3500,GENERAL ELECTION JUNE 2017,CS0402,2017/05/30 23:00:00+00,2017/05/30 23:00:00+00,161622,305.470001220703,Revenue,Royal Mail  Group plc,May,2017,767
Tunbridge Wells Borough Council,Central Services,102,FI,FINANCE,ITRENT PAYROLL & HR SYSTEM,COMPUTER SOFTWARE,8341,-,-,2017/05/30 23:00:00+00,2017/05/30 23:00:00+00,160796,293.440002441406,Capital,Midland Software Ltd,May,2017,768
Tunbridge Wells Borough Council,Environmental and regulatory services ,105,PK,PARKS,DISUSED CEMETERIES,GROUND MAINT NON CONTRACT,2060,-,-,2017/05/30 23:00:00+00,2017/05/30 23:00:00+00,161574,292,Revenue,D S Restoration,May,2017,769
Tunbridge Wells Borough Council,Cultural and Related Services,104,PK,PARKS,PARKS & GROUNDS,GROUND MAINT NON CONTRACT,2060,-,-,2017/05/30 23:00:00+00,2017/05/30 23:00:00+00,161564,286,Revenue,D S Restoration,May,2017,770
Tunbridge Wells Borough Council,Cultural and Related Services,104,AB,ASSEMBLY HALL BAR,A-HALL FRONT OF HOUSE,COGS - DRINK,3091,-,-,2017/05/24 23:00:00+00,2017/05/30 23:00:00+00,160791,285.549987792969,Revenue,Adrian Mecklenburgh Ltd,May,2017,771
Tunbridge Wells Borough Council,Housing Services,108,TN,TN2 CENTRE,TN2 COMMUNITY CENTRE,TELEPHONE COSTS,3510,-,-,2017/05/29 23:00:00+00,2017/05/30 23:00:00+00,161438,284.260009765625,Revenue,British Telecommunications plc,May,2017,772
Tunbridge Wells Borough Council,Highways and Transport Services,107,PA,PARKING,PARKING ADMIN & ENFORCEMENT,AGENCY STAFF,100,-,-,2017/05/24 23:00:00+00,2017/05/30 23:00:00+00,160749,282.200012207031,Revenue,Robson Newman Ltd,May,2017,773
Tunbridge Wells Borough Council,Cultural and Related Services,104,PK,PARKS,PARKS & GROUNDS,GROUND MAINT.infrastructure,2063,-,-,2017/05/30 23:00:00+00,2017/05/30 23:00:00+00,161558,270,Revenue,D S Restoration,May,2017,774
Tunbridge Wells Borough Council,Housing Services,108,CE,CHIEF EXECUTIVE,TN2 COMMUNITY CENTRE,GAS,2120,-,-,2017/05/29 23:00:00+00,2017/05/30 23:00:00+00,161116,269.579986572266,Revenue,Kent County Council (KCS),May,2017,775
Tunbridge Wells Borough Council,Central Services,102,FI,FINANCE,EXCHEQUER SERVICES,PROJECTS & INITIATIVES,3910,-,-,2017/05/30 23:00:00+00,2017/05/30 23:00:00+00,161286,250,Revenue,Advanced Business Solutions,May,2017,776
Tunbridge Wells Borough Council,Environmental and regulatory services ,105,CR,CREMATORIUM,PUBLIC HEALTH ACT FUNERALS,GENERAL EXPENSES,3950,-,-,2017/05/15 23:00:00+00,2017/06/27 23:00:00+00,159977,1266,Revenue,T W BOORMAN FUNERAL SERVICES,June,2017,777
Tunbridge Wells Borough Council,Environmental and regulatory services ,105,CS,CLIENT SERVICES (DEPOT),NORTH FARM DEPOT,WATER SUPPLY,2300,-,-,2017/04/20 23:00:00+00,2017/06/27 23:00:00+00,159662,1782.31994628906,Revenue,Southern Water,June,2017,778
Tunbridge Wells Borough Council,Environmental and regulatory services ,105,PK,PARKS,CREMATORIUM,Grounds Maint. Sodexo Contract,2054,-,-,2017/06/04 23:00:00+00,2017/06/06 23:00:00+00,160647,70737.640625,Revenue,Sodexo Ltd,June,2017,779
Tunbridge Wells Borough Council,Cultural and Related Services,104,PK,PARKS,PARKS & GROUNDS,Grounds Maint. Sodexo Contract,2054,-,-,2017/06/04 23:00:00+00,2017/06/06 23:00:00+00,161636,70737.640625,Revenue,Sodexo Ltd,June,2017,780
Tunbridge Wells Borough Council,Environmental and regulatory services ,105,PK,PARKS,CREMATORIUM,Grounds Maint. Sodexo Contract,2054,-,-,2017/06/05 23:00:00+00,2017/06/06 23:00:00+00,161838,70723.921875,Revenue,Sodexo Ltd,June,2017,781
Tunbridge Wells Borough Council,Cultural and Related Services,104,PS,PROPERTY SERVICES,WEALD SPORTS CENTRE,PLANNED MAINTENANCE BUILDINGS,2000,PROPERTY NON CONTRACT,PH0605,2017/06/05 23:00:00+00,2017/06/06 23:00:00+00,161551,12082,Revenue,Ian Williams Ltd,June,2017,782
Tunbridge Wells Borough Council,Cultural and Related Services,104,PS,PROPERTY SERVICES,WEALD SPORTS CENTRE,PLANNED MAINTENANCE BUILDINGS,2000,PROPERTY NON CONTRACT,PH0605,2017/06/05 23:00:00+00,2017/06/06 23:00:00+00,161554,12082,Revenue,Ian Williams Ltd,June,2017,783
Tunbridge Wells Borough Council,Highways and Transport Services,107,PA,PARKING,PARKING ADMIN & ENFORCEMENT,PCN DEBT REGISTRATION,3335,-,-,2017/06/06 23:00:00+00,2017/06/06 23:00:00+00,161824,10000,Revenue,THE TRAFFIC ENFORCEMENT CENTRE,June,2017,784
Tunbridge Wells Borough Council,Central Services,102,FI,FINANCE,ACCOUNTANCY,PARTNERSHIP AGREEMENT,202,-,-,2017/06/06 23:00:00+00,2017/06/06 23:00:00+00,161891,8628,Revenue,Maidstone Borough Council,June,2017,785
Tunbridge Wells Borough Council,Cultural and Related Services,104,PK,PARKS,PARKS & GROUNDS,Grounds Maint. Sodexo Contract,2054,-,-,2017/06/01 23:00:00+00,2017/06/06 23:00:00+00,161267,7952.89013671875,Revenue,Sodexo Ltd,June,2017,786
Tunbridge Wells Borough Council,Housing Services,108,HO,HOUSING,RENT DEPOSIT SCHEME,DEBTORS,8510,-,-,2017/06/06 23:00:00+00,2017/06/06 23:00:00+00,161912,7200,Revenue,Lloyd & Lilly,June,2017,787
Tunbridge Wells Borough Council,Housing Services,108,HO,HOUSING,RENT DEPOSIT SCHEME,DEBTORS,8510,-,-,2017/06/05 23:00:00+00,2017/06/06 23:00:00+00,161781,4620,Revenue,This data has been redacted under the Data Protection Act,June,2017,788
Tunbridge Wells Borough Council,Central Services,102,FI,FINANCE,LAND CHARGES,SEARCH FEES,3332,-,-,2017/06/06 23:00:00+00,2017/06/06 23:00:00+00,161890,4323,Revenue,Maidstone Borough Council,June,2017,789
Tunbridge Wells Borough Council,Planning Services,110,HE,HEALTHY COMMUNITIES,COMMUNITY CAPITAL GRANTS,CAPITAL GRANTS PAYABLE,8355,TW SQUASH RACKETS CLUB 17/18,PG0751,2017/06/04 23:00:00+00,2017/06/06 23:00:00+00,161792,3000,Capital,Tunbridge Wells Squash & Rackets Club,June,2017,790
Tunbridge Wells Borough Council,Central Services,102,CT,COMMITTEE,I T SERVICE,IT SOFTWARE,3590,SOFTWARE MAINTENANCE,EV0328,2017/06/06 23:00:00+00,2017/06/06 23:00:00+00,161826,3000,Revenue,Modern Mindset Ltd,June,2017,791
Tunbridge Wells Borough Council,Housing Services,108,HO,HOUSING,BED & BREAKFAST COSTS,RENTS/HIRE OF PREMISES,2200,-,-,2017/06/06 23:00:00+00,2017/06/06 23:00:00+00,161880,2736,Revenue,LESSHOMELESS LIMITED,June,2017,792
Tunbridge Wells Borough Council,Highways and Transport Services,107,PA,PARKING,CRESCENT ROAD CAR PARK,FIRE & SECURITY COSTS,2080,-,-,2017/06/06 23:00:00+00,2017/06/06 23:00:00+00,161881,2550,Revenue,RIGHT GUARD SECURITY UK LTD,June,2017,793
Tunbridge Wells Borough Council,Planning Services,110,FI,FINANCE,KCC - PLANNING CONTRIBUTIONS,CREDITORS,9009,SUNSET LDG PEMBURY RD15/506024,RV0805,2017/06/05 23:00:00+00,2017/06/06 23:00:00+00,161884,2406.01000976563,Revenue,Kent County Council,June,2017,794
Tunbridge Wells Borough Council,Central Services,102,FM,FACILITIES MANAGEMENT,POSTAL CHARGES ACCOUNT,CASH TRANSFERS,9100,-,-,2017/06/05 23:00:00+00,2017/06/06 23:00:00+00,161620,2339.14990234375,Revenue,Royal Mail  Group plc,June,2017,795
Tunbridge Wells Borough Council,Planning Services,110,HE,HEALTHY COMMUNITIES,COMMUNITY & GRANTS,GRANTS,3750,-,-,2017/06/06 23:00:00+00,2017/06/06 23:00:00+00,161548,2000,Revenue,Forum Music & Arts CIC,June,2017,796
Tunbridge Wells Borough Council,Central Services,102,FI,FINANCE,REVS & BENS ADMINISTRATION,IT SOFTWARE,3590,-,-,2017/06/05 23:00:00+00,2017/06/06 23:00:00+00,161888,2000,Revenue,Maidstone Borough Council,June,2017,797
Tunbridge Wells Borough Council,Central Services,102,PS,PROPERTY SERVICES,BUILDING SERVICES,AGENCY STAFF,100,-,-,2017/06/04 23:00:00+00,2017/06/06 23:00:00+00,161619,1968.68005371094,Revenue,Hays Montrose,June,2017,798
Tunbridge Wells Borough Council,Environmental and regulatory services ,105,CR,CREMATORIUM,CREMATORIUM,Medical Fees,3340,-,-,2017/06/06 23:00:00+00,2017/06/06 23:00:00+00,161903,1826.93994140625,Revenue,This data has been redacted under the Data Protection Act,June,2017,799
Tunbridge Wells Borough Council,Central Services,102,FI,FINANCE,ACCOUNTANCY,SUBS TO ORGANISATIONS,3730,-,-,2017/06/06 23:00:00+00,2017/06/06 23:00:00+00,161471,1710,Revenue,CIPFA Business Ltd,June,2017,800
Tunbridge Wells Borough Council,Cultural and Related Services,104,AH,ASSEMBLY HALL,A-HALL TECHNICAL,EQUIPMENT PURCHASE/MTCE,3000,-,-,2017/06/29 23:00:00+00,2017/07/04 23:00:00+00,162782,1120,Revenue,Hoist UK Ltd,July,2017,801
Tunbridge Wells Borough Council,Environmental and regulatory services ,105,EH,ENVIRONMENTAL HEALTH,FOOD & SAFETY,AGENCY STAFF,100,-,-,2017/06/29 23:00:00+00,2017/07/04 23:00:00+00,162796,1064.40002441406,Revenue,Recruitment Solutions,July,2017,802
Tunbridge Wells Borough Council,Housing Services,108,PS,PROPERTY SERVICES,PROPERTY,RENTS,5620,-,-,2017/06/29 23:00:00+00,2017/07/04 23:00:00+00,162961,1016.25,Revenue,Lower Pantiles LLP,July,2017,803
Tunbridge Wells Borough Council,Highways and Transport Services,107,PA,PARKING,SURFACE CAR PARKS,CONTRACT CLEANING,2510,TOWN HALL YARD,PT0116,2017/07/04 23:00:00+00,2017/07/04 23:00:00+00,163098,1000,Revenue,D R M Rowswell,July,2017,804
Tunbridge Wells Borough Council,Housing Services,108,FI,FINANCE,RENT DEPOSIT SCHEME,DEBTORS,8510,-,-,2017/06/29 23:00:00+00,2017/07/04 23:00:00+00,163017,950,Revenue,Complete Lets,July,2017,805
Tunbridge Wells Borough Council,Cultural and Related Services,104,PK,PARKS,PARKS & GROUNDS,GROUND MAINT.infrastructure,2063,-,-,2017/06/29 23:00:00+00,2017/07/04 23:00:00+00,163003,842,Revenue,Streetmaster (South Wales) Ltd,July,2017,806
Tunbridge Wells Borough Council,Environmental and regulatory services ,105,LI,LICENSING,LICENSING,COGS-NON FOOD,3080,VEHICLE LICENSING - HC,EV0443,2017/06/29 23:00:00+00,2017/07/04 23:00:00+00,163046,840,Revenue,Matfield MOT Centre,July,2017,807
Tunbridge Wells Borough Council,Cultural and Related Services,104,MU,MUSEUM,CULTURAL HUB,EVENTS,3420,ACTIVITY & PUBLIC ENGAGEMENT,EV0043,2017/07/03 23:00:00+00,2017/07/04 23:00:00+00,162986,800,Revenue,This data has been redacted under the Data Protection Act,July,2017,808
Tunbridge Wells Borough Council,Housing Services,108,TN,TN2 CENTRE,TN2 COMMUNITY CENTRE,CONTRACT CLEANING,2510,PROPERTY CLEANING CONTRACT,PH0590,2017/06/29 23:00:00+00,2017/07/04 23:00:00+00,163023,713.119995117188,Revenue,CORDANT CLEANING LTD,July,2017,809
Tunbridge Wells Borough Council,Cultural and Related Services,104,AM,ASSEMBLY HALL MARKETING,A-HALL MARKETING,PROMOTION,3450,-,-,2017/06/29 23:00:00+00,2017/07/04 23:00:00+00,162960,712.169982910156,Revenue,Target Live Limited,July,2017,810
Tunbridge Wells Borough Council,Cultural and Related Services,104,PK,PARKS,PARKS & GROUNDS,GROUND MAINT NON CONTRACT,2060,-,-,2017/07/04 23:00:00+00,2017/07/04 23:00:00+00,163113,695,Revenue,Kent County Council,July,2017,811
Tunbridge Wells Borough Council,Cultural and Related Services,104,MU,MUSEUM,MUSEUM & ART GALLERY,SURVEYS & MARKET RESEARCH,3360,-,-,2017/07/03 23:00:00+00,2017/07/04 23:00:00+00,162987,693.400024414063,Revenue,This data has been redacted under the Data Protection Act,July,2017,812
Tunbridge Wells Borough Council,Environmental and regulatory services ,105,CR,CREMATORIUM,CREMATORIUM,COGS - PLAQUES,3082,-,-,2017/07/03 23:00:00+00,2017/07/04 23:00:00+00,162495,675.099975585938,Revenue,Falon Nameplates  Limited,July,2017,813
Tunbridge Wells Borough Council,Cultural and Related Services,104,MU,MUSEUM,MUSEUM & ART GALLERY,EXHIBITION FEES,3400,-,-,2017/07/03 23:00:00+00,2017/07/04 23:00:00+00,163026,675,Revenue,Rare Reprographics Ltd,July,2017,814
Tunbridge Wells Borough Council,Cultural and Related Services,104,PK,PARKS,PARKS & GROUNDS,EQUIPMENT PURCHASE/MTCE,3000,-,-,2017/07/04 23:00:00+00,2017/07/04 23:00:00+00,163095,665,Revenue,Mark Harrod Ltd,July,2017,815
Tunbridge Wells Borough Council,Cultural and Related Services,104,PK,PARKS,PARKS & GROUNDS,Horticulture,2061,-,-,2017/06/29 23:00:00+00,2017/07/04 23:00:00+00,163005,659,Revenue,Glendale Horticulture Ltd,July,2017,816
Tunbridge Wells Borough Council,Highways and Transport Services,107,PA,PARKING,PARKING ADMIN & ENFORCEMENT,SALARIES,20,-,-,2017/07/04 23:00:00+00,2017/07/04 23:00:00+00,162731,652.799987792969,Revenue,Robson Newman Ltd,July,2017,817
Tunbridge Wells Borough Council,Highways and Transport Services,107,PA,PARKING,PARKING ADMIN & ENFORCEMENT,SALARIES,20,-,-,2017/07/04 23:00:00+00,2017/07/04 23:00:00+00,162980,632.400024414063,Revenue,Robson Newman Ltd,July,2017,818
Tunbridge Wells Borough Council,Environmental and regulatory services ,105,LG,LEGAL SERVICES,CLEANER BOROUGH,COUNSEL FEES,3261,-,-,2017/06/26 23:00:00+00,2017/06/27 23:00:00+00,162705,350,Revenue,MR IAN REES PHILLIPS,June,2017,819
Tunbridge Wells Borough Council,Central Services,102,IT,INFORMATION & COMMUNICATIONS TECHNOLOGY,BUILDING SERVICES,BOOKS & PUBLICATIONS,3190,-,-,2017/06/29 23:00:00+00,2017/07/04 23:00:00+00,162963,602.340026855469,Revenue,Phoenix Software Ltd,July,2017,820
Tunbridge Wells Borough Council,Environmental and regulatory services ,105,PL,PLANNING,PUBLIC CONVENIENCES,PROJECTS & INITIATIVES,3910,COMMUNITY TOILET SCHEME,EV0419,2017/07/04 23:00:00+00,2017/07/04 23:00:00+00,163127,600,Revenue,Horsmonden Parish Council,July,2017,821
Tunbridge Wells Borough Council,Environmental and regulatory services ,105,CR,CREMATORIUM,CREMATORIUM,BOOKS & PUBLICATIONS,3190,-,-,2017/07/03 23:00:00+00,2017/07/04 23:00:00+00,162812,575.099975585938,Revenue,F G Marshall Ltd,July,2017,822
Tunbridge Wells Borough Council,Cultural and Related Services,104,AH,ASSEMBLY HALL,A-HALL MANAGEMENT,SHOW FEES,3380,170529 MARTY MCDONALDS TOY MAC,A17E01,2017/06/29 23:00:00+00,2017/07/04 23:00:00+00,162803,558.340026855469,Revenue,Honalee Media Ltd,July,2017,823
Tunbridge Wells Borough Council,Highways and Transport Services,107,PA,PARKING,TORRINGTON CAR PARK,CONTRACT CLEANING,2510,-,-,2017/06/29 23:00:00+00,2017/07/04 23:00:00+00,162972,550,Revenue,W B Stanley,July,2017,824
Tunbridge Wells Borough Council,Planning Services,110,PL,PLANNING,DEVELOPMENT MANAGEMENT,PLANNING CONSULTANT FEES,3270,-,-,2017/06/29 23:00:00+00,2017/07/04 23:00:00+00,163038,550,Revenue,Rural Planning Limited,July,2017,825
Tunbridge Wells Borough Council,Environmental and regulatory services ,105,CR,CREMATORIUM,TUNBRIDGE WELLS-CEMETERIES,COGS - PLAQUES,3082,-,-,2017/07/04 23:00:00+00,2017/07/04 23:00:00+00,162765,541.799987792969,Revenue,A Burslem & Son Ltd (Burslem Memorials),July,2017,826
Tunbridge Wells Borough Council,Environmental and regulatory services ,105,CR,CREMATORIUM,TUNBRIDGE WELLS-CEMETERIES,COGS - PLAQUES,3082,-,-,2017/07/04 23:00:00+00,2017/07/04 23:00:00+00,162764,528.200012207031,Revenue,A Burslem & Son Ltd (Burslem Memorials),July,2017,827
